Workbook

Sheet Main
B10: 2018-11-14
B12: Sheet No. | C12: Template Name | D12: Summary
B13: 1 | C13: Future Intra | D13: For Intraday trading in F&O segment
B14: 2 | C14: Cash Intra | D14: For Intraday trading in cash market segment
B15: 3 | C15: Mid-cap Intra | D15: For Intraday trading in Mid-cap stocks
B16: 4 | C16: Bulk Deals | D16: Reveals Bulk Deals carried on NSE & BSE
B17: 5 | C17: Call Tracker

Sheet Future Intra
M5: Back to Main Page
A6: FOR INTRA DAY TRADING | L6: =Main!B10 -> 2018-11-14
A9: Sr.no | B9: Sector | C9: Scrip | D9: CLOSE RATE | E9: Pivot Point | F9: Supports | I9: Resistances
B10: Sector | D10: Point | E10: Point | F10: S1 | G10: S2 | H10: S3 | I10: R1 | J10: R2 | K10: R3 | L10: HIGH | M10: LOW | N10: OI | O10: % Change in OI
A11: 1 | B11: Index | C11: BANKNIFTY | D11: 25830.75 | E11: 25705.00 | F11: 25554.90 | G11: 25279.05 | H11: 25128.95 | I11: 25980.85 | J11: 26130.95 | K11: 26406.80 | L11: 25855.1 | M11: 25429.15 | N11: 1417320 | O11: 3.66%
A12: 2 | B12: Index | C12: NIFTY | D12: 10615.95 | E12: 10569.32 | F12: 10506.63 | G12: 10397.32 | H12: 10334.63 | I12: 10678.63 | J12: 10741.32 | K12: 10850.63 | L12: 10632 | M12: 10460 | N12: 25260975 | O12: -0.44%
A13: 5 | B13: Index | C13: NIFTYIT | D13: 14749.00 | E13: 14716.00 | F13: 14633.00 | G13: 14517.00 | H13: 14434.00 | I13: 14832.00 | J13: 14915.00 | K13: 15031.00 | L13: 14799 | M13: 14600 | N13: 11550 | O13: -6.48%
A14: 6 | B14: Index | C14: NIFTYMID50 | D14: 4632.00 | E14: 4687.37 | F14: 4576.63 | G14: 4521.27 | H14: 4410.53 | I14: 4742.73 | J14: 4853.47 | K14: 4908.83 | L14: 4798.1 | M14: 4632 | N14: 694870 | O14: 0.00%
A15: 8 | B15: Cement | C15: ACC | D15: 1461.65 | E15: 1452.53 | F15: 1438.22 | G15: 1414.78 | H15: 1400.47 | I15: 1475.97 | J15: 1490.28 | K15: 1513.72 | L15: 1466.85 | M15: 1429.1 | N15: 874800 | O15: 0.51%
A16: 9 | B16: Others | C16: ADANIENT | D16: 162.95 | E16: 162.00 | F16: 160.20 | G16: 157.45 | H16: 155.65 | I16: 164.75 | J16: 166.55 | K16: 169.30 | L16: 163.8 | M16: 159.25 | N16: 38840000 | O16: 0.38%
A17: 10 | B17: Others | C17: ADANIPORTS | D17: 335.70 | E17: 332.80 | F17: 329.10 | G17: 322.50 | H17: 318.80 | I17: 339.40 | J17: 343.10 | K17: 349.70 | L17: 336.5 | M17: 326.2 | N17: 16745000 | O17: -1.19%
A18: 11 | B18: Power | C18: ADANIPOWER | D18: 48.95 | E18: 48.77 | F18: 48.03 | G18: 47.12 | H18: 46.38 | I18: 49.68 | J18: 50.42 | K18: 51.33 | L18: 49.5 | M18: 47.85 | N18: 160700000 | O18: -0.50%
A19: 12 | B19: Pharma | C19: AJANTPHARM | D19: 1080.30 | E19: 1074.52 | F19: 1064.18 | G19: 1048.07 | H19: 1037.73 | I19: 1090.63 | J19: 1100.97 | K19: 1117.08 | L19: 1084.85 | M19: 1058.4 | N19: 590000 | O19: 0.08%
A20: 13 | B20: Banking | C20: ALBK | D20: 36.20 | E20: 37.83 | F20: 33.17 | G20: 30.13 | H20: 25.47 | I20: 40.87 | J20: 45.53 | K20: 48.57 | L20: 42.5 | M20: 34.8 | N20: 21229000 | O20: 40.95%
A21: 14 | B21: Automobile | C21: AMARAJABAT | D21: 743.45 | E21: 746.33 | F21: 730.32 | G21: 717.18 | H21: 701.17 | I21: 759.47 | J21: 775.48 | K21: 788.62 | L21: 762.35 | M21: 733.2 | N21: 1101800 | O21: 2.67%
A22: 15 | B22: Cement | C22: AMBUJACEM | D22: 206.70 | E22: 205.28 | F22: 203.07 | G22: 199.43 | H22: 197.22 | I22: 208.92 | J22: 211.13 | K22: 214.77 | L22: 207.5 | M22: 201.65 | N22: 16830000 | O22: -1.29%
A23: 17 | B23: Others | C23: APOLLOHOSP | D23: 1149.35 | E23: 1141.03 | F23: 1124.82 | G23: 1100.28 | H23: 1084.07 | I23: 1165.57 | J23: 1181.78 | K23: 1206.32 | L23: 1157.25 | M23: 1116.5 | N23: 624500 | O23: -2.95%
A24: 18 | B24: Automobile | C24: APOLLOTYRE | D24: 223.45 | E24: 220.47 | F24: 215.53 | G24: 207.62 | H24: 202.68 | I24: 228.38 | J24: 233.32 | K24: 241.23 | L24: 225.4 | M24: 212.55 | N24: 9573000 | O24: 8.57%
A25: 19 | B25: Textile | C25: ARVIND | D25: 313.20 | E25: 310.32 | F25: 305.68 | G25: 298.17 | H25: 293.53 | I25: 317.83 | J25: 322.47 | K25: 329.98 | L25: 314.95 | M25: 302.8 | N25: 7464000 | O25: 2.73%
A26: 20 | B26: Automobile | C26: ASHOKLEY | D26: 119.50 | E26: 118.82 | F26: 117.83 | G26: 116.17 | H26: 115.18 | I26: 120.48 | J26: 121.47 | K26: 123.13 | L26: 119.8 | M26: 117.15 | N26: 48036000 | O26: 1.70%
A27: 21 | B27: FMCG | C27: ASIANPAINT | D27: 1291.05 | E27: 1292.13 | F27: 1284.82 | G27: 1278.58 | H27: 1271.27 | I27: 1298.37 | J27: 1305.68 | K27: 1311.92 | L27: 1299.45 | M27: 1285.9 | N27: 5008200 | O27: 3.81%
A28: 22 | B28: Pharma | C28: AUROPHARMA | D28: 776.35 | E28: 784.45 | F28: 752.10 | G28: 727.85 | H28: 695.50 | I28: 808.70 | J28: 841.05 | K28: 865.30 | L28: 816.8 | M28: 760.2 | N28: 20229000 | O28: 6.04%
A29: 23 | B29: Banking | C29: AXISBANK | D29: 620.50 | E29: 616.12 | F29: 609.83 | G29: 599.17 | H29: 592.88 | I29: 626.78 | J29: 633.07 | K29: 643.73 | L29: 622.4 | M29: 605.45 | N29: 34216800 | O29: -1.00%
A30: 24 | B30: Automobile | C30: BAJAJ-AUTO | D30: 2676.45 | E30: 2658.27 | F30: 2633.48 | G30: 2590.52 | H30: 2565.73 | I30: 2701.23 | J30: 2726.02 | K30: 2768.98 | L30: 2683.05 | M30: 2615.3 | N30: 2164250 | O30: -2.08%
A31: 25 | B31: Others | C31: BAJAJFINSV | D31: 5596.45 | E31: 5584.82 | F31: 5551.63 | G31: 5506.82 | H31: 5473.63 | I31: 5629.63 | J31: 5662.82 | K31: 5707.63 | L31: 5618 | M31: 5540 | N31: 644250 | O31: 1.16%
A32: 26 | B32: Finance | C32: BAJFINANCE | D32: 2294.30 | E32: 2284.83 | F32: 2251.67 | G32: 2209.03 | H32: 2175.87 | I32: 2327.47 | J32: 2360.63 | K32: 2403.27 | L32: 2318 | M32: 2242.2 | N32: 7002500 | O32: 2.64%
A33: 27 | B33: Others | C33: BALKRISIND | D33: 960.75 | E33: 953.83 | F33: 942.92 | G33: 925.08 | H33: 914.17 | I33: 971.67 | J33: 982.58 | K33: 1000.42 | L33: 964.75 | M33: 936 | N33: 2745600 | O33: 1.21%
A34: 29 | B34: Banking | C34: BANKBARODA | D34: 109.15 | E34: 108.43 | F34: 107.37 | G34: 105.58 | H34: 104.52 | I34: 110.22 | J34: 111.28 | K34: 113.07 | L34: 109.5 | M34: 106.65 | N34: 73272000 | O34: 1.38%
A35: 30 | B35: Banking | C35: BANKINDIA | D35: 81.05 | E35: 82.13 | F35: 78.42 | G35: 75.78 | H35: 72.07 | I35: 84.77 | J35: 88.48 | K35: 91.12 | L35: 85.85 | M35: 79.5 | N35: 25170000 | O35: 23.71%
A36: 31 | B36: FMCG | C36: BATAINDIA | D36: 1016.00 | E36: 1016.87 | F36: 1005.23 | G36: 994.47 | H36: 982.83 | I36: 1027.63 | J36: 1039.27 | K36: 1050.03 | L36: 1028.5 | M36: 1006.1 | N36: 1461350 | O36: -0.71%
A37: 32 | B37: Capital_Goods | C37: BEL | D37: 94.75 | E37: 94.20 | F37: 93.10 | G37: 91.45 | H37: 90.35 | I37: 95.85 | J37: 96.95 | K37: 98.60 | L37: 95.3 | M37: 92.55 | N37: 22923150 | O37: 0.97%
A38: 33 | B38: Infrastructure | C38: BEML | D38: 726.30 | E38: 720.32 | F38: 708.98 | G38: 691.67 | H38: 680.33 | I38: 737.63 | J38: 748.97 | K38: 766.28 | L38: 731.65 | M38: 703 | N38: 1523000 | O38: -0.72%
A39: 34 | B39: Others | C39: BERGEPAINT | D39: 307.90 | E39: 306.30 | F39: 303.60 | G39: 299.30 | H39: 296.60 | I39: 310.60 | J39: 313.30 | K39: 317.60 | L39: 309 | M39: 302 | N39: 2536600 | O39: 6.56%
A40: 35 | B40: Finance | C40: BHARATFIN | D40: 925.25 | E40: 920.50 | F40: 913.05 | G40: 900.85 | H40: 893.40 | I40: 932.70 | J40: 940.15 | K40: 952.35 | L40: 927.95 | M40: 908.3 | N40: 7377000 | O40: -0.59%
A41: 36 | B41: Automobile | C41: BHARATFORG | D41: 590.60 | E41: 586.70 | F41: 581.40 | G41: 572.20 | H41: 566.90 | I41: 595.90 | J41: 601.20 | K41: 610.40 | L41: 592 | M41: 577.5 | N41: 7431600 | O41: -0.15%
A42: 37 | B42: Telecom | C42: BHARTIARTL | D42: 297.65 | E42: 296.85 | F42: 291.30 | G42: 284.95 | H42: 279.40 | I42: 303.20 | J42: 308.75 | K42: 315.10 | L42: 302.4 | M42: 290.5 | N42: 44164300 | O42: 0.22%
A43: 38 | B43: Capital_Goods | C43: BHEL | D43: 68.45 | E43: 68.45 | F43: 67.55 | G43: 66.65 | H43: 65.75 | I43: 69.35 | J43: 70.25 | K43: 71.15 | L43: 69.35 | M43: 67.55 | N43: 48900000 | O43: 3.43%
A44: 39 | B44: Pharma | C44: BIOCON | D44: 619.80 | E44: 620.10 | F44: 607.80 | G44: 595.80 | H44: 583.50 | I44: 632.10 | J44: 644.40 | K44: 656.40 | L44: 632.4 | M44: 608.1 | N44: 6047100 | O44: 3.54%
A45: 40 | B45: Automobile | C45: BOSCHLTD | D45: 19730.65 | E45: 19715.07 | F45: 19515.58 | G45: 19300.52 | H45: 19101.03 | I45: 19930.13 | J45: 20129.62 | K45: 20344.68 | L45: 19914.55 | M45: 19500 | N45: 126210 | O45: -0.75%
A46: 41 | B46: Oil_Gas | C46: BPCL | D46: 303.75 | E46: 301.38 | F46: 297.52 | G46: 291.28 | H46: 287.42 | I46: 307.62 | J46: 311.48 | K46: 317.72 | L46: 305.25 | M46: 295.15 | N46: 11761200 | O46: -0.15%
A47: 42 | B47: FMCG | C47: BRITANNIA | D47: 5842.40 | E47: 5792.75 | F47: 5716.50 | G47: 5590.60 | H47: 5514.35 | I47: 5918.65 | J47: 5994.90 | K47: 6120.80 | L47: 5869 | M47: 5666.85 | N47: 1465200 | O47: -1.55%
A48: 43 | B48: Pharma | C48: CADILAHC | D48: 356.60 | E48: 355.72 | F48: 351.53 | G48: 346.47 | H48: 342.28 | I48: 360.78 | J48: 364.97 | K48: 370.03 | L48: 359.9 | M48: 350.65 | N48: 8156800 | O48: -1.90%
A49: 44 | B49: Banking | C49: CANBK | D49: 244.75 | E49: 242.38 | F49: 237.77 | G49: 230.78 | H49: 226.17 | I49: 249.37 | J49: 253.98 | K49: 260.97 | L49: 247 | M49: 235.4 | N49: 8848000 | O49: -5.29%
A50: 45 | B50: Others | C50: CANFINHOME | D50: 283.25 | E50: 279.78 | F50: 274.82 | G50: 266.38 | H50: 261.42 | I50: 288.22 | J50: 293.18 | K50: 301.62 | L50: 284.75 | M50: 271.35 | N50: 3446100 | O50: 3.18%
A51: 46 | B51: Finance | C51: CAPF | D51: 481.25 | E51: 481.55 | F51: 474.50 | G51: 467.75 | H51: 460.70 | I51: 488.30 | J51: 495.35 | K51: 502.10 | L51: 488.6 | M51: 474.8 | N51: 6609800 | O51: -1.22%
A52: 47 | B52: Oil_Gas | C52: CASTROLIND | D52: 148.70 | E52: 147.58 | F52: 146.22 | G52: 143.73 | H52: 142.37 | I52: 150.07 | J52: 151.43 | K52: 153.92 | L52: 148.95 | M52: 145.1 | N52: 8347600 | O52: -0.80%
A53: 48 | B53: Automobile | C53: CEATLTD | D53: 1259.90 | E53: 1238.30 | F53: 1213.60 | G53: 1167.30 | H53: 1142.60 | I53: 1284.60 | J53: 1309.30 | K53: 1355.60 | L53: 1263 | M53: 1192 | N53: 892650 | O53: 9.22%
A54: 49 | B54: Textile | C54: CENTURYTEX | D54: 893.20 | E54: 888.80 | F54: 879.40 | G54: 865.60 | H54: 856.20 | I54: 902.60 | J54: 912.00 | K54: 925.80 | L54: 898.2 | M54: 875 | N54: 4982450 | O54: -0.77%
A55: 50 | B55: Power | C55: CESC | D55: 701.00 | E55: 696.20 | F55: 688.15 | G55: 675.30 | H55: 667.25 | I55: 709.05 | J55: 717.10 | K55: 729.95 | L55: 704.25 | M55: 683.35 | N55: 1950850 | O55: -2.23%
A56: 51 | B56: Power | C56: CGPOWER | D56: 35.60 | E56: 35.45 | F56: 35.00 | G56: 34.40 | H56: 33.95 | I56: 36.05 | J56: 36.50 | K56: 37.10 | L56: 35.9 | M56: 34.85 | N56: 44568000 | O56: 0.68%
A57: 52 | B57: Others | C57: CHENNPETRO | D57: 273.00 | E57: 272.30 | F57: 268.30 | G57: 263.60 | H57: 259.60 | I57: 277.00 | J57: 281.00 | K57: 285.70 | L57: 276.3 | M57: 267.6 | N57: 1062000 | O57: -4.32%
A58: 53 | B58: Others | C58: CHOLAFIN | D58: 1320.85 | E58: 1308.85 | F58: 1293.25 | G58: 1265.65 | H58: 1250.05 | I58: 1336.45 | J58: 1352.05 | K58: 1379.65 | L58: 1324.45 | M58: 1281.25 | N58: 696500 | O58: 8.66%
A59: 54 | B59: Pharma | C59: CIPLA | D59: 530.55 | E59: 530.95 | F59: 528.00 | G59: 525.45 | H59: 522.50 | I59: 533.50 | J59: 536.45 | K59: 539.00 | L59: 533.9 | M59: 528.4 | N59: 11002000 | O59: 0.39%
A60: 55 | B60: Others | C60: COALINDIA | D60: 265.80 | E60: 266.22 | F60: 264.33 | G60: 262.87 | H60: 260.98 | I60: 267.68 | J60: 269.57 | K60: 271.03 | L60: 268.1 | M60: 264.75 | N60: 26160200 | O60: -5.55%
A61: 56 | B61: FMCG | C61: COLPAL | D61: 1110.40 | E61: 1104.65 | F61: 1097.85 | G61: 1085.30 | H61: 1078.50 | I61: 1117.20 | J61: 1124.00 | K61: 1136.55 | L61: 1111.45 | M61: 1092.1 | N61: 1661100 | O61: -5.12%
A62: 57 | B62: Others | C62: CONCOR | D62: 672.40 | E62: 667.38 | F62: 648.77 | G62: 625.13 | H62: 606.52 | I62: 691.02 | J62: 709.63 | K62: 733.27 | L62: 686 | M62: 643.75 | N62: 3106250 | O62: 3.63%
A63: 58 | B63: Capital_Goods | C63: CUMMINSIND | D63: 786.85 | E63: 790.60 | F63: 775.25 | G63: 763.65 | H63: 748.30 | I63: 802.20 | J63: 817.55 | K63: 829.15 | L63: 805.95 | M63: 779 | N63: 1447600 | O63: -2.27%
A64: 59 | B64: FMCG | C64: DABUR | D64: 371.35 | E64: 371.22 | F64: 367.53 | G64: 363.72 | H64: 360.03 | I64: 375.03 | J64: 378.72 | K64: 382.53 | L64: 374.9 | M64: 367.4 | N64: 16187500 | O64: 3.48%
A65: 60 | B65: Cement | C65: DALMIABHA | D65: 2120.80 | E65: 2124.45 | F65: 2091.35 | G65: 2061.90 | H65: 2028.80 | I65: 2153.90 | J65: 2187.00 | K65: 2216.45 | L65: 2157.55 | M65: 2095 | N65: 456300 | O65: 5.55%
A66: 61 | B66: Banking | C66: DCBBANK | D66: 157.85 | E66: 157.22 | F66: 155.63 | G66: 153.42 | H66: 151.83 | I66: 159.43 | J66: 161.02 | K66: 163.23 | L66: 158.8 | M66: 155 | N66: 4594500 | O66: 7.81%
A67: 62 | B67: Finance | C67: DHFL | D67: 236.10 | E67: 235.62 | F67: 228.88 | G67: 221.67 | H67: 214.93 | I67: 242.83 | J67: 249.57 | K67: 256.78 | L67: 242.35 | M67: 228.4 | N67: 22281000 | O67: 0.36%
A68: 63 | B68: Media | C68: DISHTV | D68: 40.90 | E68: 40.67 | F68: 39.93 | G68: 38.97 | H68: 38.23 | I68: 41.63 | J68: 42.37 | K68: 43.33 | L68: 41.4 | M68: 39.7 | N68: 44120000 | O68: -0.14%
A69: 64 | B69: Pharma | C69: DIVISLAB | D69: 1536.50 | E69: 1523.43 | F69: 1501.87 | G69: 1467.23 | H69: 1445.67 | I69: 1558.07 | J69: 1579.63 | K69: 1614.27 | L69: 1545 | M69: 1488.8 | N69: 3708400 | O69: 1.40%
A70: 65 | B70: Realty | C70: DLF | D70: 172.35 | E70: 171.47 | F70: 169.18 | G70: 166.02 | H70: 163.73 | I70: 174.63 | J70: 176.92 | K70: 180.08 | L70: 173.75 | M70: 168.3 | N70: 25725600 | O70: 2.98%
A71: 66 | B71: Pharma | C71: DRREDDY | D71: 2447.05 | E71: 2441.30 | F71: 2425.90 | G71: 2404.75 | H71: 2389.35 | I71: 2462.45 | J71: 2477.85 | K71: 2499.00 | L71: 2456.7 | M71: 2420.15 | N71: 4007750 | O71: -2.20%
A72: 67 | B72: Automobile | C72: EICHERMOT | D72: 23297.75 | E72: 22651.92 | F72: 21918.88 | G72: 20540.02 | H72: 19806.98 | I72: 24030.78 | J72: 24763.82 | K72: 26142.68 | L72: 23384.95 | M72: 21273.05 | N72: 297100 | O72: -0.90%
A73: 68 | B73: Infrastructure | C73: ENGINERSIN | D73: 121.65 | E73: 121.40 | F73: 120.25 | G73: 118.85 | H73: 117.70 | I73: 122.80 | J73: 123.95 | K73: 125.35 | L73: 122.55 | M73: 120 | N73: 5974500 | O73: 0.00%
A74: 69 | B74: Finance | C74: EQUITAS | D74: 106.95 | E74: 107.63 | F74: 105.42 | G74: 103.88 | H74: 101.67 | I74: 109.17 | J74: 111.38 | K74: 112.92 | L74: 109.85 | M74: 106.1 | N74: 14720000 | O74: -2.77%
A75: 70 | B75: Automobile | C75: ESCORTS | D75: 663.75 | E75: 656.87 | F75: 645.43 | G75: 627.12 | H75: 615.68 | I75: 675.18 | J75: 686.62 | K75: 704.93 | L75: 668.3 | M75: 638.55 | N75: 4603500 | O75: 3.46%
A76: 71 | B76: Automobile | C76: EXIDEIND | D76: 249.25 | E76: 248.88 | F76: 245.52 | G76: 241.78 | H76: 238.42 | I76: 252.62 | J76: 255.98 | K76: 259.72 | L76: 252.25 | M76: 245.15 | N76: 7294000 | O76: 4.71%
A77: 72 | B77: Banking | C77: FEDERALBNK | D77: 79.20 | E77: 79.15 | F77: 77.85 | G77: 76.50 | H77: 75.20 | I77: 80.50 | J77: 81.80 | K77: 83.15 | L77: 80.45 | M77: 77.8 | N77: 44799000 | O77: 3.50%
A78: 73 | B78: Oil_Gas | C78: GAIL | D78: 367.00 | E78: 366.70 | F78: 363.25 | G78: 359.50 | H78: 356.05 | I78: 370.45 | J78: 373.90 | K78: 377.65 | L78: 370.15 | M78: 362.95 | N78: 20341209 | O78: -0.39%
A79: 74 | B79: Pharma | C79: GLENMARK | D79: 679.10 | E79: 668.38 | F79: 654.87 | G79: 630.63 | H79: 617.12 | I79: 692.62 | J79: 706.13 | K79: 730.37 | L79: 681.9 | M79: 644.15 | N79: 4182000 | O79: 6.09%
A80: 75 | B80: Infrastructure | C80: GMRINFRA | D80: 15.95 | E80: 16.00 | F80: 15.70 | G80: 15.45 | H80: 15.15 | I80: 16.25 | J80: 16.55 | K80: 16.80 | L80: 16.3 | M80: 15.75 | N80: 181350000 | O80: 2.49%
A81: 76 | B81: Others | C81: GODFRYPHLP | D81: 839.05 | E81: 834.37 | F81: 814.73 | G81: 790.42 | H81: 770.78 | I81: 858.68 | J81: 878.32 | K81: 902.63 | L81: 854 | M81: 810.05 | N81: 505400 | O81: 0.14%
A82: 77 | B82: FMCG | C82: GODREJCP | D82: 686.45 | E82: 683.18 | F82: 675.37 | G82: 664.28 | H82: 656.47 | I82: 694.27 | J82: 702.08 | K82: 713.17 | L82: 691 | M82: 672.1 | N82: 5602800 | O82: 6.22%
A83: 78 | B83: FMCG | C83: GODREJIND | D83: 499.85 | E83: 490.40 | F83: 473.70 | G83: 447.55 | H83: 430.85 | I83: 516.55 | J83: 533.25 | K83: 559.40 | L83: 507.1 | M83: 464.25 | N83: 2545500 | O83: 18.18%
A84: 79 | B84: Pharma | C84: GRANULES | D84: 105.70 | E84: 104.00 | F84: 101.90 | G84: 98.10 | H84: 96.00 | I84: 107.80 | J84: 109.90 | K84: 113.70 | L84: 106.1 | M84: 100.2 | N84: 12585000 | O84: 0.08%
A85: 80 | B85: Cement | C85: GRASIM | D85: 881.35 | E85: 874.92 | F85: 865.43 | G85: 849.52 | H85: 840.03 | I85: 890.83 | J85: 900.32 | K85: 916.23 | L85: 884.4 | M85: 859 | N85: 8589000 | O85: 4.26%
A86: 81 | B86: Others | C86: GSFC | D86: 109.45 | E86: 109.12 | F86: 107.83 | G86: 106.22 | H86: 104.93 | I86: 110.73 | J86: 112.02 | K86: 113.63 | L86: 110.4 | M86: 107.5 | N86: 16218600 | O86: 3.12%
A87: 82 | B87: Others | C87: HAVELLS | D87: 667.30 | E87: 662.93 | F87: 655.27 | G87: 643.23 | H87: 635.57 | I87: 674.97 | J87: 682.63 | K87: 694.67 | L87: 670.6 | M87: 650.9 | N87: 5187000 | O87: 2.41%
A88: 83 | B88: Others | C88: HCC | D88: 14.00 | E88: 13.87 | F88: 13.53 | G88: 13.07 | H88: 12.73 | I88: 14.33 | J88: 14.67 | K88: 15.13 | L88: 14.2 | M88: 13.4 | N88: 23634000 | O88: -3.53%
A89: 84 | B89: Technology | C89: HCLTECH | D89: 1037.65 | E89: 1042.17 | F89: 1029.58 | G89: 1021.52 | H89: 1008.93 | I89: 1050.23 | J89: 1062.82 | K89: 1070.88 | L89: 1054.75 | M89: 1034.1 | N89: 7845600 | O89: 0.43%
A90: 85 | B90: Finance | C90: HDFC | D90: 1826.00 | E90: 1814.18 | F90: 1798.62 | G90: 1771.23 | H90: 1755.67 | I90: 1841.57 | J90: 1857.13 | K90: 1884.52 | L90: 1829.75 | M90: 1786.8 | N90: 23787000 | O90: 0.38%
A91: 86 | B91: Banking | C91: HDFCBANK | D91: 1936.80 | E91: 1932.50 | F91: 1920.00 | G91: 1903.20 | H91: 1890.70 | I91: 1949.30 | J91: 1961.80 | K91: 1978.60 | L91: 1945 | M91: 1915.7 | N91: 16171750 | O91: 1.53%
A92: 88 | B92: Automobile | C92: HEROMOTOCO | D92: 2878.45 | E92: 2861.30 | F92: 2827.15 | G92: 2775.85 | H92: 2741.70 | I92: 2912.60 | J92: 2946.75 | K92: 2998.05 | L92: 2895.45 | M92: 2810 | N92: 1348200 | O92: 0.46%
A93: 89 | B93: Technology | C93: HEXAWARE | D93: 316.35 | E93: 316.18 | F93: 312.22 | G93: 308.08 | H93: 304.12 | I93: 320.32 | J93: 324.28 | K93: 328.42 | L93: 320.15 | M93: 312.05 | N93: 6090000 | O93: -3.06%
A94: 90 | B94: Metals | C94: HINDALCO | D94: 232.40 | E94: 230.33 | F94: 227.42 | G94: 222.43 | H94: 219.52 | I94: 235.32 | J94: 238.23 | K94: 243.22 | L94: 233.25 | M94: 225.35 | N94: 35119000 | O94: 4.71%
A95: 91 | B95: Oil_Gas | C95: HINDPETRO | D95: 233.75 | E95: 233.30 | F95: 229.90 | G95: 226.05 | H95: 222.65 | I95: 237.15 | J95: 240.55 | K95: 244.40 | L95: 236.7 | M95: 229.45 | N95: 19704825 | O95: 0.58%
A96: 92 | B96: FMCG | C96: HINDUNILVR | D96: 1675.70 | E96: 1666.30 | F96: 1650.70 | G96: 1625.70 | H96: 1610.10 | I96: 1691.30 | J96: 1706.90 | K96: 1731.90 | L96: 1681.9 | M96: 1641.3 | N96: 7701600 | O96: -0.18%
A97: 93 | B97: Metals | C97: HINDZINC | D97: 266.15 | E97: 265.10 | F97: 263.45 | G97: 260.75 | H97: 259.10 | I97: 267.80 | J97: 269.45 | K97: 272.15 | L97: 266.75 | M97: 262.4 | N97: 6076800 | O97: -1.35%
A98: 94 | B98: Finance | C98: IBULHSGFIN | D98: 845.50 | E98: 851.58 | F98: 835.87 | G98: 826.23 | H98: 810.52 | I98: 861.22 | J98: 876.93 | K98: 886.57 | L98: 867.3 | M98: 841.95 | N98: 17629500 | O98: -0.20%
A99: 95 | B99: Banking | C99: ICICIBANK | D99: 361.10 | E99: 357.42 | F99: 352.73 | G99: 344.37 | H99: 339.68 | I99: 365.78 | J99: 370.47 | K99: 378.83 | L99: 362.1 | M99: 349.05 | N99: 103691500 | O99: 6.32%
A100: 96 | B100: Others | C100: ICICIPRULI | D100: 356.70 | E100: 353.80 | F100: 345.60 | G100: 334.50 | H100: 326.30 | I100: 364.90 | J100: 373.10 | K100: 384.20 | L100: 362 | M100: 342.7 | N100: 3725800 | O100: 17.03%
A101: 97 | B101: Banking | C101: IDBI | D101: 60.10 | E101: 60.23 | F101: 59.77 | G101: 59.43 | H101: 58.97 | I101: 60.57 | J101: 61.03 | K101: 61.37 | L101: 60.7 | M101: 59.9 | N101: 39210000 | O101: -0.43%
A102: 98 | B102: Telecom | C102: IDEA | D102: 40.80 | E102: 40.27 | F102: 39.43 | G102: 38.07 | H102: 37.23 | I102: 41.63 | J102: 42.47 | K102: 43.83 | L102: 41.1 | M102: 38.9 | N102: 132178000 | O102: 0.96%
A103: 99 | B103: Finance | C103: IDFC | D103: 38.00 | E103: 37.90 | F103: 37.50 | G103: 37.00 | H103: 36.60 | I103: 38.40 | J103: 38.80 | K103: 39.30 | L103: 38.3 | M103: 37.4 | N103: 108319200 | O103: -0.06%
A104: 100 | B104: Banking | C104: IDFCBANK | D104: 35.45 | E104: 35.48 | F104: 34.97 | G104: 34.48 | H104: 33.97 | I104: 35.97 | J104: 36.48 | K104: 36.97 | L104: 36 | M104: 35 | N104: 124624000 | O104: 1.53%
A105: 101 | B105: Finance | C105: IFCI | D105: 14.00 | E105: 14.00 | F105: 13.80 | G105: 13.60 | H105: 13.40 | I105: 14.20 | J105: 14.40 | K105: 14.60 | L105: 14.2 | M105: 13.8 | N105: 50515000 | O105: 0.27%
A106: 102 | B106: Oil_Gas | C106: IGL | D106: 272.85 | E106: 272.97 | F106: 269.93 | G106: 267.02 | H106: 263.98 | I106: 275.88 | J106: 278.92 | K106: 281.83 | L106: 276 | M106: 270.05 | N106: 4378000 | O106: 18.89%
A107: 103 | B107: Cement | C107: INDIACEM | D107: 92.00 | E107: 91.02 | F107: 89.73 | G107: 87.47 | H107: 86.18 | I107: 93.28 | J107: 94.57 | K107: 96.83 | L107: 92.3 | M107: 88.75 | N107: 18475000 | O107: 4.75%
A108: 104 | B108: Banking | C108: INDIANB | D108: 224.05 | E108: 223.92 | F108: 220.83 | G108: 217.62 | H108: 214.53 | I108: 227.13 | J108: 230.22 | K108: 233.43 | L108: 227 | M108: 220.7 | N108: 6208000 | O108: -0.48%
A109: 105 | B109: Others | C109: INDIGO | D109: 978.70 | E109: 976.83 | F109: 961.92 | G109: 945.13 | H109: 930.22 | I109: 993.62 | J109: 1008.53 | K109: 1025.32 | L109: 991.75 | M109: 960.05 | N109: 3114000 | O109: -4.21%
A110: 106 | B110: Banking | C110: INDUSINDBK | D110: 1491.55 | E110: 1486.77 | F110: 1472.93 | G110: 1454.32 | H110: 1440.48 | I110: 1505.38 | J110: 1519.22 | K110: 1537.83 | L110: 1500.6 | M110: 1468.15 | N110: 5951700 | O110: -0.18%
A111: 107 | B111: Technology | C111: INFIBEAM | D111: 55.55 | E111: 55.17 | F111: 53.08 | G111: 50.62 | H111: 48.53 | I111: 57.63 | J111: 59.72 | K111: 62.18 | L111: 57.25 | M111: 52.7 | N111: 13188000 | O111: 2.04%
A112: 108 | B112: Telecom | C112: INFRATEL | D112: 259.45 | E112: 258.63 | F112: 254.92 | G112: 250.38 | H112: 246.67 | I112: 263.17 | J112: 266.88 | K112: 271.42 | L112: 262.35 | M112: 254.1 | N112: 7505500 | O112: -0.67%
A113: 109 | B113: Technology | C113: INFY | D113: 668.60 | E113: 665.75 | F113: 660.70 | G113: 652.80 | H113: 647.75 | I113: 673.65 | J113: 678.70 | K113: 686.60 | L113: 670.8 | M113: 657.85 | N113: 38576400 | O113: -0.33%
A114: 110 | B114: Oil_Gas | C114: IOC | D114: 141.55 | E114: 140.22 | F114: 138.33 | G114: 135.12 | H114: 133.23 | I114: 143.43 | J114: 145.32 | K114: 148.53 | L114: 142.1 | M114: 137 | N114: 28749500 | O114: -3.91%
A115: 111 | B115: Infrastructure | C115: IRB | D115: 141.95 | E115: 140.02 | F115: 137.53 | G115: 133.12 | H115: 130.63 | I115: 144.43 | J115: 146.92 | K115: 151.33 | L115: 142.5 | M115: 135.6 | N115: 12148200 | O115: -0.65%
A116: 112 | B116: FMCG | C116: ITC | D116: 278.15 | E116: 277.02 | F116: 274.93 | G116: 271.72 | H116: 269.63 | I116: 280.23 | J116: 282.32 | K116: 285.53 | L116: 279.1 | M116: 273.8 | N116: 73694400 | O116: -0.56%
A117: 113 | B117: Others | C117: JETAIRWAYS | D117: 255.25 | E117: 249.97 | F117: 241.48 | G117: 227.72 | H117: 219.23 | I117: 263.73 | J117: 272.22 | K117: 285.98 | L117: 258.45 | M117: 236.2 | N117: 7115200 | O117: 7.58%
A118: 114 | B118: Metals | C118: JINDALSTEL | D118: 183.10 | E118: 180.53 | F118: 176.72 | G118: 170.33 | H118: 166.52 | I118: 186.92 | J118: 190.73 | K118: 197.12 | L118: 184.35 | M118: 174.15 | N118: 22817250 | O118: -5.52%
A119: 115 | B119: Others | C119: JISLJALEQS | D119: 73.55 | E119: 73.43 | F119: 71.22 | G119: 68.88 | H119: 66.67 | I119: 75.77 | J119: 77.98 | K119: 80.32 | L119: 75.65 | M119: 71.1 | N119: 32499000 | O119: 1.92%
A120: 116 | B120: Realty | C120: JPASSOCIAT | D120: 6.90 | E120: 6.87 | F120: 6.78 | G120: 6.67 | H120: 6.58 | I120: 6.98 | J120: 7.07 | K120: 7.18 | L120: 6.95 | M120: 6.75 | N120: 113592000 | O120: 0.44%
A121: 117 | B121: Metals | C121: JSWSTEEL | D121: 349.70 | E121: 347.73 | F121: 344.77 | G121: 339.83 | H121: 336.87 | I121: 352.67 | J121: 355.63 | K121: 360.57 | L121: 350.7 | M121: 342.8 | N121: 47095500 | O121: -0.01%
A122: 118 | B122: Others | C122: JUBLFOOD | D122: 1151.65 | E122: 1130.22 | F122: 1103.43 | G122: 1055.22 | H122: 1028.43 | I122: 1178.43 | J122: 1205.22 | K122: 1253.43 | L122: 1157 | M122: 1082 | N122: 2681500 | O122: -8.98%
A123: 119 | B123: Others | C123: JUSTDIAL | D123: 491.55 | E123: 493.07 | F123: 482.88 | G123: 474.22 | H123: 464.03 | I123: 501.73 | J123: 511.92 | K123: 520.58 | L123: 503.25 | M123: 484.4 | N123: 2332400 | O123: -6.25%
A124: 120 | B124: Others | C124: KAJARIACER | D124: 439.75 | E124: 436.75 | F124: 432.00 | G124: 424.25 | H124: 419.50 | I124: 444.50 | J124: 449.25 | K124: 457.00 | L124: 441.5 | M124: 429 | N124: 1993000 | O124: 1.37%
A125: 121 | B125: Banking | C125: KOTAKBANK | D125: 1164.10 | E125: 1159.15 | F125: 1148.30 | G125: 1132.50 | H125: 1121.65 | I125: 1174.95 | J125: 1185.80 | K125: 1201.60 | L125: 1170 | M125: 1143.35 | N125: 11443200 | O125: 1.13%
A126: 122 | B126: Technology | C126: KPIT | D126: 213.70 | E126: 213.82 | F126: 210.08 | G126: 206.47 | H126: 202.73 | I126: 217.43 | J126: 221.17 | K126: 224.78 | L126: 217.55 | M126: 210.2 | N126: 7474500 | O126: 0.03%
A127: 123 | B127: Others | C127: KSCL | D127: 518.25 | E127: 508.85 | F127: 495.80 | G127: 473.35 | H127: 460.30 | I127: 531.30 | J127: 544.35 | K127: 566.80 | L127: 521.9 | M127: 486.4 | N127: 819000 | O127: 3.61%
A128: 124 | B128: Banking | C128: KTKBANK | D128: 106.80 | E128: 105.80 | F128: 104.35 | G128: 101.90 | H128: 100.45 | I128: 108.25 | J128: 109.70 | K128: 112.15 | L128: 107.25 | M128: 103.35 | N128: 15259900 | O128: 0.44%
A129: 125 | B129: Finance | C129: L&TFH | D129: 135.85 | E129: 134.42 | F129: 131.63 | G129: 127.42 | H129: 124.63 | I129: 138.63 | J129: 141.42 | K129: 145.63 | L129: 137.2 | M129: 130.2 | N129: 23269500 | O129: -1.24%
A130: 126 | B130: Finance | C130: LICHSGFIN | D130: 438.95 | E130: 436.48 | F130: 432.77 | G130: 426.58 | H130: 422.87 | I130: 442.67 | J130: 446.38 | K130: 452.57 | L130: 440.2 | M130: 430.3 | N130: 9049700 | O130: -1.39%
A131: 127 | B131: Capital_Goods | C131: LT | D131: 1395.20 | E131: 1385.03 | F131: 1370.27 | G131: 1345.33 | H131: 1330.57 | I131: 1409.97 | J131: 1424.73 | K131: 1449.67 | L131: 1399.8 | M131: 1360.1 | N131: 10479000 | O131: 2.23%
A132: 128 | B132: Pharma | C132: LUPIN | D132: 856.20 | E132: 857.50 | F132: 847.45 | G132: 838.70 | H132: 828.65 | I132: 866.25 | J132: 876.30 | K132: 885.05 | L132: 867.55 | M132: 848.75 | N132: 8762600 | O132: -0.39%
A133: 129 | B133: Automobile | C133: M&M | D133: 793.65 | E133: 788.42 | F133: 779.83 | G133: 766.02 | H133: 757.43 | I133: 802.23 | J133: 810.82 | K133: 824.63 | L133: 797 | M133: 774.6 | N133: 15104000 | O133: 3.37%
A134: 130 | B134: Finance | C134: M&MFIN | D134: 436.40 | E134: 432.87 | F134: 424.28 | G134: 412.17 | H134: 403.58 | I134: 444.98 | J134: 453.57 | K134: 465.68 | L134: 441.45 | M134: 420.75 | N134: 8906250 | O134: -0.03%
A135: 131 | B135: Others | C135: MANAPPURAM | D135: 85.05 | E135: 84.47 | F135: 83.68 | G135: 82.32 | H135: 81.53 | I135: 85.83 | J135: 86.62 | K135: 87.98 | L135: 85.25 | M135: 83.1 | N135: 13884000 | O135: -0.34%
A136: 132 | B136: FMCG | C136: MARICO | D136: 339.55 | E136: 340.03 | F136: 337.07 | G136: 334.58 | H136: 331.62 | I136: 342.52 | J136: 345.48 | K136: 347.97 | L136: 343 | M136: 337.55 | N136: 8283600 | O136: -0.65%
A137: 133 | B137: Automobile | C137: MARUTI | D137: 7171.15 | E137: 7132.85 | F137: 7073.95 | G137: 6976.75 | H137: 6917.85 | I137: 7230.05 | J137: 7288.95 | K137: 7386.15 | L137: 7191.75 | M137: 7035.65 | N137: 2484600 | O137: 1.04%
A138: 134 | B138: FMCG | C138: MCDOWELL-N | D138: 641.50 | E138: 638.83 | F138: 633.67 | G138: 625.83 | H138: 620.67 | I138: 646.67 | J138: 651.83 | K138: 659.67 | L138: 644 | M138: 631 | N138: 10050000 | O138: -1.58%
A139: 135 | B139: Others | C139: MCX | D139: 714.10 | E139: 710.40 | F139: 702.80 | G139: 691.50 | H139: 683.90 | I139: 721.70 | J139: 729.30 | K139: 740.60 | L139: 718 | M139: 699.1 | N139: 3392200 | O139: -0.64%
A140: 136 | B140: Finance | C140: MFSL | D140: 409.10 | E140: 404.75 | F140: 399.10 | G140: 389.10 | H140: 383.45 | I140: 414.75 | J140: 420.40 | K140: 430.40 | L140: 410.4 | M140: 394.75 | N140: 2170800 | O140: -0.77%
A141: 137 | B141: Others | C141: MGL | D141: 856.45 | E141: 855.10 | F141: 845.50 | G141: 834.55 | H141: 824.95 | I141: 866.05 | J141: 875.65 | K141: 886.60 | L141: 864.7 | M141: 844.15 | N141: 1746600 | O141: -4.90%
A142: 138 | B142: Technology | C142: MINDTREE | D142: 846.30 | E142: 850.20 | F142: 832.70 | G142: 819.10 | H142: 801.60 | I142: 863.80 | J142: 881.30 | K142: 894.90 | L142: 867.7 | M142: 836.6 | N142: 3096000 | O142: -1.70%
A143: 139 | B143: Automobile | C143: MOTHERSUMI | D143: 166.20 | E143: 164.87 | F143: 162.33 | G143: 158.47 | H143: 155.93 | I143: 168.73 | J143: 171.27 | K143: 175.13 | L143: 167.4 | M143: 161 | N143: 26338500 | O143: 4.02%
A144: 140 | B144: Automobile | C144: MRF | D144: 66094.50 | E144: 65764.83 | F144: 65130.67 | G144: 64166.83 | H144: 63532.67 | I144: 66728.67 | J144: 67362.83 | K144: 68326.67 | L144: 66399 | M144: 64801 | N144: 24340 | O144: 5.46%
A145: 141 | B145: Others | C145: MRPL | D145: 81.80 | E145: 81.42 | F145: 80.33 | G145: 78.87 | H145: 77.78 | I145: 82.88 | J145: 83.97 | K145: 85.43 | L145: 82.5 | M145: 79.95 | N145: 4144500 | O145: -2.75%
A146: 142 | B146: Finance | C146: MUTHOOTFIN | D146: 450.75 | E146: 447.68 | F146: 443.07 | G146: 435.38 | H146: 430.77 | I146: 455.37 | J146: 459.98 | K146: 467.67 | L146: 452.3 | M146: 440 | N146: 1741500 | O146: 2.11%
A147: 143 | B147: Others | C147: NATIONALUM | D147: 67.50 | E147: 67.78 | F147: 65.42 | G147: 63.33 | H147: 60.97 | I147: 69.87 | J147: 72.23 | K147: 74.32 | L147: 70.15 | M147: 65.7 | N147: 31376000 | O147: 0.74%
A148: 144 | B148: Others | C148: NBCC | D148: 65.50 | E148: 65.10 | F148: 63.55 | G148: 61.60 | H148: 60.05 | I148: 67.05 | J148: 68.60 | K148: 70.55 | L148: 66.65 | M148: 63.15 | N148: 21438000 | O148: -0.76%
A149: 145 | B149: Infrastructure | C149: NCC | D149: 90.25 | E149: 87.80 | F149: 84.70 | G149: 79.15 | H149: 76.05 | I149: 93.35 | J149: 96.45 | K149: 102.00 | L149: 90.9 | M149: 82.25 | N149: 50824000 | O149: 9.08%
A150: 146 | B150: Others | C150: NESTLEIND | D150: 10190.75 | E150: 10185.90 | F150: 10114.85 | G150: 10038.95 | H150: 9967.90 | I150: 10261.80 | J150: 10332.85 | K150: 10408.75 | L150: 10256.95 | M150: 10110 | N150: 333100 | O150: 1.63%
A151: 147 | B151: Power | C151: NHPC | D151: 26.75 | E151: 26.58 | F151: 26.22 | G151: 25.68 | H151: 25.32 | I151: 27.12 | J151: 27.48 | K151: 28.02 | L151: 26.95 | M151: 26.05 | N151: 23355000 | O151: 6.00%
A152: 148 | B152: Technology | C152: NIITTECH | D152: 1179.70 | E152: 1185.47 | F152: 1158.53 | G152: 1137.37 | H152: 1110.43 | I152: 1206.63 | J152: 1233.57 | K152: 1254.73 | L152: 1212.4 | M152: 1164.3 | N152: 1587000 | O152: -3.56%
A153: 149 | B153: Metals | C153: NMDC | D153: 107.95 | E153: 107.28 | F153: 106.07 | G153: 104.18 | H153: 102.97 | I153: 109.17 | J153: 110.38 | K153: 112.27 | L153: 108.5 | M153: 105.4 | N153: 21006000 | O153: -1.35%
A154: 150 | B154: Power | C154: NTPC | D154: 156.70 | E154: 155.75 | F154: 153.70 | G154: 150.70 | H154: 148.65 | I154: 158.75 | J154: 160.80 | K154: 163.80 | L154: 157.8 | M154: 152.75 | N154: 33736000 | O154: -2.80%
A155: 151 | B155: Technology | C155: OFSS | D155: 3517.95 | E155: 3496.70 | F155: 3445.00 | G155: 3372.05 | H155: 3320.35 | I155: 3569.65 | J155: 3621.35 | K155: 3694.30 | L155: 3548.4 | M155: 3423.75 | N155: 200700 | O155: -1.62%
A156: 152 | B156: Oil_Gas | C156: OIL | D156: 200.35 | E156: 201.10 | F156: 197.25 | G156: 194.15 | H156: 190.30 | I156: 204.20 | J156: 208.05 | K156: 211.15 | L156: 204.95 | M156: 198 | N156: 3144075 | O156: 5.96%
A157: 153 | B157: Oil_Gas | C157: ONGC | D157: 156.90 | E157: 156.33 | F157: 154.77 | G157: 152.63 | H157: 151.07 | I157: 158.47 | J157: 160.03 | K157: 162.17 | L157: 157.9 | M157: 154.2 | N157: 39180000 | O157: -2.94%
A158: 154 | B158: Banking | C158: ORIENTBANK | D158: 83.25 | E158: 81.92 | F158: 79.83 | G158: 76.42 | H158: 74.33 | I158: 85.33 | J158: 87.42 | K158: 90.83 | L158: 84 | M158: 78.5 | N158: 9941000 | O158: -2.97%
A159: 155 | B159: Textile | C159: PAGEIND | D159: 28723.95 | E159: 28714.65 | F159: 28479.30 | G159: 28234.65 | H159: 27999.30 | I159: 28959.30 | J159: 29194.65 | K159: 29439.30 | L159: 28950 | M159: 28470 | N159: 149950 | O159: 0.69%
A160: 156 | B160: Others | C160: PCJEWELLER | D160: 90.25 | E160: 90.05 | F160: 87.60 | G160: 84.95 | H160: 82.50 | I160: 92.70 | J160: 95.15 | K160: 97.80 | L160: 92.5 | M160: 87.4 | N160: 8346000 | O160: -1.01%
A161: 157 | B161: Pharma | C161: PEL | D161: 2295.60 | E161: 2279.38 | F161: 2246.57 | G161: 2197.53 | H161: 2164.72 | I161: 2328.42 | J161: 2361.23 | K161: 2410.27 | L161: 2312.2 | M161: 2230.35 | N161: 3102748 | O161: -0.28%
A162: 158 | B162: Oil_Gas | C162: PETRONET | D162: 218.30 | E162: 216.52 | F162: 213.78 | G162: 209.27 | H162: 206.53 | I162: 221.03 | J162: 223.77 | K162: 228.28 | L162: 219.25 | M162: 212 | N162: 12393000 | O162: -0.34%
A163: 159 | B163: Finance | C163: PFC | D163: 102.85 | E163: 101.95 | F163: 100.10 | G163: 97.35 | H163: 95.50 | I163: 104.70 | J163: 106.55 | K163: 109.30 | L163: 103.8 | M163: 99.2 | N163: 29804400 | O163: 3.93%
A164: 160 | B164: FMCG | C164: PIDILITIND | D164: 1057.80 | E164: 1047.23 | F164: 1028.57 | G164: 999.33 | H164: 980.67 | I164: 1076.47 | J164: 1095.13 | K164: 1124.37 | L164: 1065.9 | M164: 1018 | N164: 3386500 | O164: 0.89%
A165: 161 | B165: Banking | C165: PNB | D165: 70.25 | E165: 69.78 | F165: 69.07 | G165: 67.88 | H165: 67.17 | I165: 70.97 | J165: 71.68 | K165: 72.87 | L165: 70.5 | M165: 68.6 | N165: 102981500 | O165: 0.44%
A166: 162 | B166: Power | C166: POWERGRID | D166: 184.95 | E166: 185.60 | F166: 182.95 | G166: 180.95 | H166: 178.30 | I166: 187.60 | J166: 190.25 | K166: 192.25 | L166: 188.25 | M166: 183.6 | N166: 37908000 | O166: 4.78%
A167: 163 | B167: Power | C167: PTC | D167: 77.40 | E167: 77.32 | F167: 75.63 | G167: 73.87 | H167: 72.18 | I167: 79.08 | J167: 80.77 | K167: 82.53 | L167: 79 | M167: 75.55 | N167: 8720000 | O167: -1.09%
A168: 164 | B168: Others | C168: PVR | D168: 1402.85 | E168: 1404.37 | F168: 1391.73 | G168: 1380.62 | H168: 1367.98 | I168: 1415.48 | J168: 1428.12 | K168: 1439.23 | L168: 1417 | M168: 1393.25 | N168: 1220400 | O168: 0.99%
A169: 165 | B169: Cement | C169: RAMCOCEM | D169: 608.90 | E169: 605.73 | F169: 599.17 | G169: 589.43 | H169: 582.87 | I169: 615.47 | J169: 622.03 | K169: 631.77 | L169: 612.3 | M169: 596 | N169: 698400 | O169: 6.59%
A170: 166 | B170: Others | C170: RAYMOND | D170: 775.70 | E170: 768.27 | F170: 759.03 | G170: 742.37 | H170: 733.13 | I170: 784.93 | J170: 794.17 | K170: 810.83 | L170: 777.5 | M170: 751.6 | N170: 3924800 | O170: 0.08%
A171: 167 | B171: Banking | C171: RBLBANK | D171: 557.00 | E171: 553.48 | F171: 543.62 | G171: 530.23 | H171: 520.37 | I171: 566.87 | J171: 576.73 | K171: 590.12 | L171: 563.35 | M171: 540.1 | N171: 6990000 | O171: 6.53%
A172: 168 | B172: Telecom | C172: RCOM | D172: 13.65 | E172: 13.58 | F172: 13.27 | G172: 12.88 | H172: 12.57 | I172: 13.97 | J172: 14.28 | K172: 14.67 | L172: 13.9 | M172: 13.2 | N172: 81308000 | O172: 0.48%
A173: 169 | B173: Power | C173: RECLTD | D173: 124.45 | E173: 123.85 | F173: 121.70 | G173: 118.95 | H173: 116.80 | I173: 126.60 | J173: 128.75 | K173: 131.50 | L173: 126 | M173: 121.1 | N173: 35016000 | O173: 3.37%
A174: 170 | B174: Finance | C174: RELCAPITAL | D174: 260.55 | E174: 258.12 | F174: 252.93 | G174: 245.32 | H174: 240.13 | I174: 265.73 | J174: 270.92 | K174: 278.53 | L174: 263.3 | M174: 250.5 | N174: 11217000 | O174: 0.43%
A175: 171 | B175: Oil_Gas | C175: RELIANCE | D175: 1103.35 | E175: 1093.78 | F175: 1080.82 | G175: 1058.28 | H175: 1045.32 | I175: 1116.32 | J175: 1129.28 | K175: 1151.82 | L175: 1106.75 | M175: 1071.25 | N175: 46495500 | O175: -1.24%
A176: 172 | B176: Power | C176: RELINFRA | D176: 358.00 | E176: 355.47 | F176: 343.83 | G176: 329.67 | H176: 318.03 | I176: 369.63 | J176: 381.27 | K176: 395.43 | L176: 367.1 | M176: 341.3 | N176: 6925100 | O176: 2.23%
A177: 173 | B177: Others | C177: REPCOHOME | D177: 408.50 | E177: 406.38 | F177: 401.12 | G177: 393.73 | H177: 388.47 | I177: 413.77 | J177: 419.03 | K177: 426.42 | L177: 411.65 | M177: 399 | N177: 524700 | O177: -0.51%
A178: 174 | B178: Power | C178: RPOWER | D178: 30.60 | E178: 30.37 | F178: 29.98 | G178: 29.37 | H178: 28.98 | I178: 30.98 | J178: 31.37 | K178: 31.98 | L178: 30.75 | M178: 29.75 | N178: 45790000 | O178: 1.91%
A179: 175 | B179: Metals | C179: SAIL | D179: 64.95 | E179: 65.07 | F179: 64.23 | G179: 63.52 | H179: 62.68 | I179: 65.78 | J179: 66.62 | K179: 67.33 | L179: 65.9 | M179: 64.35 | N179: 73752000 | O179: 3.24%
A180: 176 | B180: Banking | C180: SBIN | D180: 279.45 | E180: 278.13 | F180: 275.37 | G180: 271.28 | H180: 268.52 | I180: 282.22 | J180: 284.98 | K180: 289.07 | L180: 280.9 | M180: 274.05 | N180: 89517000 | O180: 4.48%
A181: 177 | B181: Cement | C181: SHREECEM | D181: 15208.90 | E181: 15138.80 | F181: 14791.60 | G181: 14374.30 | H181: 14027.10 | I181: 15556.10 | J181: 15903.30 | K181: 16320.60 | L181: 15486 | M181: 14721.5 | N181: 136850 | O181: -4.37%
A182: 178 | B182: Capital_Goods | C182: SIEMENS | D182: 912.50 | E182: 915.68 | F182: 898.87 | G182: 885.23 | H182: 868.42 | I182: 929.32 | J182: 946.13 | K182: 959.77 | L182: 932.5 | M182: 902.05 | N182: 1249100 | O182: 3.87%
A183: 179 | B183: Banking | C183: SOUTHBANK | D183: 15.15 | E183: 15.05 | F183: 14.90 | G183: 14.65 | H183: 14.50 | I183: 15.30 | J183: 15.45 | K183: 15.70 | L183: 15.2 | M183: 14.8 | N183: 128288811 | O183: 0.34%
A184: 180 | B184: Others | C184: SREINFRA | D184: 36.80 | E184: 36.40 | F184: 35.40 | G184: 34.00 | H184: 33.00 | I184: 37.80 | J184: 38.80 | K184: 40.20 | L184: 37.4 | M184: 35 | N184: 10703000 | O184: -1.10%
A185: 181 | B185: Textile | C185: SRF | D185: 2080.15 | E185: 2064.13 | F185: 2042.27 | G185: 2004.38 | H185: 1982.52 | I185: 2102.02 | J185: 2123.88 | K185: 2161.77 | L185: 2086 | M185: 2026.25 | N185: 669000 | O185: 5.19%
A186: 182 | B186: Finance | C186: SRTRANSFIN | D186: 1223.50 | E186: 1210.73 | F186: 1186.47 | G186: 1149.43 | H186: 1125.17 | I186: 1247.77 | J186: 1272.03 | K186: 1309.07 | L186: 1235 | M186: 1173.7 | N186: 3456600 | O186: 0.98%
A187: 183 | B187: Pharma | C187: STAR | D187: 461.50 | E187: 459.07 | F187: 447.53 | G187: 433.57 | H187: 422.03 | I187: 473.03 | J187: 484.57 | K187: 498.53 | L187: 470.6 | M187: 445.1 | N187: 3300000 | O187: 0.29%
A188: 184 | B188: Pharma | C188: SUNPHARMA | D188: 563.45 | E188: 570.92 | F188: 549.23 | G188: 535.02 | H188: 513.33 | I188: 585.13 | J188: 606.82 | K188: 621.03 | L188: 592.6 | M188: 556.7 | N188: 29513000 | O188: 11.02%
A189: 185 | B189: Media | C189: SUNTV | D189: 611.80 | E189: 611.93 | F189: 604.87 | G189: 597.93 | H189: 590.87 | I189: 618.87 | J189: 625.93 | K189: 632.87 | L189: 619 | M189: 605 | N189: 8207000 | O189: 2.56%
A190: 186 | B190: Power | C190: SUZLON | D190: 6.10 | E190: 6.08 | F190: 5.97 | G190: 5.83 | H190: 5.72 | I190: 6.22 | J190: 6.33 | K190: 6.47 | L190: 6.2 | M190: 5.95 | N190: 301156000 | O190: 1.52%
A191: 187 | B191: Banking | C191: SYNDIBANK | D191: 34.40 | E191: 34.37 | F191: 34.03 | G191: 33.67 | H191: 33.33 | I191: 34.73 | J191: 35.07 | K191: 35.43 | L191: 34.7 | M191: 34 | N191: 23094000 | O191: 1.42%
A192: 188 | B192: Fertilisers | C192: TATACHEM | D192: 690.40 | E192: 691.48 | F192: 681.02 | G192: 671.63 | H192: 661.17 | I192: 700.87 | J192: 711.33 | K192: 720.72 | L192: 701.95 | M192: 682.1 | N192: 2421000 | O192: 2.67%
A193: 189 | B193: Telecom | C193: TATACOMM | D193: 518.30 | E193: 512.72 | F193: 505.58 | G193: 492.87 | H193: 485.73 | I193: 525.43 | J193: 532.57 | K193: 545.28 | L193: 519.85 | M193: 500 | N193: 2924000 | O193: -0.30%
A194: 190 | B194: Technology | C194: TATAELXSI | D194: 1013.60 | E194: 1005.98 | F194: 995.97 | G194: 978.33 | H194: 968.32 | I194: 1023.62 | J194: 1033.63 | K194: 1051.27 | L194: 1016 | M194: 988.35 | N194: 1352800 | O194: 0.96%
A195: 191 | B195: FMCG | C195: TATAGLOBAL | D195: 220.75 | E195: 218.30 | F195: 214.80 | G195: 208.85 | H195: 205.35 | I195: 224.25 | J195: 227.75 | K195: 233.70 | L195: 221.8 | M195: 212.35 | N195: 10534500 | O195: -5.57%
A196: 192 | B196: Automobile | C196: TATAMOTORS | D196: 180.20 | E196: 180.55 | F196: 178.15 | G196: 176.10 | H196: 173.70 | I196: 182.60 | J196: 185.00 | K196: 187.05 | L196: 182.95 | M196: 178.5 | N196: 59004000 | O196: 4.89%
A197: 193 | B197: Automobile | C197: TATAMTRDVR | D197: 98.35 | E197: 98.40 | F197: 97.15 | G197: 95.95 | H197: 94.70 | I197: 99.60 | J197: 100.85 | K197: 102.05 | L197: 99.65 | M197: 97.2 | N197: 26304400 | O197: 0.43%
A198: 194 | B198: Power | C198: TATAPOWER | D198: 76.25 | E198: 75.43 | F198: 74.17 | G198: 72.08 | H198: 70.82 | I198: 77.52 | J198: 78.78 | K198: 80.87 | L198: 76.7 | M198: 73.35 | N198: 51579000 | O198: -0.16%
A199: 195 | B199: Metals | C199: TATASTEEL | D199: 591.90 | E199: 588.97 | F199: 583.93 | G199: 575.97 | H199: 570.93 | I199: 596.93 | J199: 601.97 | K199: 609.93 | L199: 594 | M199: 581 | N199: 37947726 | O199: 3.60%
A200: 196 | B200: Technology | C200: TCS | D200: 1943.55 | E200: 1932.42 | F200: 1917.38 | G200: 1891.22 | H200: 1876.18 | I200: 1958.58 | J200: 1973.62 | K200: 1999.78 | L200: 1947.45 | M200: 1906.25 | N200: 10108750 | O200: -1.08%
A201: 197 | B201: Technology | C201: TECHM | D201: 728.35 | E201: 728.47 | F201: 717.93 | G201: 707.52 | H201: 696.98 | I201: 738.88 | J201: 749.42 | K201: 759.83 | L201: 739 | M201: 718.05 | N201: 12736800 | O201: -5.63%
A202: 198 | B202: FMCG | C202: TITAN | D202: 898.10 | E202: 893.02 | F202: 886.28 | G202: 874.47 | H202: 867.73 | I202: 904.83 | J202: 911.57 | K202: 923.38 | L202: 899.75 | M202: 881.2 | N202: 14087250 | O202: -1.10%
A203: 199 | B203: Pharma | C203: TORNTPHARM | D203: 1688.40 | E203: 1678.45 | F203: 1651.95 | G203: 1615.50 | H203: 1589.00 | I203: 1714.90 | J203: 1741.40 | K203: 1777.85 | L203: 1704.95 | M203: 1642 | N203: 375500 | O203: -1.57%
A204: 200 | B204: Power | C204: TORNTPOWER | D204: 267.00 | E204: 263.87 | F204: 259.43 | G204: 251.87 | H204: 247.43 | I204: 271.43 | J204: 275.87 | K204: 283.43 | L204: 268.3 | M204: 256.3 | N204: 2976000 | O204: 2.80%
A205: 201 | B205: Media | C205: TV18BRDCST | D205: 36.65 | E205: 36.57 | F205: 35.83 | G205: 35.02 | H205: 34.28 | I205: 37.38 | J205: 38.12 | K205: 38.93 | L205: 37.3 | M205: 35.75 | N205: 46452500 | O205: 0.51%
A206: 202 | B206: Automobile | C206: TVSMOTOR | D206: 547.20 | E206: 545.10 | F206: 538.25 | G206: 529.30 | H206: 522.45 | I206: 554.05 | J206: 560.90 | K206: 569.85 | L206: 551.95 | M206: 536.15 | N206: 7445000 | O206: -2.93%
... 30 more rows

Sheet Cash Intra
M5: Back to Main Page
A6: FOR INTRA DAY TRADING | K6: =Main!B10 -> 2018-11-14
A8: Sr.no | B8: Scrip | C8: CLOSE RATE | D8: Pivot Point | E8: Supports | H8: Resistances
C9: Point | E9: S1 | F9: S2 | G9: S3 | H9: R1 | I9: R2 | J9: R3 | K9: HIGH | L9: LOW | M9: Total Trade Quanity in Lakhs
A10: 1 | B10: Nifty 50 | C10: 10582.5 | D10: 10539.77 | E10: 10483.28 | F10: 10384.07 | G10: 10327.58 | H10: 10638.98 | I10: 10695.47 | J10: 10794.68 | K10: 10596.25 | L10: 10440.55
A11: 2 | B11: Nifty Bank | C11: 25768.6 | D11: 25649.88 | E11: 25503.27 | F11: 25237.93 | G11: 25091.32 | H11: 25915.22 | I11: 26061.83 | J11: 26327.17 | K11: 25796.5 | L11: 25384.55
A12: 3 | B12: Nifty CPSE | C12: 2180.8 | D12: 2171.87 | E12: 2160.73 | F12: 2140.67 | G12: 2129.53 | H12: 2191.93 | I12: 2203.07 | J12: 2223.13 | K12: 2183 | L12: 2151.8
A13: 4 | B13: Nifty Infra | C13: 3068.65 | D13: 3053.52 | E13: 3034.23 | F13: 2999.82 | G13: 2980.53 | H13: 3087.93 | I13: 3107.22 | J13: 3141.63 | K13: 3072.8 | L13: 3019.1
A14: 5 | B14: Nifty IT | C14: 14698.2 | D14: 14679.92 | E14: 14579.83 | F14: 14461.47 | G14: 14361.38 | H14: 14798.28 | I14: 14898.37 | J14: 15016.73 | K14: 14780 | L14: 14561.55
A15: 6 | B15: Nifty PSE | C15: 3431 | D15: 3422.37 | E15: 3409.93 | F15: 3388.87 | G15: 3376.43 | H15: 3443.43 | I15: 3455.87 | J15: 3476.93 | K15: 3434.8 | L15: 3401.3
A16: 7 | B16: Nifty Midcap 50 | C16: 4808.1 | D16: 4778.48 | E16: 4743.72 | F16: 4679.33 | G16: 4644.57 | H16: 4842.87 | I16: 4877.63 | J16: 4942.02 | K16: 4813.25 | L16: 4714.1
A17: 8 | B17: ABB | C17: 1297.7 | D17: 1303.82 | E17: 1287.43 | F17: 1277.17 | G17: 1260.78 | H17: 1314.08 | I17: 1330.47 | J17: 1340.73 | K17: 1320.2 | L17: 1293.55 | M17: 0.3735
A18: 9 | B18: ACC | C18: 1457.2 | D18: 1448.85 | E18: 1432.35 | F18: 1407.50 | G18: 1391.00 | H18: 1473.70 | I18: 1490.20 | J18: 1515.05 | K18: 1465.35 | L18: 1424 | M18: 4.58083
A19: 10 | B19: AIAENG | C19: 1700.2 | D19: 1694.27 | E19: 1676.03 | F19: 1651.87 | G19: 1633.63 | H19: 1718.43 | I19: 1736.67 | J19: 1760.83 | K19: 1712.5 | L19: 1670.1 | M19: 0.07584
A20: 11 | B20: AUBANK | C20: 536.8 | D20: 534.93 | E20: 521.87 | F20: 506.93 | G20: 493.87 | H20: 549.87 | I20: 562.93 | J20: 577.87 | K20: 548 | L20: 520 | M20: 2.87241
A21: 12 | B21: ADANIENT | C21: 162.15 | D21: 161.30 | E21: 159.60 | F21: 157.05 | G21: 155.35 | H21: 163.85 | I21: 165.55 | J21: 168.10 | K21: 163 | L21: 158.75 | M21: 36.41712
A22: 13 | B22: ADANIPORTS | C22: 334.1 | D22: 331.27 | E22: 327.53 | F22: 320.97 | G22: 317.23 | H22: 337.83 | I22: 341.57 | J22: 348.13 | K22: 335 | L22: 324.7 | M22: 17.38296
A23: 14 | B23: ADANIPOWER | C23: 48.55 | D23: 48.38 | E23: 47.57 | F23: 46.58 | G23: 45.77 | H23: 49.37 | I23: 50.18 | J23: 51.17 | K23: 49.2 | L23: 47.4 | M23: 205.60525
A24: 15 | B24: ABFRL | C24: 192.85 | D24: 193.82 | E24: 190.03 | F24: 187.22 | G24: 183.43 | H24: 196.63 | I24: 200.42 | J24: 203.23 | K24: 197.6 | L24: 191 | M24: 9.90045
A25: 16 | B25: AJANTPHARM | C25: 1075.35 | D25: 1071.53 | E25: 1061.07 | F25: 1046.78 | G25: 1036.32 | H25: 1085.82 | I25: 1096.28 | J25: 1110.57 | K25: 1082 | L25: 1057.25 | M25: 1.53204
A26: 17 | B26: ALKEM | C26: 1969.6 | D26: 1959.78 | E26: 1944.97 | F26: 1920.33 | G26: 1905.52 | H26: 1984.42 | I26: 1999.23 | J26: 2023.87 | K26: 1974.6 | L26: 1935.15 | M26: 0.19023
A27: 18 | B27: AMARAJABAT | C27: 743.4 | D27: 746.08 | E27: 728.97 | F27: 714.53 | G27: 697.42 | H27: 760.52 | I27: 777.63 | J27: 792.07 | K27: 763.2 | L27: 731.65 | M27: 4.84154
A28: 19 | B28: AMBUJACEM | C28: 205.85 | D28: 204.55 | E28: 202.70 | F28: 199.55 | G28: 197.70 | H28: 207.70 | I28: 209.55 | J28: 212.70 | K28: 206.4 | L28: 201.4 | M28: 20.24625
A29: 20 | B29: APOLLOHOSP | C29: 1143.6 | D29: 1136.75 | E29: 1119.10 | F29: 1094.60 | G29: 1076.95 | H29: 1161.25 | I29: 1178.90 | J29: 1203.40 | K29: 1154.4 | L29: 1112.25 | M29: 4.42309
A30: 21 | B30: APOLLOTYRE | C30: 222.6 | D30: 219.70 | E30: 214.90 | F30: 207.20 | G30: 202.40 | H30: 227.40 | I30: 232.20 | J30: 239.90 | K30: 224.5 | L30: 212 | M30: 100.96359
A31: 22 | B31: ARVIND | C31: 311.4 | D31: 309.38 | E31: 305.02 | F31: 298.63 | G31: 294.27 | H31: 315.77 | I31: 320.13 | J31: 326.52 | K31: 313.75 | L31: 303 | M31: 25.88073
A32: 23 | B32: ASHOKLEY | C32: 119 | D32: 118.48 | E32: 117.62 | F32: 116.23 | G32: 115.37 | H32: 119.87 | I32: 120.73 | J32: 122.12 | K32: 119.35 | L32: 117.1 | M32: 154.07719
A33: 24 | B33: ASIANPAINT | C33: 1284.9 | D33: 1285.98 | E33: 1276.37 | F33: 1267.83 | G33: 1258.22 | H33: 1294.52 | I33: 1304.13 | J33: 1312.67 | K33: 1295.6 | L33: 1277.45 | M33: 16.32176
A34: 25 | B34: AUROPHARMA | C34: 774.7 | D34: 783.00 | E34: 751.00 | F34: 727.30 | G34: 695.30 | H34: 806.70 | I34: 838.70 | J34: 862.40 | K34: 815 | L34: 759.3 | M34: 61.22728
A35: 26 | B35: DMART | C35: 1374.35 | D35: 1376.78 | E35: 1363.67 | F35: 1352.98 | G35: 1339.87 | H35: 1387.47 | I35: 1400.58 | J35: 1411.27 | K35: 1389.9 | L35: 1366.1 | M35: 2.93907
A36: 27 | B36: AXISBANK | C36: 618.3 | D36: 614.37 | E36: 607.98 | F36: 597.67 | G36: 591.28 | H36: 624.68 | I36: 631.07 | J36: 641.38 | K36: 620.75 | L36: 604.05 | M36: 89.38939
A37: 28 | B37: BAJAJ-AUTO | C37: 2665.5 | D37: 2650.63 | E37: 2627.87 | F37: 2590.23 | G37: 2567.47 | H37: 2688.27 | I37: 2711.03 | J37: 2748.67 | K37: 2673.4 | L37: 2613 | M37: 3.05897
A38: 29 | B38: BAJFINANCE | C38: 2285 | D38: 2275.48 | E38: 2242.62 | F38: 2200.23 | G38: 2167.37 | H38: 2317.87 | I38: 2350.73 | J38: 2393.12 | K38: 2308.35 | L38: 2233.1 | M38: 22.9771
A39: 30 | B39: BAJAJFINSV | C39: 5571.7 | D39: 5572.37 | E39: 5535.38 | F39: 5499.07 | G39: 5462.08 | H39: 5608.68 | I39: 5645.67 | J39: 5681.98 | K39: 5609.35 | L39: 5536.05 | M39: 1.48588
A40: 31 | B40: BALKRISIND | C40: 958.8 | D40: 952.93 | E40: 943.87 | F40: 928.93 | G40: 919.87 | H40: 967.87 | I40: 976.93 | J40: 991.87 | K40: 962 | L40: 938 | M40: 9.39622
A41: 32 | B41: BANKBARODA | C41: 108.7 | D41: 108.12 | E41: 106.98 | F41: 105.27 | G41: 104.13 | H41: 109.83 | I41: 110.97 | J41: 112.68 | K41: 109.25 | L41: 106.4 | M41: 142.4222
A42: 33 | B42: BANKINDIA | C42: 81 | D42: 82.02 | E42: 78.58 | F42: 76.17 | G42: 72.73 | H42: 84.43 | I42: 87.87 | J42: 90.28 | K42: 85.45 | L42: 79.6 | M42: 346.91996
A43: 34 | B43: BATAINDIA | C43: 1010.6 | D43: 1013.15 | E43: 1001.50 | F43: 992.40 | G43: 980.75 | H43: 1022.25 | I43: 1033.90 | J43: 1043.00 | K43: 1024.8 | L43: 1004.05 | M43: 7.39958
A44: 35 | B44: BERGEPAINT | C44: 309.1 | D44: 306.40 | E44: 302.80 | F44: 296.50 | G44: 292.90 | H44: 312.70 | I44: 316.30 | J44: 322.60 | K44: 310 | L44: 300.1 | M44: 8.34886
A45: 36 | B45: BEL | C45: 94.6 | D45: 94.20 | E45: 93.10 | F45: 91.60 | G45: 90.50 | H45: 95.70 | I45: 96.80 | J45: 98.30 | K45: 95.3 | L45: 92.7 | M45: 37.65515
A46: 37 | B46: BHARATFIN | C46: 921.2 | D46: 916.93 | E46: 909.27 | F46: 897.33 | G46: 889.67 | H46: 928.87 | I46: 936.53 | J46: 948.47 | K46: 924.6 | L46: 905 | M46: 1.45176
A47: 38 | B47: BHARATFORG | C47: 590.05 | D47: 587.13 | E47: 581.77 | F47: 573.48 | G47: 568.12 | H47: 595.42 | I47: 600.78 | J47: 609.07 | K47: 592.5 | L47: 578.85 | M47: 5.98683
A48: 39 | B48: BHEL | C48: 68.7 | D48: 68.65 | E48: 67.85 | F48: 67.00 | G48: 66.20 | H48: 69.50 | I48: 70.30 | J48: 71.15 | K48: 69.45 | L48: 67.8 | M48: 54.92697
A49: 40 | B49: BPCL | C49: 303.15 | D49: 300.98 | E49: 297.37 | F49: 291.58 | G49: 287.97 | H49: 306.77 | I49: 310.38 | J49: 316.17 | K49: 304.6 | L49: 295.2 | M49: 77.13771
A50: 41 | B50: BHARTIARTL | C50: 297.55 | D50: 297.28 | E50: 290.57 | F50: 283.58 | G50: 276.87 | H50: 304.27 | I50: 310.98 | J50: 317.97 | K50: 304 | L50: 290.3 | M50: 38.91168
A51: 42 | B51: INFRATEL | C51: 258.4 | D51: 257.73 | E51: 254.22 | F51: 250.03 | G51: 246.52 | H51: 261.92 | I51: 265.43 | J51: 269.62 | K51: 261.25 | L51: 253.55 | M51: 14.12523
A52: 43 | B52: BIOCON | C52: 617.45 | D52: 618.27 | E52: 605.78 | F52: 594.12 | G52: 581.63 | H52: 629.93 | I52: 642.42 | J52: 654.08 | K52: 630.75 | L52: 606.6 | M52: 21.63419
A53: 44 | B53: BOSCHLTD | C53: 19655.15 | D53: 19667.22 | E53: 19489.43 | F53: 19323.72 | G53: 19145.93 | H53: 19832.93 | I53: 20010.72 | J53: 20176.43 | K53: 19845 | L53: 19501.5 | M53: 0.08195
A54: 45 | B54: BRITANNIA | C54: 5812.55 | D54: 5769.52 | E54: 5699.03 | F54: 5585.52 | G54: 5515.03 | H54: 5883.03 | I54: 5953.52 | J54: 6067.03 | K54: 5840 | L54: 5656 | M54: 1.80903
A55: 46 | B55: CRISIL | C55: 1503.25 | D55: 1498.75 | E55: 1482.50 | F55: 1461.75 | G55: 1445.50 | H55: 1519.50 | I55: 1535.75 | J55: 1556.50 | K55: 1515 | L55: 1478 | M55: 0.0452
A56: 47 | B56: CADILAHC | C56: 355.3 | D56: 354.27 | E56: 350.03 | F56: 344.77 | G56: 340.53 | H56: 359.53 | I56: 363.77 | J56: 369.03 | K56: 358.5 | L56: 349 | M56: 5.29106
A57: 48 | B57: CANBK | C57: 243.25 | D57: 241.32 | E57: 236.63 | F57: 230.02 | G57: 225.33 | H57: 247.93 | I57: 252.62 | J57: 259.23 | K57: 246 | L57: 234.7 | M57: 61.28406
A58: 49 | B58: CASTROLIND | C58: 148.25 | D58: 147.27 | E58: 145.98 | F58: 143.72 | G58: 142.43 | H58: 149.53 | I58: 150.82 | J58: 153.08 | K58: 148.55 | L58: 145 | M58: 7.51101
A59: 50 | B59: CENTRALBK | C59: 31.3 | D59: 31.20 | E59: 30.60 | F59: 29.90 | G59: 29.30 | H59: 31.90 | I59: 32.50 | J59: 33.20 | K59: 31.8 | L59: 30.5 | M59: 4.40607
A60: 51 | B60: CENTURYTEX | C60: 890.55 | D60: 886.13 | E60: 877.67 | F60: 864.78 | G60: 856.32 | H60: 899.02 | I60: 907.48 | J60: 920.37 | K60: 894.6 | L60: 873.25 | M60: 4.4887
A61: 52 | B61: CHOLAFIN | C61: 1329.1 | D61: 1317.50 | E61: 1303.00 | F61: 1276.90 | G61: 1262.40 | H61: 1343.60 | I61: 1358.10 | J61: 1384.20 | K61: 1332 | L61: 1291.4 | M61: 3.91011
A62: 53 | B62: CIPLA | C62: 528.1 | D62: 529.53 | E62: 525.07 | F62: 522.03 | G62: 517.57 | H62: 532.57 | I62: 537.03 | J62: 540.07 | K62: 534 | L62: 526.5 | M62: 24.10643
A63: 54 | B63: COALINDIA | C63: 265.55 | D63: 266.13 | E63: 263.57 | F63: 261.58 | G63: 259.02 | H63: 268.12 | I63: 270.68 | J63: 272.67 | K63: 268.7 | L63: 264.15 | M63: 69.00299
A64: 55 | B64: COLPAL | C64: 1107.2 | D64: 1102.47 | E64: 1094.73 | F64: 1082.27 | G64: 1074.53 | H64: 1114.93 | I64: 1122.67 | J64: 1135.13 | K64: 1110.2 | L64: 1090 | M64: 2.58616
A65: 56 | B65: CONCOR | C65: 670.2 | D65: 665.25 | E65: 645.70 | F65: 621.20 | G65: 601.65 | H65: 689.75 | I65: 709.30 | J65: 733.80 | K65: 684.8 | L65: 640.75 | M65: 13.29406
A66: 57 | B66: COROMANDEL | C66: 417.9 | D66: 416.53 | E66: 411.47 | F66: 405.03 | G66: 399.97 | H66: 422.97 | I66: 428.03 | J66: 434.47 | K66: 421.6 | L66: 410.1 | M66: 0.21764
A67: 58 | B67: CROMPTON | C67: 206.5 | D67: 207.02 | E67: 200.53 | F67: 194.57 | G67: 188.08 | H67: 212.98 | I67: 219.47 | J67: 225.43 | K67: 213.5 | L67: 201.05 | M67: 7.87326
A68: 59 | B68: CUMMINSIND | C68: 783.95 | D68: 788.50 | E68: 772.50 | F68: 761.05 | G68: 745.05 | H68: 799.95 | I68: 815.95 | J68: 827.40 | K68: 804.5 | L68: 777.05 | M68: 4.01867
A69: 60 | B69: DLF | C69: 171.4 | D69: 170.68 | E69: 168.47 | F69: 165.53 | G69: 163.32 | H69: 173.62 | I69: 175.83 | J69: 178.77 | K69: 172.9 | L69: 167.75 | M69: 47.12188
A70: 61 | B70: DABUR | C70: 369.55 | D70: 370.25 | E70: 365.50 | F70: 361.45 | G70: 356.70 | H70: 374.30 | I70: 379.05 | J70: 383.10 | K70: 375 | L70: 366.2 | M70: 36.78684
A71: 62 | B71: DALMIABHA | C71: 2126 | D71: 2130.23 | E71: 2093.57 | F71: 2061.13 | G71: 2024.47 | H71: 2162.67 | I71: 2199.33 | J71: 2231.77 | K71: 2166.9 | L71: 2097.8 | M71: 0.98794
A72: 63 | B72: DHFL | C72: 237.2 | D72: 237.38 | E72: 231.22 | F72: 225.23 | G72: 219.07 | H72: 243.37 | I72: 249.53 | J72: 255.52 | K72: 243.55 | L72: 231.4 | M72: 129.4305
A73: 64 | B73: DISHTV | C73: 40.8 | D73: 40.75 | E73: 39.85 | F73: 38.90 | G73: 38.00 | H73: 41.70 | I73: 42.60 | J73: 43.55 | K73: 41.65 | L73: 39.8 | M73: 53.89657
A74: 65 | B74: DIVISLAB | C74: 1530.6 | D74: 1517.75 | E74: 1498.50 | F74: 1466.40 | G74: 1447.15 | H74: 1549.85 | I74: 1569.10 | J74: 1601.20 | K74: 1537 | L74: 1485.65 | M74: 9.53328
A75: 66 | B75: LALPATHLAB | C75: 864.8 | D75: 859.42 | E75: 844.38 | F75: 823.97 | G75: 808.93 | H75: 879.83 | I75: 894.87 | J75: 915.28 | K75: 874.45 | L75: 839 | M75: 0.83868
A76: 67 | B76: DRREDDY | C76: 2438.05 | D76: 2434.87 | E76: 2418.73 | F76: 2399.42 | G76: 2383.28 | H76: 2454.18 | I76: 2470.32 | J76: 2489.63 | K76: 2451 | L76: 2415.55 | M76: 4.69698
A77: 68 | B77: EDELWEISS | C77: 164.35 | D77: 164.43 | E77: 161.37 | F77: 158.38 | G77: 155.32 | H77: 167.42 | I77: 170.48 | J77: 173.47 | K77: 167.5 | L77: 161.45 | M77: 16.2075
A78: 69 | B78: EICHERMOT | C78: 23241.85 | D78: 22612.87 | E78: 21825.73 | F78: 20409.62 | G78: 19622.48 | H78: 24028.98 | I78: 24816.12 | J78: 26232.23 | K78: 23400 | L78: 21196.75 | M78: 2.68847
A79: 70 | B79: EMAMILTD | C79: 435.55 | D79: 430.80 | E79: 421.75 | F79: 407.95 | G79: 398.90 | H79: 444.60 | I79: 453.65 | J79: 467.45 | K79: 439.85 | L79: 417 | M79: 10.57102
A80: 71 | B80: ENDURANCE | C80: 1237.8 | D80: 1243.27 | E80: 1225.83 | F80: 1213.87 | G80: 1196.43 | H80: 1255.23 | I80: 1272.67 | J80: 1284.63 | K80: 1260.7 | L80: 1231.3 | M80: 0.12254
A81: 72 | B81: ENGINERSIN | C81: 121.2 | D81: 121.13 | E81: 119.92 | F81: 118.63 | G81: 117.42 | H81: 122.42 | I81: 123.63 | J81: 124.92 | K81: 122.35 | L81: 119.85 | M81: 13.6569
A82: 73 | B82: EXIDEIND | C82: 249.55 | D82: 249.58 | E82: 245.97 | F82: 242.38 | G82: 238.77 | H82: 253.17 | I82: 256.78 | J82: 260.37 | K82: 253.2 | L82: 246 | M82: 18.00432
A83: 74 | B83: FEDERALBNK | C83: 78.9 | D83: 78.87 | E83: 77.63 | F83: 76.37 | G83: 75.13 | H83: 80.13 | I83: 81.37 | J83: 82.63 | K83: 80.1 | L83: 77.6 | M83: 93.33789
A84: 75 | B84: GAIL | C84: 365.35 | D84: 365.68 | E84: 361.67 | F84: 357.98 | G84: 353.97 | H84: 369.37 | I84: 373.38 | J84: 377.07 | K84: 369.7 | L84: 362 | M84: 40.18012
A85: 76 | B85: GMRINFRA | C85: 15.95 | D85: 15.97 | E85: 15.63 | F85: 15.32 | G85: 14.98 | H85: 16.28 | I85: 16.62 | J85: 16.93 | K85: 16.3 | L85: 15.65 | M85: 278.91792
A86: 77 | B86: GSKCONS | C86: 7211 | D86: 7223.67 | E86: 7182.33 | F86: 7153.67 | G86: 7112.33 | H86: 7252.33 | I86: 7293.67 | J86: 7322.33 | K86: 7265 | L86: 7195 | M86: 0.12584
A87: 78 | B87: GLAXO | C87: 1387.75 | D87: 1389.23 | E87: 1373.52 | F87: 1359.28 | G87: 1343.57 | H87: 1403.47 | I87: 1419.18 | J87: 1433.42 | K87: 1404.95 | L87: 1375 | M87: 0.08639
A88: 79 | B88: GLENMARK | C88: 676.2 | D88: 665.78 | E88: 652.57 | F88: 628.93 | G88: 615.72 | H88: 689.42 | I88: 702.63 | J88: 726.27 | K88: 679 | L88: 642.15 | M88: 12.30531
A89: 80 | B89: GODREJCP | C89: 683.1 | D89: 682.10 | E89: 671.20 | F89: 659.30 | G89: 648.40 | H89: 694.00 | I89: 704.90 | J89: 716.80 | K89: 693 | L89: 670.2 | M89: 16.11367
A90: 81 | B90: GODREJIND | C90: 498.45 | D90: 489.38 | E90: 474.07 | F90: 449.68 | G90: 434.37 | H90: 513.77 | I90: 529.08 | J90: 553.47 | K90: 504.7 | L90: 465 | M90: 39.18438
A91: 82 | B91: GRUH | C91: 300.6 | D91: 299.03 | E91: 295.07 | F91: 289.53 | G91: 285.57 | H91: 304.57 | I91: 308.53 | J91: 314.07 | K91: 303 | L91: 293.5 | M91: 2.42057
A92: 83 | B92: GPPL | C92: 100.25 | D92: 100.63 | E92: 99.42 | F92: 98.58 | G92: 97.37 | H92: 101.47 | I92: 102.68 | J92: 103.52 | K92: 101.85 | L92: 99.8 | M92: 0.55275
A93: 84 | B93: GSPL | C93: 180.85 | D93: 182.03 | E93: 178.52 | F93: 176.18 | G93: 172.67 | H93: 184.37 | I93: 187.88 | J93: 190.22 | K93: 185.55 | L93: 179.7 | M93: 1.49336
A94: 85 | B94: HCLTECH | C94: 1033.2 | D94: 1039.13 | E94: 1023.42 | F94: 1013.63 | G94: 997.92 | H94: 1048.92 | I94: 1064.63 | J94: 1074.42 | K94: 1054.85 | L94: 1029.35 | M94: 13.68737
A95: 86 | B95: HDFCBANK | C95: 1927.75 | D95: 1924.55 | E95: 1911.40 | F95: 1895.05 | G95: 1881.90 | H95: 1940.90 | I95: 1954.05 | J95: 1970.40 | K95: 1937.7 | L95: 1908.2 | M95: 33.37605
A96: 87 | B96: HAVELLS | C96: 666.15 | D96: 661.28 | E96: 652.87 | F96: 639.58 | G96: 631.17 | H96: 674.57 | I96: 682.98 | J96: 696.27 | K96: 669.7 | L96: 648 | M96: 27.33001
A97: 88 | B97: HEROMOTOCO | C97: 2879.7 | D97: 2862.05 | E97: 2825.65 | F97: 2771.60 | G97: 2735.20 | H97: 2916.10 | I97: 2952.50 | J97: 3006.55 | K97: 2898.45 | L97: 2808 | M97: 2.69648
A98: 89 | B98: HEXAWARE | C98: 315.7 | D98: 315.98 | E98: 311.72 | F98: 307.73 | G98: 303.47 | H98: 319.97 | I98: 324.23 | J98: 328.22 | K98: 320.25 | L98: 312 | M98: 10.247
A99: 90 | B99: HINDALCO | C99: 231.55 | D99: 229.50 | E99: 226.60 | F99: 221.65 | G99: 218.75 | H99: 234.45 | I99: 237.35 | J99: 242.30 | K99: 232.4 | L99: 224.55 | M99: 100.09305
A100: 91 | B100: HINDPETRO | C100: 232.8 | D100: 232.80 | E100: 229.60 | F100: 226.40 | G100: 223.20 | H100: 236.00 | I100: 239.20 | J100: 242.40 | K100: 236 | L100: 229.6 | M100: 113.51366
A101: 92 | B101: HINDUNILVR | C101: 1671.1 | D101: 1662.08 | E101: 1645.57 | F101: 1620.03 | G101: 1603.52 | H101: 1687.62 | I101: 1704.13 | J101: 1729.67 | K101: 1678.6 | L101: 1636.55 | M101: 6.73435
A102: 93 | B102: HINDZINC | C102: 265.35 | D102: 264.35 | E102: 262.70 | F102: 260.05 | G102: 258.40 | H102: 267.00 | I102: 268.65 | J102: 271.30 | K102: 266 | L102: 261.7 | M102: 5.4899
A103: 94 | B103: HUDCO | C103: 44.6 | D103: 44.60 | E103: 44.20 | F103: 43.80 | G103: 43.40 | H103: 45.00 | I103: 45.40 | J103: 45.80 | K103: 45 | L103: 44.2 | M103: 4.64628
A104: 95 | B104: HDFC | C104: 1824.7 | D104: 1812.75 | E104: 1796.50 | F104: 1768.30 | G104: 1752.05 | H104: 1840.95 | I104: 1857.20 | J104: 1885.40 | K104: 1829 | L104: 1784.55 | M104: 18.12035
A105: 96 | B105: ITC | C105: 276.85 | D105: 275.97 | E105: 274.03 | F105: 271.22 | G105: 269.28 | H105: 278.78 | I105: 280.72 | J105: 283.53 | K105: 277.9 | L105: 273.15 | M105: 67.00755
A106: 97 | B106: ICICIBANK | C106: 360.9 | D106: 356.88 | E106: 351.82 | F106: 342.73 | G106: 337.67 | H106: 365.97 | I106: 371.03 | J106: 380.12 | K106: 361.95 | L106: 347.8 | M106: 176.84864
A107: 98 | B107: ICICIPRULI | C107: 354.65 | D107: 352.10 | E107: 343.55 | F107: 332.45 | G107: 323.90 | H107: 363.20 | I107: 371.75 | J107: 382.85 | K107: 360.65 | L107: 341 | M107: 11.90425
A108: 99 | B108: IDBI | C108: 59.95 | D108: 60.13 | E108: 59.62 | F108: 59.28 | G108: 58.77 | H108: 60.47 | I108: 60.98 | J108: 61.32 | K108: 60.65 | L108: 59.8 | M108: 25.33575
A109: 100 | B109: IDFCBANK | C109: 35.35 | D109: 35.43 | E109: 34.82 | F109: 34.28 | G109: 33.67 | H109: 35.97 | I109: 36.58 | J109: 37.12 | K109: 36.05 | L109: 34.9 | M109: 218.79971
A110: 101 | B110: IDFC | C110: 37.9 | D110: 37.85 | E110: 37.40 | F110: 36.90 | G110: 36.45 | H110: 38.35 | I110: 38.80 | J110: 39.30 | K110: 38.3 | L110: 37.35 | M110: 11.24075
A111: 102 | B111: IRB | C111: 141.35 | D111: 139.62 | E111: 137.33 | F111: 133.32 | G111: 131.03 | H111: 143.63 | I111: 145.92 | J111: 149.93 | K111: 141.9 | L111: 135.6 | M111: 15.26761
A112: 103 | B112: IDEA | C112: 40.75 | D112: 40.18 | E112: 39.42 | F112: 38.08 | G112: 37.32 | H112: 41.52 | I112: 42.28 | J112: 43.62 | K112: 40.95 | L112: 38.85 | M112: 126.2497
A113: 104 | B113: IBULHSGFIN | C113: 841.95 | D113: 848.35 | E113: 831.75 | F113: 821.55 | G113: 804.95 | H113: 858.55 | I113: 875.15 | J113: 885.35 | K113: 864.95 | L113: 838.15 | M113: 34.47971
A114: 105 | B114: INDIANB | C114: 222.9 | D114: 222.97 | E114: 219.93 | F114: 216.97 | G114: 213.93 | H114: 225.93 | I114: 228.97 | J114: 231.93 | K114: 226 | L114: 220 | M114: 28.41206
A115: 106 | B115: INDHOTEL | C115: 131.25 | D115: 131.28 | E115: 130.17 | F115: 129.08 | G115: 127.97 | H115: 132.37 | I115: 133.48 | J115: 134.57 | K115: 132.4 | L115: 130.2 | M115: 2.30492
A116: 107 | B116: IOC | C116: 141.4 | D116: 140.23 | E116: 138.17 | F116: 134.93 | G116: 132.87 | H116: 143.47 | I116: 145.53 | J116: 148.77 | K116: 142.3 | L116: 137 | M116: 148.84569
A117: 108 | B117: IGL | C117: 272 | D117: 272.08 | E117: 269.17 | F117: 266.33 | G117: 263.42 | H117: 274.92 | I117: 277.83 | J117: 280.67 | K117: 275 | L117: 269.25 | M117: 30.5586
A118: 109 | B118: INDUSINDBK | C118: 1485.55 | D118: 1481.80 | E118: 1467.30 | F118: 1449.05 | G118: 1434.55 | H118: 1500.05 | I118: 1514.55 | J118: 1532.80 | K118: 1496.3 | L118: 1463.55 | M118: 16.7841
A119: 110 | B119: NAUKRI | C119: 1384.2 | D119: 1377.82 | E119: 1363.18 | F119: 1342.17 | G119: 1327.53 | H119: 1398.83 | I119: 1413.47 | J119: 1434.48 | K119: 1392.45 | L119: 1356.8 | M119: 0.43338
A120: 111 | B120: INFY | C120: 665.7 | D120: 663.25 | E120: 658.75 | F120: 651.80 | G120: 647.30 | H120: 670.20 | I120: 674.70 | J120: 681.65 | K120: 667.75 | L120: 656.3 | M120: 41.37808
A121: 112 | B121: INDIGO | C121: 974.9 | D121: 972.60 | E121: 955.75 | F121: 936.60 | G121: 919.75 | H121: 991.75 | I121: 1008.60 | J121: 1027.75 | K121: 989.45 | L121: 953.45 | M121: 11.35111
A122: 113 | B122: IPCALAB | C122: 722.95 | D122: 720.67 | E122: 706.28 | F122: 689.62 | G122: 675.23 | H122: 737.33 | I122: 751.72 | J122: 768.38 | K122: 735.05 | L122: 704 | M122: 1.04555
A123: 114 | B123: JSWENERGY | C123: 71.85 | D123: 70.93 | E123: 69.67 | F123: 67.48 | G123: 66.22 | H123: 73.12 | I123: 74.38 | J123: 76.57 | K123: 72.2 | L123: 68.75 | M123: 12.59893
A124: 115 | B124: JSWSTEEL | C124: 348.1 | D124: 346.50 | E124: 344.00 | F124: 339.90 | G124: 337.40 | H124: 350.60 | I124: 353.10 | J124: 357.20 | K124: 349 | L124: 342.4 | M124: 23.84372
A125: 116 | B125: JINDALSTEL | C125: 182.55 | D125: 180.22 | E125: 176.63 | F125: 170.72 | G125: 167.13 | H125: 186.13 | I125: 189.72 | J125: 195.63 | K125: 183.8 | L125: 174.3 | M125: 92.60052
A126: 117 | B126: JUBLFOOD | C126: 1151.35 | D126: 1131.05 | E126: 1104.80 | F126: 1058.25 | G126: 1032.00 | H126: 1177.60 | I126: 1203.85 | J126: 1250.40 | K126: 1157.3 | L126: 1084.5 | M126: 27.47549
A127: 118 | B127: JUBILANT | C127: 758.2 | D127: 751.85 | E127: 742.35 | F127: 726.50 | G127: 717.00 | H127: 767.70 | I127: 777.20 | J127: 793.05 | K127: 761.35 | L127: 736 | M127: 1.68186
A128: 119 | B128: KARURVYSYA | C128: 81.7 | D128: 81.07 | E128: 80.13 | F128: 78.57 | G128: 77.63 | H128: 82.63 | I128: 83.57 | J128: 85.13 | K128: 82 | L128: 79.5 | M128: 9.99278
A129: 120 | B129: KOTAKBANK | C129: 1165.9 | D129: 1159.10 | E129: 1146.80 | F129: 1127.70 | G129: 1115.40 | H129: 1178.20 | I129: 1190.50 | J129: 1209.60 | K129: 1171.4 | L129: 1140 | M129: 21.17621
A130: 121 | B130: L&TFH | C130: 135.4 | D130: 134.00 | E130: 131.30 | F130: 127.20 | G130: 124.50 | H130: 138.10 | I130: 140.80 | J130: 144.90 | K130: 136.7 | L130: 129.9 | M130: 68.06082
A131: 122 | B131: LICHSGFIN | C131: 437.75 | D131: 435.25 | E131: 431.50 | F131: 425.25 | G131: 421.50 | H131: 441.50 | I131: 445.25 | J131: 451.50 | K131: 439 | L131: 429 | M131: 8.7296
A132: 123 | B132: LT | C132: 1391.1 | D132: 1381.43 | E132: 1367.87 | F132: 1344.63 | G132: 1331.07 | H132: 1404.67 | I132: 1418.23 | J132: 1441.47 | K132: 1395 | L132: 1358.2 | M132: 20.6867
A133: 124 | B133: LUPIN | C133: 853.7 | D133: 855.43 | E133: 845.27 | F133: 836.83 | G133: 826.67 | H133: 863.87 | I133: 874.03 | J133: 882.47 | K133: 865.6 | L133: 847 | M133: 10.01954
A134: 125 | B134: MRF | C134: 65822.15 | D134: 65604.73 | E134: 65019.47 | F134: 64216.78 | G134: 63631.52 | H134: 66407.42 | I134: 66992.68 | J134: 67795.37 | K134: 66190 | L134: 64802.05 | M134: 0.04985
A135: 126 | B135: MGL | C135: 854.7 | D135: 852.78 | E135: 844.37 | F135: 834.03 | G135: 825.62 | H135: 863.12 | I135: 871.53 | J135: 881.87 | K135: 861.2 | L135: 842.45 | M135: 2.44237
A136: 127 | B136: M&MFIN | C136: 435.55 | D136: 431.97 | E136: 423.48 | F136: 411.42 | G136: 402.93 | H136: 444.03 | I136: 452.52 | J136: 464.58 | K136: 440.45 | L136: 419.9 | M136: 19.62097
A137: 128 | B137: M&M | C137: 790.05 | D137: 785.90 | E137: 778.00 | F137: 765.95 | G137: 758.05 | H137: 797.95 | I137: 805.85 | J137: 817.90 | K137: 793.8 | L137: 773.85 | M137: 30.10295
A138: 129 | B138: MANAPPURAM | C138: 85.25 | D138: 84.60 | E138: 83.65 | F138: 82.05 | G138: 81.10 | H138: 86.20 | I138: 87.15 | J138: 88.75 | K138: 85.55 | L138: 83 | M138: 23.63526
A139: 130 | B139: MRPL | C139: 81.5 | D139: 81.23 | E139: 80.17 | F139: 78.83 | G139: 77.77 | H139: 82.57 | I139: 83.63 | J139: 84.97 | K139: 82.3 | L139: 79.9 | M139: 14.03688
A140: 131 | B140: MARICO | C140: 337.7 | D140: 338.78 | E140: 334.92 | F140: 332.13 | G140: 328.27 | H140: 341.57 | I140: 345.43 | J140: 348.22 | K140: 342.65 | L140: 336 | M140: 16.08732
A141: 132 | B141: MARUTI | C141: 7150.45 | D141: 7113.40 | E141: 7058.05 | F141: 6965.65 | G141: 6910.30 | H141: 7205.80 | I141: 7261.15 | J141: 7353.55 | K141: 7168.75 | L141: 7021 | M141: 5.72295
A142: 133 | B142: MFSL | C142: 408.05 | D142: 403.70 | E142: 397.80 | F142: 387.55 | G142: 381.65 | H142: 413.95 | I142: 419.85 | J142: 430.10 | K142: 409.6 | L142: 393.45 | M142: 4.32434
A143: 134 | B143: MINDTREE | C143: 843.75 | D143: 849.58 | E143: 831.17 | F143: 818.58 | G143: 800.17 | H143: 862.17 | I143: 880.58 | J143: 893.17 | K143: 868 | L143: 837 | M143: 6.51556
A144: 135 | B144: MOTHERSUMI | C144: 166.3 | D144: 164.72 | E144: 161.93 | F144: 157.57 | G144: 154.78 | H144: 169.08 | I144: 171.87 | J144: 176.23 | K144: 167.5 | L144: 160.35 | M144: 34.92652
A145: 136 | B145: MPHASIS | C145: 965.9 | D145: 957.10 | E145: 941.15 | F145: 916.40 | G145: 900.45 | H145: 981.85 | I145: 997.80 | J145: 1022.55 | K145: 973.05 | L145: 932.35 | M145: 5.59017
A146: 137 | B146: MUTHOOTFIN | C146: 450.65 | D146: 449.12 | E146: 443.83 | F146: 437.02 | G146: 431.73 | H146: 455.93 | I146: 461.22 | J146: 468.03 | K146: 454.4 | L146: 442.3 | M146: 6.71312
A147: 138 | B147: NATCOPHARM | C147: 738.35 | D147: 739.45 | E147: 728.90 | F147: 719.45 | G147: 708.90 | H147: 748.90 | I147: 759.45 | J147: 768.90 | K147: 750 | L147: 730 | M147: 1.49692
A148: 139 | B148: NBCC | C148: 65.55 | D148: 65.40 | E148: 63.80 | F148: 62.05 | G148: 60.45 | H148: 67.15 | I148: 68.75 | J148: 70.50 | K148: 67 | L148: 63.65 | M148: 71.68584
A149: 140 | B149: NHPC | C149: 26.95 | D149: 26.85 | E149: 26.55 | F149: 26.15 | G149: 25.85 | H149: 27.25 | I149: 27.55 | J149: 27.95 | K149: 27.15 | L149: 26.45 | M149: 42.62467
A150: 141 | B150: NMDC | C150: 107.45 | D150: 106.88 | E150: 105.67 | F150: 103.88 | G150: 102.67 | H150: 108.67 | I150: 109.88 | J150: 111.67 | K150: 108.1 | L150: 105.1 | M150: 19.25024
A151: 142 | B151: NTPC | C151: 156.8 | D151: 155.65 | E151: 153.50 | F151: 150.20 | G151: 148.05 | H151: 158.95 | I151: 161.10 | J151: 164.40 | K151: 157.8 | L151: 152.35 | M151: 65.86554
A152: 143 | B152: NATIONALUM | C152: 67.45 | D152: 67.82 | E152: 65.53 | F152: 63.62 | G152: 61.33 | H152: 69.73 | I152: 72.02 | J152: 73.93 | K152: 70.1 | L152: 65.9 | M152: 120.44294
A153: 144 | B153: OBEROIRLTY | C153: 403.2 | D153: 406.22 | E153: 397.48 | F153: 391.77 | G153: 383.03 | H153: 411.93 | I153: 420.67 | J153: 426.38 | K153: 414.95 | L153: 400.5 | M153: 2.43153
A154: 145 | B154: ONGC | C154: 156.5 | D154: 156.73 | E154: 155.47 | F154: 154.43 | G154: 153.17 | H154: 157.77 | I154: 159.03 | J154: 160.07 | K154: 158 | L154: 155.7 | M154: 54.99454
A155: 146 | B155: OIL | C155: 201.35 | D155: 202.07 | E155: 198.38 | F155: 195.42 | G155: 191.73 | H155: 205.03 | I155: 208.72 | J155: 211.68 | K155: 205.75 | L155: 199.1 | M155: 20.12218
A156: 147 | B156: OFSS | C156: 3511.85 | D156: 3512.58 | E156: 3485.52 | F156: 3459.18 | G156: 3432.12 | H156: 3538.92 | I156: 3565.98 | J156: 3592.32 | K156: 3539.65 | L156: 3486.25 | M156: 0.14899
A157: 148 | B157: PCJEWELLER | C157: 89.95 | D157: 89.75 | E157: 87.20 | F157: 84.45 | G157: 81.90 | H157: 92.50 | I157: 95.05 | J157: 97.80 | K157: 92.3 | L157: 87 | M157: 282.59226
A158: 149 | B158: PIIND | C158: 829.15 | D158: 825.72 | E158: 818.43 | F158: 807.72 | G158: 800.43 | H158: 836.43 | I158: 843.72 | J158: 854.43 | K158: 833 | L158: 815 | M158: 0.52214
A159: 150 | B159: PNBHOUSING | C159: 959.85 | D159: 953.98 | E159: 942.17 | F159: 924.48 | G159: 912.67 | H159: 971.67 | I159: 983.48 | J159: 1001.17 | K159: 965.8 | L159: 936.3 | M159: 1.6426
A160: 151 | B160: PAGEIND | C160: 28885.05 | D160: 29165.02 | E160: 28530.03 | F160: 28175.02 | G160: 27540.03 | H160: 29520.03 | I160: 30155.02 | J160: 30510.03 | K160: 29800 | L160: 28810 | M160: 0.27762
A161: 152 | B161: PETRONET | C161: 223.45 | D161: 221.68 | E161: 218.77 | F161: 214.08 | G161: 211.17 | H161: 226.37 | I161: 229.28 | J161: 233.97 | K161: 224.6 | L161: 217 | M161: 29.69121
A162: 153 | B162: PIDILITIND | C162: 1063.25 | D162: 1050.42 | E162: 1032.83 | F162: 1002.42 | G162: 984.83 | H162: 1080.83 | I162: 1098.42 | J162: 1128.83 | K162: 1068 | L162: 1020 | M162: 5.3641
A163: 154 | B163: PEL | C163: 2289.2 | D163: 2274.98 | E163: 2244.97 | F163: 2200.73 | G163: 2170.72 | H163: 2319.22 | I163: 2349.23 | J163: 2393.47 | K163: 2305 | L163: 2230.75 | M163: 3.88027
A164: 155 | B164: PFC | C164: 102.6 | D164: 101.72 | E164: 99.78 | F164: 96.97 | G164: 95.03 | H164: 104.53 | I164: 106.47 | J164: 109.28 | K164: 103.65 | L164: 98.9 | M164: 113.99996
A165: 156 | B165: POWERGRID | C165: 184.05 | D165: 184.97 | E165: 181.93 | F165: 179.82 | G165: 176.78 | H165: 187.08 | I165: 190.12 | J165: 192.23 | K165: 188 | L165: 182.85 | M165: 43.59608
A166: 157 | B166: PRESTIGE | C166: 182.8 | D166: 182.98 | E166: 180.02 | F166: 177.23 | G166: 174.27 | H166: 185.77 | I166: 188.73 | J166: 191.52 | K166: 185.95 | L166: 180.2 | M166: 0.75039
A167: 158 | B167: PGHH | C167: 9559.4 | D167: 9570.48 | E167: 9513.97 | F167: 9468.53 | G167: 9412.02 | H167: 9615.92 | I167: 9672.43 | J167: 9717.87 | K167: 9627 | L167: 9525.05 | M167: 0.00741
A168: 159 | B168: PNB | C168: 70 | D168: 69.58 | E168: 68.87 | F168: 67.73 | G168: 67.02 | H168: 70.72 | I168: 71.43 | J168: 72.57 | K168: 70.3 | L168: 68.45 | M168: 162.57056
A169: 160 | B169: RBLBANK | C169: 554.35 | D169: 551.35 | E169: 541.10 | F169: 527.85 | G169: 517.60 | H169: 564.60 | I169: 574.85 | J169: 588.10 | K169: 561.6 | L169: 538.1 | M169: 17.51191
A170: 161 | B170: RAJESHEXPO | C170: 564.4 | D170: 564.43 | E170: 562.97 | F170: 561.53 | G170: 560.07 | H170: 565.87 | I170: 567.33 | J170: 568.77 | K170: 565.9 | L170: 563 | M170: 1.57071
A171: 162 | B171: RELCAPITAL | C171: 259.55 | D171: 257.35 | E171: 252.50 | F171: 245.45 | G171: 240.60 | H171: 264.40 | I171: 269.25 | J171: 276.30 | K171: 262.2 | L171: 250.3 | M171: 40.29767
A172: 163 | B172: RCOM | C172: 13.55 | D172: 13.55 | E172: 13.20 | F172: 12.85 | G172: 12.50 | H172: 13.90 | I172: 14.25 | J172: 14.60 | K172: 13.9 | L172: 13.2 | M172: 415.43756
A173: 164 | B173: RELIANCE | C173: 1099.45 | D173: 1090.83 | E173: 1078.67 | F173: 1057.88 | G173: 1045.72 | H173: 1111.62 | I173: 1123.78 | J173: 1144.57 | K173: 1103 | L173: 1070.05 | M173: 68.11598
A174: 165 | B174: RELINFRA | C174: 357.05 | D174: 354.53 | E174: 343.52 | F174: 329.98 | G174: 318.97 | H174: 368.07 | I174: 379.08 | J174: 392.62 | K174: 365.55 | L174: 341 | M174: 30.05422
A175: 166 | B175: RPOWER | C175: 30.5 | D175: 30.32 | E175: 29.93 | F175: 29.37 | G175: 28.98 | H175: 30.88 | I175: 31.27 | J175: 31.83 | K175: 30.7 | L175: 29.75 | M175: 57.90479
A176: 167 | B176: RECLTD | C176: 124.2 | D176: 123.63 | E176: 121.37 | F176: 118.53 | G176: 116.27 | H176: 126.47 | I176: 128.73 | J176: 131.57 | K176: 125.9 | L176: 120.8 | M176: 55.57713
A177: 168 | B177: SRF | C177: 2071.55 | D177: 2054.87 | E177: 2033.73 | F177: 1995.92 | G177: 1974.78 | H177: 2092.68 | I177: 2113.82 | J177: 2151.63 | K177: 2076 | L177: 2017.05 | M177: 3.96791
A178: 169 | B178: SHREECEM | C178: 15181.5 | D178: 15111.15 | E178: 14775.35 | F178: 14369.20 | G178: 14033.40 | H178: 15517.30 | I178: 15853.10 | J178: 16259.25 | K178: 15446.95 | L178: 14705 | M178: 0.225
A179: 170 | B179: SRTRANSFIN | C179: 1216.5 | D179: 1205.53 | E179: 1180.97 | F179: 1145.43 | G179: 1120.87 | H179: 1241.07 | I179: 1265.63 | J179: 1301.17 | K179: 1230.1 | L179: 1170 | M179: 10.89517
A180: 171 | B180: SIEMENS | C180: 913.9 | D180: 916.87 | E180: 899.08 | F180: 884.27 | G180: 866.48 | H180: 931.68 | I180: 949.47 | J180: 964.28 | K180: 934.65 | L180: 902.05 | M180: 3.55658
A181: 172 | B181: SBIN | C181: 278.05 | D181: 277.03 | E181: 274.37 | F181: 270.68 | G181: 268.02 | H181: 280.72 | I181: 283.38 | J181: 287.07 | K181: 279.7 | L181: 273.35 | M181: 256.33628
A182: 173 | B182: SAIL | C182: 64.75 | D182: 64.98 | E182: 64.12 | F182: 63.48 | G182: 62.62 | H182: 65.62 | I182: 66.48 | J182: 67.12 | K182: 65.85 | L182: 64.35 | M182: 65.849
A183: 174 | B183: SPARC | C183: 282.5 | D183: 284.63 | E183: 278.87 | F183: 275.23 | G183: 269.47 | H183: 288.27 | I183: 294.03 | J183: 297.67 | K183: 290.4 | L183: 281 | M183: 1.79524
A184: 175 | B184: SUNPHARMA | C184: 561.75 | D184: 570.30 | E184: 547.70 | F184: 533.65 | G184: 511.05 | H184: 584.35 | I184: 606.95 | J184: 621.00 | K184: 592.9 | L184: 556.25 | M184: 91.76639
A185: 176 | B185: SUNTV | C185: 611.3 | D185: 612.10 | E185: 604.20 | F185: 597.10 | G185: 589.20 | H185: 619.20 | I185: 627.10 | J185: 634.20 | K185: 620 | L185: 605 | M185: 12.79624
A186: 177 | B186: SUZLON | C186: 6 | D186: 6.03 | E186: 5.87 | F186: 5.73 | G186: 5.57 | H186: 6.17 | I186: 6.33 | J186: 6.47 | K186: 6.2 | L186: 5.9 | M186: 246.13611
A187: 178 | B187: SYNDIBANK | C187: 34.35 | D187: 34.30 | E187: 34.00 | F187: 33.65 | G187: 33.35 | H187: 34.65 | I187: 34.95 | J187: 35.30 | K187: 34.6 | L187: 33.95 | M187: 26.36017
A188: 179 | B188: SYNGENE | C188: 580.75 | D188: 580.43 | E188: 577.87 | F188: 574.98 | G188: 572.42 | H188: 583.32 | I188: 585.88 | J188: 588.77 | K188: 583 | L188: 577.55 | M188: 0.11313
A189: 180 | B189: TV18BRDCST | C189: 36.5 | D189: 36.53 | E189: 35.72 | F189: 34.93 | G189: 34.12 | H189: 37.32 | I189: 38.13 | J189: 38.92 | K189: 37.35 | L189: 35.75 | M189: 34.30737
A190: 181 | B190: TVSMOTOR | C190: 545.5 | D190: 543.45 | E190: 537.05 | F190: 528.60 | G190: 522.20 | H190: 551.90 | I190: 558.30 | J190: 566.75 | K190: 549.85 | L190: 535 | M190: 6.53028
A191: 182 | B191: TATACHEM | C191: 687.05 | D191: 690.03 | E191: 677.42 | F191: 667.78 | G191: 655.17 | H191: 699.67 | I191: 712.28 | J191: 721.92 | K191: 702.65 | L191: 680.4 | M191: 5.39666
A192: 183 | B192: TATACOMM | C192: 516.75 | D192: 511.40 | E192: 504.05 | F192: 491.35 | G192: 484.00 | H192: 524.10 | I192: 531.45 | J192: 544.15 | K192: 518.75 | L192: 498.7 | M192: 3.51161
A193: 184 | B193: TCS | C193: 1934.95 | D193: 1925.65 | E193: 1912.30 | F193: 1889.65 | G193: 1876.30 | H193: 1948.30 | I193: 1961.65 | J193: 1984.30 | K193: 1939 | L193: 1903 | M193: 14.18432
A194: 185 | B194: TATAGLOBAL | C194: 219.95 | D194: 217.65 | E194: 214.10 | F194: 208.25 | G194: 204.70 | H194: 223.50 | I194: 227.05 | J194: 232.90 | K194: 221.2 | L194: 211.8 | M194: 17.73622
A195: 186 | B195: TATAMTRDVR | C195: 98.15 | D195: 98.28 | E195: 96.97 | F195: 95.78 | G195: 94.47 | H195: 99.47 | I195: 100.78 | J195: 101.97 | K195: 99.6 | L195: 97.1 | M195: 26.90945
A196: 187 | B196: TATAMOTORS | C196: 179.5 | D196: 180.28 | E196: 177.57 | F196: 175.63 | G196: 172.92 | H196: 182.22 | I196: 184.93 | J196: 186.87 | K196: 183 | L196: 178.35 | M196: 221.89598
A197: 188 | B197: TATAPOWER | C197: 76.05 | D197: 75.22 | E197: 73.93 | F197: 71.82 | G197: 70.53 | H197: 77.33 | I197: 78.62 | J197: 80.73 | K197: 76.5 | L197: 73.1 | M197: 56.09725
A198: 189 | B198: TATASTEEL | C198: 589.2 | D198: 586.60 | E198: 581.70 | F198: 574.20 | G198: 569.30 | H198: 594.10 | I198: 599.00 | J198: 606.50 | K198: 591.5 | L198: 579.1 | M198: 76.26487
A199: 190 | B199: TECHM | C199: 728.05 | D199: 728.47 | E199: 717.58 | F199: 707.12 | G199: 696.23 | H199: 738.93 | I199: 749.82 | J199: 760.28 | K199: 739.35 | L199: 718 | M199: 44.01141
A200: 191 | B200: RAMCOCEM | C200: 605.15 | D200: 602.17 | E200: 595.33 | F200: 585.52 | G200: 578.68 | H200: 611.98 | I200: 618.82 | J200: 628.63 | K200: 609 | L200: 592.35 | M200: 2.40507
A201: 192 | B201: TITAN | C201: 897.5 | D201: 892.08 | E201: 884.52 | F201: 871.53 | G201: 863.97 | H201: 905.07 | I201: 912.63 | J201: 925.62 | K201: 899.65 | L201: 879.1 | M201: 44.32001
A202: 193 | B202: TORNTPHARM | C202: 1690 | D202: 1677.55 | E202: 1651.45 | F202: 1612.90 | G202: 1586.80 | H202: 1716.10 | I202: 1742.20 | J202: 1780.75 | K202: 1703.65 | L202: 1639 | M202: 3.50966
A203: 194 | B203: TORNTPOWER | C203: 265.65 | D203: 262.85 | E203: 257.90 | F203: 250.15 | G203: 245.20 | H203: 270.60 | I203: 275.55 | J203: 283.30 | K203: 267.8 | L203: 255.1 | M203: 11.03217
A204: 195 | B204: UPL | C204: 736.55 | D204: 730.97 | E204: 721.98 | F204: 707.42 | G204: 698.43 | H204: 745.53 | I204: 754.52 | J204: 769.08 | K204: 739.95 | L204: 716.4 | M204: 15.69155
A205: 196 | B205: ULTRACEMCO | C205: 3829.9 | D205: 3801.20 | E205: 3753.15 | F205: 3676.40 | G205: 3628.35 | H205: 3877.95 | I205: 3926.00 | J205: 4002.75 | K205: 3849.25 | L205: 3724.45 | M205: 2.1351
... 30 more rows

Sheet MidCap Intra
L5: Back To Main Page
A6: FOR INTRA DAY TRADING | K6: =Main!B10 -> 2018-11-14
A9: Sr.no | B9: Scrip | C9: CLOSE RATE | D9: Pivot Point | E9: Supports | H9: Resistances
C10: Point | E10: S1 | F10: S2 | G10: S3 | H10: R1 | I10: R2 | J10: R3 | K10: HIGH | L10: LOW | M10: Total Trade Quanity in Lakhs
A11: 1 | B11: 3MINDIA | C11: 20439.3 | D11: 20420.68 | E11: 20318.62 | F11: 20197.93 | G11: 20095.87 | H11: 20541.37 | I11: 20643.43 | J11: 20764.12 | K11: 20522.75 | L11: 20300 | M11: 0.01585
A12: 2 | B12: 8KMILES | C12: 102.6 | D12: 101.65 | E12: 100.70 | F12: 98.80 | G12: 97.85 | H12: 103.55 | I12: 104.50 | J12: 106.40 | K12: 102.6 | L12: 99.75 | M12: 7.73324
A13: 3 | B13: AARTIIND | C13: 1375.3 | D13: 1374.45 | E13: 1365.85 | F13: 1356.40 | G13: 1347.80 | H13: 1383.90 | I13: 1392.50 | J13: 1401.95 | K13: 1383.05 | L13: 1365 | M13: 0.18918
A14: 4 | B14: ABAN | C14: 86.2 | D14: 84.60 | E14: 81.90 | F14: 77.60 | G14: 74.90 | H14: 88.90 | I14: 91.60 | J14: 95.90 | K14: 87.3 | L14: 80.3 | M14: 16.0164
A15: 5 | B15: ABB | C15: 1297.7 | D15: 1303.82 | E15: 1287.43 | F15: 1277.17 | G15: 1260.78 | H15: 1314.08 | I15: 1330.47 | J15: 1340.73 | K15: 1320.2 | L15: 1293.55 | M15: 0.3735
A16: 6 | B16: ABCAPITAL | C16: 103.75 | D16: 103.08 | E16: 102.17 | F16: 100.58 | G16: 99.67 | H16: 104.67 | I16: 105.58 | J16: 107.17 | K16: 104 | L16: 101.5 | M16: 12.33774
A17: 7 | B17: ABFRL | C17: 192.85 | D17: 193.82 | E17: 190.03 | F17: 187.22 | G17: 183.43 | H17: 196.63 | I17: 200.42 | J17: 203.23 | K17: 197.6 | L17: 191 | M17: 9.90045
A18: 8 | B18: ACC | C18: 1457.2 | D18: 1448.85 | E18: 1432.35 | F18: 1407.50 | G18: 1391.00 | H18: 1473.70 | I18: 1490.20 | J18: 1515.05 | K18: 1465.35 | L18: 1424 | M18: 4.58083
A19: 9 | B19: ADANIPORTS | C19: 334.1 | D19: 331.27 | E19: 327.53 | F19: 320.97 | G19: 317.23 | H19: 337.83 | I19: 341.57 | J19: 348.13 | K19: 335 | L19: 324.7 | M19: 17.38296
A20: 10 | B20: ADANIPOWER | C20: 48.55 | D20: 48.38 | E20: 47.57 | F20: 46.58 | G20: 45.77 | H20: 49.37 | I20: 50.18 | J20: 51.17 | K20: 49.2 | L20: 47.4 | M20: 205.60525
A21: 11 | B21: ADANITRANS | C21: 173.1 | D21: 172.22 | E21: 167.13 | F21: 161.17 | G21: 156.08 | H21: 178.18 | I21: 183.27 | J21: 189.23 | K21: 177.3 | L21: 166.25 | M21: 1.77485
A22: 12 | B22: ADVENZYMES | C22: 186.45 | D22: 187.03 | E22: 185.27 | F22: 184.08 | G22: 182.32 | H22: 188.22 | I22: 189.98 | J22: 191.17 | K22: 188.8 | L22: 185.85 | M22: 0.24395
A23: 13 | B23: AEGISCHEM | C23: 217.4 | D23: 218.28 | E23: 214.87 | F23: 212.33 | G23: 208.92 | H23: 220.82 | I23: 224.23 | J23: 226.77 | K23: 221.7 | L23: 215.75 | M23: 0.52831
A24: 14 | B24: AIAENG | C24: 1700.2 | D24: 1694.27 | E24: 1676.03 | F24: 1651.87 | G24: 1633.63 | H24: 1718.43 | I24: 1736.67 | J24: 1760.83 | K24: 1712.5 | L24: 1670.1 | M24: 0.07584
A25: 15 | B25: AJANTPHARM | C25: 1075.35 | D25: 1071.53 | E25: 1061.07 | F25: 1046.78 | G25: 1036.32 | H25: 1085.82 | I25: 1096.28 | J25: 1110.57 | K25: 1082 | L25: 1057.25 | M25: 1.53204
A26: 16 | B26: AKZOINDIA | C26: 1586 | D26: 1587.52 | E26: 1578.53 | F26: 1571.07 | G26: 1562.08 | H26: 1594.98 | I26: 1603.97 | J26: 1611.43 | K26: 1596.5 | L26: 1580.05 | M26: 0.01496
A27: 17 | B27: ALBK | C27: 37.4 | D27: 38.42 | E27: 34.43 | F27: 31.47 | G27: 27.48 | H27: 41.38 | I27: 45.37 | J27: 48.33 | K27: 42.4 | L27: 35.45 | M27: 342.54361
A28: 18 | B28: ALKEM | C28: 1969.6 | D28: 1959.78 | E28: 1944.97 | F28: 1920.33 | G28: 1905.52 | H28: 1984.42 | I28: 1999.23 | J28: 2023.87 | K28: 1974.6 | L28: 1935.15 | M28: 0.19023
A29: 19 | B29: ALLCARGO | C29: 105.7 | D29: 105.73 | E29: 104.52 | F29: 103.33 | G29: 102.12 | H29: 106.92 | I29: 108.13 | J29: 109.32 | K29: 106.95 | L29: 104.55 | M29: 0.5948
A30: 20 | B30: AMARAJABAT | C30: 743.4 | D30: 746.08 | E30: 728.97 | F30: 714.53 | G30: 697.42 | H30: 760.52 | I30: 777.63 | J30: 792.07 | K30: 763.2 | L30: 731.65 | M30: 4.84154
A31: 21 | B31: AMBUJACEM | C31: 205.85 | D31: 204.55 | E31: 202.70 | F31: 199.55 | G31: 197.70 | H31: 207.70 | I31: 209.55 | J31: 212.70 | K31: 206.4 | L31: 201.4 | M31: 20.24625
A32: 22 | B32: ANDHRABANK | C32: 28.7 | D32: 28.88 | E32: 28.32 | F32: 27.93 | G32: 27.37 | H32: 29.27 | I32: 29.83 | J32: 30.22 | K32: 29.45 | L32: 28.5 | M32: 9.78555
A33: 23 | B33: APLAPOLLO | C33: 1264.6 | D33: 1257.25 | E33: 1239.50 | F33: 1214.40 | G33: 1196.65 | H33: 1282.35 | I33: 1300.10 | J33: 1325.20 | K33: 1275 | L33: 1232.15 | M33: 0.11296
A34: 24 | B34: APLLTD | C34: 590.55 | D34: 591.03 | E34: 589.37 | F34: 588.18 | G34: 586.52 | H34: 592.22 | I34: 593.88 | J34: 595.07 | K34: 592.7 | L34: 589.85 | M34: 0.19366
A35: 25 | B35: APOLLOHOSP | C35: 1143.6 | D35: 1136.75 | E35: 1119.10 | F35: 1094.60 | G35: 1076.95 | H35: 1161.25 | I35: 1178.90 | J35: 1203.40 | K35: 1154.4 | L35: 1112.25 | M35: 4.42309
A36: 26 | B36: APOLLOTYRE | C36: 222.6 | D36: 219.70 | E36: 214.90 | F36: 207.20 | G36: 202.40 | H36: 227.40 | I36: 232.20 | J36: 239.90 | K36: 224.5 | L36: 212 | M36: 100.96359
A37: 27 | B37: ARVIND | C37: 311.4 | D37: 309.38 | E37: 305.02 | F37: 298.63 | G37: 294.27 | H37: 315.77 | I37: 320.13 | J37: 326.52 | K37: 313.75 | L37: 303 | M37: 25.88073
A38: 28 | B38: ASAHIINDIA | C38: 284 | D38: 285.50 | E38: 281.50 | F38: 279.00 | G38: 275.00 | H38: 288.00 | I38: 292.00 | J38: 294.50 | K38: 289.5 | L38: 283 | M38: 0.10526
A39: 29 | B39: ASHOKA | C39: 132.95 | D39: 130.65 | E39: 123.30 | F39: 113.65 | G39: 106.30 | H39: 140.30 | I39: 147.65 | J39: 157.30 | K39: 138 | L39: 121 | M39: 13.85567
A40: 30 | B40: ASHOKLEY | C40: 119 | D40: 118.48 | E40: 117.62 | F40: 116.23 | G40: 115.37 | H40: 119.87 | I40: 120.73 | J40: 122.12 | K40: 119.35 | L40: 117.1 | M40: 154.07719
A41: 31 | B41: ASIANPAINT | C41: 1284.9 | D41: 1285.98 | E41: 1276.37 | F41: 1267.83 | G41: 1258.22 | H41: 1294.52 | I41: 1304.13 | J41: 1312.67 | K41: 1295.6 | L41: 1277.45 | M41: 16.32176
A42: 32 | B42: ASTRAL | C42: 960.5 | D42: 957.27 | E42: 944.63 | F42: 928.77 | G42: 916.13 | H42: 973.13 | I42: 985.77 | J42: 1001.63 | K42: 969.9 | L42: 941.4 | M42: 0.26768
A43: 33 | B43: ATUL | C43: 3399.55 | D43: 3389.15 | E43: 3368.30 | F43: 3337.05 | G43: 3316.20 | H43: 3420.40 | I43: 3441.25 | J43: 3472.50 | K43: 3410 | L43: 3357.9 | M43: 0.0528
A44: 34 | B44: AUBANK | C44: 536.8 | D44: 534.93 | E44: 521.87 | F44: 506.93 | G44: 493.87 | H44: 549.87 | I44: 562.93 | J44: 577.87 | K44: 548 | L44: 520 | M44: 2.87241
A45: 35 | B45: AUROPHARMA | C45: 774.7 | D45: 783.00 | E45: 751.00 | F45: 727.30 | G45: 695.30 | H45: 806.70 | I45: 838.70 | J45: 862.40 | K45: 815 | L45: 759.3 | M45: 61.22728
A46: 36 | B46: AVANTIFEED | C46: 374.85 | D46: 376.18 | E46: 370.07 | F46: 365.28 | G46: 359.17 | H46: 380.97 | I46: 387.08 | J46: 391.87 | K46: 382.3 | L46: 371.4 | M46: 4.86431
A47: 37 | B47: AXISBANK | C47: 618.3 | D47: 614.37 | E47: 607.98 | F47: 597.67 | G47: 591.28 | H47: 624.68 | I47: 631.07 | J47: 641.38 | K47: 620.75 | L47: 604.05 | M47: 89.38939
A48: 38 | B48: BAJAJ-AUTO | C48: 2665.5 | D48: 2650.63 | E48: 2627.87 | F48: 2590.23 | G48: 2567.47 | H48: 2688.27 | I48: 2711.03 | J48: 2748.67 | K48: 2673.4 | L48: 2613 | M48: 3.05897
A49: 39 | B49: BAJAJCORP | C49: 356.35 | D49: 355.78 | E49: 350.57 | F49: 344.78 | G49: 339.57 | H49: 361.57 | I49: 366.78 | J49: 372.57 | K49: 361 | L49: 350 | M49: 0.81431
A50: 40 | B50: BAJAJELEC | C50: 503.7 | D50: 500.10 | E50: 493.65 | F50: 483.60 | G50: 477.15 | H50: 510.15 | I50: 516.60 | J50: 526.65 | K50: 506.55 | L50: 490.05 | M50: 1.17542
A51: 41 | B51: BAJAJFINSV | C51: 5571.7 | D51: 5572.37 | E51: 5535.38 | F51: 5499.07 | G51: 5462.08 | H51: 5608.68 | I51: 5645.67 | J51: 5681.98 | K51: 5609.35 | L51: 5536.05 | M51: 1.48588
A52: 42 | B52: BAJAJHIND | C52: 11.35 | D52: 11.48 | E52: 11.12 | F52: 10.88 | G52: 10.52 | H52: 11.72 | I52: 12.08 | J52: 12.32 | K52: 11.85 | L52: 11.25 | M52: 79.14965
A53: 43 | B53: BAJAJHLDNG | C53: 2854.15 | D53: 2842.55 | E53: 2787.20 | F53: 2720.25 | G53: 2664.90 | H53: 2909.50 | I53: 2964.85 | J53: 3031.80 | K53: 2897.9 | L53: 2775.6 | M53: 0.33399
A54: 44 | B54: BAJFINANCE | C54: 2285 | D54: 2275.48 | E54: 2242.62 | F54: 2200.23 | G54: 2167.37 | H54: 2317.87 | I54: 2350.73 | J54: 2393.12 | K54: 2308.35 | L54: 2233.1 | M54: 22.9771
A55: 45 | B55: BALKRISIND | C55: 958.8 | D55: 952.93 | E55: 943.87 | F55: 928.93 | G55: 919.87 | H55: 967.87 | I55: 976.93 | J55: 991.87 | K55: 962 | L55: 938 | M55: 9.39622
A56: 46 | B56: BALLARPUR | C56: 6.15 | D56: 6.27 | E56: 6.03 | F56: 5.92 | G56: 5.68 | H56: 6.38 | I56: 6.62 | J56: 6.73 | K56: 6.5 | L56: 6.15 | M56: 7.35341
A57: 47 | B57: BALMLAWRIE | C57: 198.35 | D57: 198.72 | E57: 195.63 | F57: 192.92 | G57: 189.83 | H57: 201.43 | I57: 204.52 | J57: 207.23 | K57: 201.8 | L57: 196 | M57: 0.51595
A58: 48 | B58: BALRAMCHIN | C58: 112.85 | D58: 113.93 | E58: 111.02 | F58: 109.18 | G58: 106.27 | H58: 115.77 | I58: 118.68 | J58: 120.52 | K58: 116.85 | L58: 112.1 | M58: 48.74665
A59: 49 | B59: BANKBARODA | C59: 108.7 | D59: 108.12 | E59: 106.98 | F59: 105.27 | G59: 104.13 | H59: 109.83 | I59: 110.97 | J59: 112.68 | K59: 109.25 | L59: 106.4 | M59: 142.4222
A60: 50 | B60: BANKINDIA | C60: 81 | D60: 82.02 | E60: 78.58 | F60: 76.17 | G60: 72.73 | H60: 84.43 | I60: 87.87 | J60: 90.28 | K60: 85.45 | L60: 79.6 | M60: 346.91996
A61: 51 | B61: BASF | C61: 1595.8 | D61: 1601.27 | E61: 1581.53 | F61: 1567.27 | G61: 1547.53 | H61: 1615.53 | I61: 1635.27 | J61: 1649.53 | K61: 1621 | L61: 1587 | M61: 0.02865
A62: 52 | B62: BATAINDIA | C62: 1010.6 | D62: 1013.15 | E62: 1001.50 | F62: 992.40 | G62: 980.75 | H62: 1022.25 | I62: 1033.90 | J62: 1043.00 | K62: 1024.8 | L62: 1004.05 | M62: 7.39958
A63: 53 | B63: BBTC | C63: 1414.4 | D63: 1406.55 | E63: 1379.40 | F63: 1344.40 | G63: 1317.25 | H63: 1441.55 | I63: 1468.70 | J63: 1503.70 | K63: 1433.7 | L63: 1371.55 | M63: 1.86003
A64: 54 | B64: BEL | C64: 94.6 | D64: 94.20 | E64: 93.10 | F64: 91.60 | G64: 90.50 | H64: 95.70 | I64: 96.80 | J64: 98.30 | K64: 95.3 | L64: 92.7 | M64: 37.65515
A65: 55 | B65: BEML | C65: 723.25 | D65: 717.63 | E65: 706.77 | F65: 690.28 | G65: 679.42 | H65: 734.12 | I65: 744.98 | J65: 761.47 | K65: 728.5 | L65: 701.15 | M65: 8.75068
A66: 56 | B66: BERGEPAINT | C66: 309.1 | D66: 306.40 | E66: 302.80 | F66: 296.50 | G66: 292.90 | H66: 312.70 | I66: 316.30 | J66: 322.60 | K66: 310 | L66: 300.1 | M66: 8.34886
A67: 57 | B67: BFUTILITIE | C67: 216.85 | D67: 216.05 | E67: 212.80 | F67: 208.75 | G67: 205.50 | H67: 220.10 | I67: 223.35 | J67: 227.40 | K67: 219.3 | L67: 212 | M67: 2.04362
A68: 58 | B68: BGRENERGY | C68: 66.8 | D68: 66.10 | E68: 63.50 | F68: 60.20 | G68: 57.60 | H68: 69.40 | I68: 72.00 | J68: 75.30 | K68: 68.7 | L68: 62.8 | M68: 2.80014
A69: 59 | B69: BHARATFIN | C69: 921.2 | D69: 916.93 | E69: 909.27 | F69: 897.33 | G69: 889.67 | H69: 928.87 | I69: 936.53 | J69: 948.47 | K69: 924.6 | L69: 905 | M69: 1.45176
A70: 60 | B70: BHARATFORG | C70: 590.05 | D70: 587.13 | E70: 581.77 | F70: 573.48 | G70: 568.12 | H70: 595.42 | I70: 600.78 | J70: 609.07 | K70: 592.5 | L70: 578.85 | M70: 5.98683
A71: 61 | B71: BHARTIARTL | C71: 297.55 | D71: 297.28 | E71: 290.57 | F71: 283.58 | G71: 276.87 | H71: 304.27 | I71: 310.98 | J71: 317.97 | K71: 304 | L71: 290.3 | M71: 38.91168
A72: 62 | B72: BHEL | C72: 68.7 | D72: 68.65 | E72: 67.85 | F72: 67.00 | G72: 66.20 | H72: 69.50 | I72: 70.30 | J72: 71.15 | K72: 69.45 | L72: 67.8 | M72: 54.92697
A73: 63 | B73: BHUSANSTL | C73: 27.85 | D73: 27.77 | E73: 27.58 | F73: 27.32 | G73: 27.13 | H73: 28.03 | I73: 28.22 | J73: 28.48 | K73: 27.95 | L73: 27.5 | M73: 2.93633
A74: 64 | B74: BIOCON | C74: 617.45 | D74: 618.27 | E74: 605.78 | F74: 594.12 | G74: 581.63 | H74: 629.93 | I74: 642.42 | J74: 654.08 | K74: 630.75 | L74: 606.6 | M74: 21.63419
A75: 65 | B75: BIRLACORPN | C75: 621.5 | D75: 622.50 | E75: 614.00 | F75: 606.50 | G75: 598.00 | H75: 630.00 | I75: 638.50 | J75: 646.00 | K75: 631 | L75: 615 | M75: 0.16954
A76: 66 | B76: BLISSGVS | C76: 170.35 | D76: 169.60 | E76: 166.35 | F76: 162.35 | G76: 159.10 | H76: 173.60 | I76: 176.85 | J76: 180.85 | K76: 172.85 | L76: 165.6 | M76: 0.93227
A77: 67 | B77: BLUEDART | C77: 2919.8 | D77: 2918.27 | E77: 2891.53 | F77: 2863.27 | G77: 2836.53 | H77: 2946.53 | I77: 2973.27 | J77: 3001.53 | K77: 2945 | L77: 2890 | M77: 0.01352
A78: 68 | B78: BLUESTARCO | C78: 571.2 | D78: 566.70 | E78: 559.50 | F78: 547.80 | G78: 540.60 | H78: 578.40 | I78: 585.60 | J78: 597.30 | K78: 573.9 | L78: 555 | M78: 0.08675
A79: 69 | B79: BOMDYEING | C79: 122.15 | D79: 119.98 | E79: 115.17 | F79: 108.18 | G79: 103.37 | H79: 126.97 | I79: 131.78 | J79: 138.77 | K79: 124.8 | L79: 113 | M79: 29.06942
A80: 70 | B80: BOSCHLTD | C80: 19655.15 | D80: 19667.22 | E80: 19489.43 | F80: 19323.72 | G80: 19145.93 | H80: 19832.93 | I80: 20010.72 | J80: 20176.43 | K80: 19845 | L80: 19501.5 | M80: 0.08195
A81: 71 | B81: BPCL | C81: 303.15 | D81: 300.98 | E81: 297.37 | F81: 291.58 | G81: 287.97 | H81: 306.77 | I81: 310.38 | J81: 316.17 | K81: 304.6 | L81: 295.2 | M81: 77.13771
A82: 72 | B82: BRFL | C82: 14.9 | D82: 15.13 | E82: 14.67 | F82: 14.43 | G82: 13.97 | H82: 15.37 | I82: 15.83 | J82: 16.07 | K82: 15.6 | L82: 14.9 | M82: 0.30677
A83: 73 | B83: BRIGADE | C83: 177.65 | D83: 180.57 | E83: 172.13 | F83: 166.62 | G83: 158.18 | H83: 186.08 | I83: 194.52 | J83: 200.03 | K83: 189 | L83: 175.05 | M83: 1.09572
A84: 74 | B84: BRITANNIA | C84: 5812.55 | D84: 5769.52 | E84: 5699.03 | F84: 5585.52 | G84: 5515.03 | H84: 5883.03 | I84: 5953.52 | J84: 6067.03 | K84: 5840 | L84: 5656 | M84: 1.80903
A85: 75 | B85: BSE | C85: 620.8 | D85: 619.98 | E85: 616.87 | F85: 612.93 | G85: 609.82 | H85: 623.92 | I85: 627.03 | J85: 630.97 | K85: 623.1 | L85: 616.05 | M85: 0.39317
A86: 77 | B86: CADILAHC | C86: 355.3 | D86: 354.27 | E86: 350.03 | F86: 344.77 | G86: 340.53 | H86: 359.53 | I86: 363.77 | J86: 369.03 | K86: 358.5 | L86: 349 | M86: 5.29106
A87: 78 | B87: CANBK | C87: 243.25 | D87: 241.32 | E87: 236.63 | F87: 230.02 | G87: 225.33 | H87: 247.93 | I87: 252.62 | J87: 259.23 | K87: 246 | L87: 234.7 | M87: 61.28406
A88: 79 | B88: CANFINHOME | C88: 282.2 | D88: 278.73 | E88: 274.02 | F88: 265.83 | G88: 261.12 | H88: 286.92 | I88: 291.63 | J88: 299.82 | K88: 283.45 | L88: 270.55 | M88: 7.08468
A89: 80 | B89: CAPF | C89: 479.6 | D89: 480.35 | E89: 473.05 | F89: 466.50 | G89: 459.20 | H89: 486.90 | I89: 494.20 | J89: 500.75 | K89: 487.65 | L89: 473.8 | M89: 4.28449
A90: 81 | B90: CAPLIPOINT | C90: 436.8 | D90: 436.73 | E90: 433.07 | F90: 429.33 | G90: 425.67 | H90: 440.47 | I90: 444.13 | J90: 447.87 | K90: 440.4 | L90: 433 | M90: 0.11981
A91: 82 | B91: CARBORUNIV | C91: 361.6 | D91: 361.27 | E91: 358.58 | F91: 355.57 | G91: 352.88 | H91: 364.28 | I91: 366.97 | J91: 369.98 | K91: 363.95 | L91: 358.25 | M91: 0.35229
A92: 83 | B92: CARERATING | C92: 1026.65 | D92: 1033.88 | E92: 1012.77 | F92: 998.88 | G92: 977.77 | H92: 1047.77 | I92: 1068.88 | J92: 1082.77 | K92: 1055 | L92: 1020 | M92: 0.33153
A93: 84 | B93: CASTROLIND | C93: 148.25 | D93: 147.27 | E93: 145.98 | F93: 143.72 | G93: 142.43 | H93: 149.53 | I93: 150.82 | J93: 153.08 | K93: 148.55 | L93: 145 | M93: 7.51101
A94: 85 | B94: CCL | C94: 271.7 | D94: 270.25 | E94: 267.60 | F94: 263.50 | G94: 260.85 | H94: 274.35 | I94: 277.00 | J94: 281.10 | K94: 272.9 | L94: 266.15 | M94: 0.90099
A95: 86 | B95: CDSL | C95: 242.55 | D95: 242.90 | E95: 240.20 | F95: 237.85 | G95: 235.15 | H95: 245.25 | I95: 247.95 | J95: 250.30 | K95: 245.6 | L95: 240.55 | M95: 0.90529
A96: 87 | B96: CEATLTD | C96: 1256.5 | D96: 1237.30 | E96: 1214.60 | F96: 1172.70 | G96: 1150.00 | H96: 1279.20 | I96: 1301.90 | J96: 1343.80 | K96: 1260 | L96: 1195.4 | M96: 12.79691
A97: 88 | B97: CENTRALBK | C97: 31.3 | D97: 31.20 | E97: 30.60 | F97: 29.90 | G97: 29.30 | H97: 31.90 | I97: 32.50 | J97: 33.20 | K97: 31.8 | L97: 30.5 | M97: 4.40607
A98: 89 | B98: CENTURYPLY | C98: 171.7 | D98: 171.48 | E98: 170.22 | F98: 168.73 | G98: 167.47 | H98: 172.97 | I98: 174.23 | J98: 175.72 | K98: 172.75 | L98: 170 | M98: 1.31481
A99: 90 | B99: CENTURYTEX | C99: 890.55 | D99: 886.13 | E99: 877.67 | F99: 864.78 | G99: 856.32 | H99: 899.02 | I99: 907.48 | J99: 920.37 | K99: 894.6 | L99: 873.25 | M99: 4.4887
A100: 91 | B100: CERA | C100: 2401.05 | D100: 2397.33 | E100: 2367.77 | F100: 2334.48 | G100: 2304.92 | H100: 2430.62 | I100: 2460.18 | J100: 2493.47 | K100: 2426.9 | L100: 2364.05 | M100: 0.03103
A101: 92 | B101: CGPOWER | C101: 35.45 | D101: 35.42 | E101: 34.83 | F101: 34.22 | G101: 33.63 | H101: 36.03 | I101: 36.62 | J101: 37.23 | K101: 36 | L101: 34.8 | M101: 46.63522
A102: 93 | B102: CHAMBLFERT | C102: 142.2 | D102: 141.87 | E102: 140.38 | F102: 138.57 | G102: 137.08 | H102: 143.68 | I102: 145.17 | J102: 146.98 | K102: 143.35 | L102: 140.05 | M102: 0.93771
A103: 94 | B103: CHENNPETRO | C103: 272.15 | D103: 271.40 | E103: 266.80 | F103: 261.45 | G103: 256.85 | H103: 276.75 | I103: 281.35 | J103: 286.70 | K103: 276 | L103: 266.05 | M103: 3.53661
A104: 95 | B104: CHOLAFIN | C104: 1329.1 | D104: 1317.50 | E104: 1303.00 | F104: 1276.90 | G104: 1262.40 | H104: 1343.60 | I104: 1358.10 | J104: 1384.20 | K104: 1332 | L104: 1291.4 | M104: 3.91011
A105: 96 | B105: CIPLA | C105: 528.1 | D105: 529.53 | E105: 525.07 | F105: 522.03 | G105: 517.57 | H105: 532.57 | I105: 537.03 | J105: 540.07 | K105: 534 | L105: 526.5 | M105: 24.10643
A106: 97 | B106: COALINDIA | C106: 265.55 | D106: 266.13 | E106: 263.57 | F106: 261.58 | G106: 259.02 | H106: 268.12 | I106: 270.68 | J106: 272.67 | K106: 268.7 | L106: 264.15 | M106: 69.00299
A107: 98 | B107: COCHINSHIP | C107: 382 | D107: 383.08 | E107: 380.22 | F107: 378.43 | G107: 375.57 | H107: 384.87 | I107: 387.73 | J107: 389.52 | K107: 385.95 | L107: 381.3 | M107: 0.59982
A108: 99 | B108: COFFEEDAY | C108: 286.2 | D108: 285.08 | E108: 282.17 | F108: 278.13 | G108: 275.22 | H108: 289.12 | I108: 292.03 | J108: 296.07 | K108: 288 | L108: 281.05 | M108: 1.96185
A109: 100 | B109: COLPAL | C109: 1107.2 | D109: 1102.47 | E109: 1094.73 | F109: 1082.27 | G109: 1074.53 | H109: 1114.93 | I109: 1122.67 | J109: 1135.13 | K109: 1110.2 | L109: 1090 | M109: 2.58616
A110: 101 | B110: CONCOR | C110: 670.2 | D110: 665.25 | E110: 645.70 | F110: 621.20 | G110: 601.65 | H110: 689.75 | I110: 709.30 | J110: 733.80 | K110: 684.8 | L110: 640.75 | M110: 13.29406
A111: 102 | B111: COROMANDEL | C111: 417.9 | D111: 416.53 | E111: 411.47 | F111: 405.03 | G111: 399.97 | H111: 422.97 | I111: 428.03 | J111: 434.47 | K111: 421.6 | L111: 410.1 | M111: 0.21764
A112: 103 | B112: COX&KINGS | C112: 195.05 | D112: 194.47 | E112: 191.63 | F112: 188.22 | G112: 185.38 | H112: 197.88 | I112: 200.72 | J112: 204.13 | K112: 197.3 | L112: 191.05 | M112: 0.39949
A113: 104 | B113: CRISIL | C113: 1503.25 | D113: 1498.75 | E113: 1482.50 | F113: 1461.75 | G113: 1445.50 | H113: 1519.50 | I113: 1535.75 | J113: 1556.50 | K113: 1515 | L113: 1478 | M113: 0.0452
A114: 105 | B114: CROMPTON | C114: 206.5 | D114: 207.02 | E114: 200.53 | F114: 194.57 | G114: 188.08 | H114: 212.98 | I114: 219.47 | J114: 225.43 | K114: 213.5 | L114: 201.05 | M114: 7.87326
A115: 106 | B115: CUB | C115: 165.25 | D115: 165.22 | E115: 164.68 | F115: 164.12 | G115: 163.58 | H115: 165.78 | I115: 166.32 | J115: 166.88 | K115: 165.75 | L115: 164.65 | M115: 3.62774
A116: 107 | B116: CUMMINSIND | C116: 783.95 | D116: 788.50 | E116: 772.50 | F116: 761.05 | G116: 745.05 | H116: 799.95 | I116: 815.95 | J116: 827.40 | K116: 804.5 | L116: 777.05 | M116: 4.01867
A117: 108 | B117: CYIENT | C117: 649.9 | D117: 649.25 | E117: 640.65 | F117: 631.40 | G117: 622.80 | H117: 658.50 | I117: 667.10 | J117: 676.35 | K117: 657.85 | L117: 640 | M117: 2.69691
A118: 109 | B118: DABUR | C118: 369.55 | D118: 370.25 | E118: 365.50 | F118: 361.45 | G118: 356.70 | H118: 374.30 | I118: 379.05 | J118: 383.10 | K118: 375 | L118: 366.2 | M118: 36.78684
A119: 110 | B119: DBCORP | C119: 172.45 | D119: 171.52 | E119: 168.93 | F119: 165.42 | G119: 162.83 | H119: 175.03 | I119: 177.62 | J119: 181.13 | K119: 174.1 | L119: 168 | M119: 0.67164
A120: 111 | B120: DBL | C120: 427.25 | D120: 419.05 | E120: 408.20 | F120: 389.15 | G120: 378.30 | H120: 438.10 | I120: 448.95 | J120: 468.00 | K120: 429.9 | L120: 400 | M120: 6.67122
A121: 112 | B121: DBREALTY | C121: 21.65 | D121: 21.82 | E121: 20.78 | F121: 19.92 | G121: 18.88 | H121: 22.68 | I121: 23.72 | J121: 24.58 | K121: 22.85 | L121: 20.95 | M121: 4.51745
A122: 113 | B122: DCAL | C122: 227.4 | D122: 227.32 | E122: 225.38 | F122: 223.37 | G122: 221.43 | H122: 229.33 | I122: 231.27 | J122: 233.28 | K122: 229.25 | L122: 225.3 | M122: 1.28177
A123: 114 | B123: DCBBANK | C123: 157.1 | D123: 156.72 | E123: 154.98 | F123: 152.87 | G123: 151.13 | H123: 158.83 | I123: 160.57 | J123: 162.68 | K123: 158.45 | L123: 154.6 | M123: 23.06582
A124: 115 | B124: DCMSHRIRAM | C124: 421.15 | D124: 424.07 | E124: 414.23 | F124: 407.32 | G124: 397.48 | H124: 430.98 | I124: 440.82 | J124: 447.73 | K124: 433.9 | L124: 417.15 | M124: 1.22391
A125: 116 | B125: DEEPAKFERT | C125: 211.2 | D125: 210.05 | E125: 208.40 | F125: 205.60 | G125: 203.95 | H125: 212.85 | I125: 214.50 | J125: 217.30 | K125: 211.7 | L125: 207.25 | M125: 0.66853
A126: 117 | B126: DELTACORP | C126: 239.8 | D126: 238.40 | E126: 233.50 | F126: 227.20 | G126: 222.30 | H126: 244.70 | I126: 249.60 | J126: 255.90 | K126: 243.3 | L126: 232.1 | M126: 21.59456
A127: 118 | B127: DEN | C127: 69.1 | D127: 69.37 | E127: 68.73 | F127: 68.37 | G127: 67.73 | H127: 69.73 | I127: 70.37 | J127: 70.73 | K127: 70 | L127: 69 | M127: 0.55644
A128: 119 | B128: DENABANK | C128: 16.75 | D128: 16.97 | E128: 16.43 | F128: 16.12 | G128: 15.58 | H128: 17.28 | I128: 17.82 | J128: 18.13 | K128: 17.5 | L128: 16.65 | M128: 18.54568
A129: 120 | B129: DHFL | C129: 237.2 | D129: 237.38 | E129: 231.22 | F129: 225.23 | G129: 219.07 | H129: 243.37 | I129: 249.53 | J129: 255.52 | K129: 243.55 | L129: 231.4 | M129: 129.4305
A130: 121 | B130: DISHTV | C130: 40.8 | D130: 40.75 | E130: 39.85 | F130: 38.90 | G130: 38.00 | H130: 41.70 | I130: 42.60 | J130: 43.55 | K130: 41.65 | L130: 39.8 | M130: 53.89657
A131: 122 | B131: DIVISLAB | C131: 1530.6 | D131: 1517.75 | E131: 1498.50 | F131: 1466.40 | G131: 1447.15 | H131: 1549.85 | I131: 1569.10 | J131: 1601.20 | K131: 1537 | L131: 1485.65 | M131: 9.53328
A132: 123 | B132: DIXON | C132: 2116.35 | D132: 2122.15 | E132: 2099.30 | F132: 2082.25 | G132: 2059.40 | H132: 2139.20 | I132: 2162.05 | J132: 2179.10 | K132: 2145 | L132: 2105.1 | M132: 0.05074
A133: 124 | B133: DLF | C133: 171.4 | D133: 170.68 | E133: 168.47 | F133: 165.53 | G133: 163.32 | H133: 173.62 | I133: 175.83 | J133: 178.77 | K133: 172.9 | L133: 167.75 | M133: 47.12188
A134: 125 | B134: DMART | C134: 1374.35 | D134: 1376.78 | E134: 1363.67 | F134: 1352.98 | G134: 1339.87 | H134: 1387.47 | I134: 1400.58 | J134: 1411.27 | K134: 1389.9 | L134: 1366.1 | M134: 2.93907
A135: 126 | B135: DREDGECORP | C135: 383.75 | D135: 379.53 | E135: 367.27 | F135: 350.78 | G135: 338.52 | H135: 396.02 | I135: 408.28 | J135: 424.77 | K135: 391.8 | L135: 363.05 | M135: 5.68146
A136: 127 | B136: DRREDDY | C136: 2438.05 | D136: 2434.87 | E136: 2418.73 | F136: 2399.42 | G136: 2383.28 | H136: 2454.18 | I136: 2470.32 | J136: 2489.63 | K136: 2451 | L136: 2415.55 | M136: 4.69698
A137: 128 | B137: ECLERX | C137: 1080.45 | D137: 1074.10 | E137: 1062.10 | F137: 1043.75 | G137: 1031.75 | H137: 1092.45 | I137: 1104.45 | J137: 1122.80 | K137: 1086.1 | L137: 1055.75 | M137: 0.02617
A138: 129 | B138: EDELWEISS | C138: 164.35 | D138: 164.43 | E138: 161.37 | F138: 158.38 | G138: 155.32 | H138: 167.42 | I138: 170.48 | J138: 173.47 | K138: 167.5 | L138: 161.45 | M138: 16.2075
A139: 130 | B139: EICHERMOT | C139: 23241.85 | D139: 22612.87 | E139: 21825.73 | F139: 20409.62 | G139: 19622.48 | H139: 24028.98 | I139: 24816.12 | J139: 26232.23 | K139: 23400 | L139: 21196.75 | M139: 2.68847
A140: 131 | B140: EIDPARRY | C140: 237.2 | D140: 237.32 | E140: 234.88 | F140: 232.57 | G140: 230.13 | H140: 239.63 | I140: 242.07 | J140: 244.38 | K140: 239.75 | L140: 235 | M140: 1.52133
A141: 132 | B141: EIHOTEL | C141: 167.4 | D141: 166.75 | E141: 164.15 | F141: 160.90 | G141: 158.30 | H141: 170.00 | I141: 172.60 | J141: 175.85 | K141: 169.35 | L141: 163.5 | M141: 2.41821
A142: 133 | B142: EMAMILTD | C142: 435.55 | D142: 430.80 | E142: 421.75 | F142: 407.95 | G142: 398.90 | H142: 444.60 | I142: 453.65 | J142: 467.45 | K142: 439.85 | L142: 417 | M142: 10.57102
A143: 134 | B143: ENDURANCE | C143: 1237.8 | D143: 1243.27 | E143: 1225.83 | F143: 1213.87 | G143: 1196.43 | H143: 1255.23 | I143: 1272.67 | J143: 1284.63 | K143: 1260.7 | L143: 1231.3 | M143: 0.12254
A144: 135 | B144: ENGINERSIN | C144: 121.2 | D144: 121.13 | E144: 119.92 | F144: 118.63 | G144: 117.42 | H144: 122.42 | I144: 123.63 | J144: 124.92 | K144: 122.35 | L144: 119.85 | M144: 13.6569
A145: 136 | B145: EQUITAS | C145: 106.55 | D145: 107.32 | E145: 105.13 | F145: 103.72 | G145: 101.53 | H145: 108.73 | I145: 110.92 | J145: 112.33 | K145: 109.5 | L145: 105.9 | M145: 13.57429
A146: 137 | B146: ERIS | C146: 621.65 | D146: 610.97 | E146: 592.03 | F146: 562.42 | G146: 543.48 | H146: 640.58 | I146: 659.52 | J146: 689.13 | K146: 629.9 | L146: 581.35 | M146: 0.53951
A147: 138 | B147: EROSMEDIA | C147: 102.05 | D147: 102.62 | E147: 100.43 | F147: 98.82 | G147: 96.63 | H147: 104.23 | I147: 106.42 | J147: 108.03 | K147: 104.8 | L147: 101 | M147: 2.3445
A148: 139 | B148: ESCORTS | C148: 660.6 | D148: 654.20 | E148: 642.40 | F148: 624.20 | G148: 612.40 | H148: 672.40 | I148: 684.20 | J148: 702.40 | K148: 666 | L148: 636 | M148: 17.08423
A149: 140 | B149: EVEREADY | C149: 190.7 | D149: 190.80 | E149: 188.90 | F149: 187.10 | G149: 185.20 | H149: 192.60 | I149: 194.50 | J149: 196.30 | K149: 192.7 | L149: 189 | M149: 0.3941
A150: 141 | B150: EXIDEIND | C150: 249.55 | D150: 249.58 | E150: 245.97 | F150: 242.38 | G150: 238.77 | H150: 253.17 | I150: 256.78 | J150: 260.37 | K150: 253.2 | L150: 246 | M150: 18.00432
A151: 142 | B151: FCONSUMER | C151: 48.65 | D151: 48.93 | E151: 47.97 | F151: 47.28 | G151: 46.32 | H151: 49.62 | I151: 50.58 | J151: 51.27 | K151: 49.9 | L151: 48.25 | M151: 14.7129
A152: 143 | B152: FEDERALBNK | C152: 78.9 | D152: 78.87 | E152: 77.63 | F152: 76.37 | G152: 75.13 | H152: 80.13 | I152: 81.37 | J152: 82.63 | K152: 80.1 | L152: 77.6 | M152: 93.33789
A153: 144 | B153: FINCABLES | C153: 521.45 | D153: 517.28 | E153: 510.57 | F153: 499.68 | G153: 492.97 | H153: 528.17 | I153: 534.88 | J153: 545.77 | K153: 524 | L153: 506.4 | M153: 0.18475
A154: 145 | B154: FINPIPE | C154: 513.15 | D154: 512.48 | E154: 506.92 | F154: 500.68 | G154: 495.12 | H154: 518.72 | I154: 524.28 | J154: 530.52 | K154: 518.05 | L154: 506.25 | M154: 0.15812
A155: 146 | B155: FLFL | C155: 368.1 | D155: 366.83 | E155: 364.72 | F155: 361.33 | G155: 359.22 | H155: 370.22 | I155: 372.33 | J155: 375.72 | K155: 368.95 | L155: 363.45 | M155: 0.04615
A156: 147 | B156: FSL | C156: 56.85 | D156: 56.93 | E156: 56.37 | F156: 55.88 | G156: 55.32 | H156: 57.42 | I156: 57.98 | J156: 58.47 | K156: 57.5 | L156: 56.45 | M156: 8.8907
A157: 148 | B157: GAIL | C157: 365.35 | D157: 365.68 | E157: 361.67 | F157: 357.98 | G157: 353.97 | H157: 369.37 | I157: 373.38 | J157: 377.07 | K157: 369.7 | L157: 362 | M157: 40.18012
A158: 149 | B158: GATI | C158: 86.35 | D158: 85.12 | E158: 82.73 | F158: 79.12 | G158: 76.73 | H158: 88.73 | I158: 91.12 | J158: 94.73 | K158: 87.5 | L158: 81.5 | M158: 11.30232
A159: 150 | B159: GDL | C159: 157.5 | D159: 156.32 | E159: 154.18 | F159: 150.87 | G159: 148.73 | H159: 159.63 | I159: 161.77 | J159: 165.08 | K159: 158.45 | L159: 153 | M159: 0.58193
A160: 151 | B160: GEPIL | C160: 846.5 | D160: 843.52 | E160: 836.03 | F160: 825.57 | G160: 818.08 | H160: 853.98 | I160: 861.47 | J160: 871.93 | K160: 851 | L160: 833.05 | M160: 0.05972
A161: 152 | B161: GESHIP | C161: 290.8 | D161: 291.48 | E161: 288.12 | F161: 285.43 | G161: 282.07 | H161: 294.17 | I161: 297.53 | J161: 300.22 | K161: 294.85 | L161: 288.8 | M161: 0.48419
A162: 153 | B162: GET&D | C162: 228.95 | D162: 229.65 | E162: 226.30 | F162: 223.65 | G162: 220.30 | H162: 232.30 | I162: 235.65 | J162: 238.30 | K162: 233 | L162: 227 | M162: 0.30607
A163: 154 | B163: GHCL | C163: 219.3 | D163: 218.90 | E163: 217.80 | F163: 216.30 | G163: 215.20 | H163: 220.40 | I163: 221.50 | J163: 223.00 | K163: 220 | L163: 217.4 | M163: 0.35026
A164: 155 | B164: GICRE | C164: 320.5 | D164: 320.85 | E164: 315.20 | F164: 309.90 | G164: 304.25 | H164: 326.15 | I164: 331.80 | J164: 337.10 | K164: 326.5 | L164: 315.55 | M164: 0.60476
A165: 156 | B165: GILLETTE | C165: 6547.6 | D165: 6534.28 | E165: 6518.57 | F165: 6489.53 | G165: 6473.82 | H165: 6563.32 | I165: 6579.03 | J165: 6608.07 | K165: 6550 | L165: 6505.25 | M165: 0.02743
A166: 157 | B166: GLAXO | C166: 1387.75 | D166: 1389.23 | E166: 1373.52 | F166: 1359.28 | G166: 1343.57 | H166: 1403.47 | I166: 1419.18 | J166: 1433.42 | K166: 1404.95 | L166: 1375 | M166: 0.08639
A167: 158 | B167: GLENMARK | C167: 676.2 | D167: 665.78 | E167: 652.57 | F167: 628.93 | G167: 615.72 | H167: 689.42 | I167: 702.63 | J167: 726.27 | K167: 679 | L167: 642.15 | M167: 12.30531
A168: 159 | B168: GMDCLTD | C168: 86.8 | D168: 86.77 | E168: 86.08 | F168: 85.37 | G168: 84.68 | H168: 87.48 | I168: 88.17 | J168: 88.88 | K168: 87.45 | L168: 86.05 | M168: 0.98239
A169: 160 | B169: GMRINFRA | C169: 15.95 | D169: 15.97 | E169: 15.63 | F169: 15.32 | G169: 14.98 | H169: 16.28 | I169: 16.62 | J169: 16.93 | K169: 16.3 | L169: 15.65 | M169: 278.91792
A170: 161 | B170: GNFC | C170: 369.8 | D170: 367.58 | E170: 363.22 | F170: 356.63 | G170: 352.27 | H170: 374.17 | I170: 378.53 | J170: 385.12 | K170: 371.95 | L170: 361 | M170: 3.41084
A171: 162 | B171: GODFRYPHLP | C171: 836.35 | D171: 833.02 | E171: 813.43 | F171: 790.52 | G171: 770.93 | H171: 855.93 | I171: 875.52 | J171: 898.43 | K171: 852.6 | L171: 810.1 | M171: 2.89394
A172: 163 | B172: GODREJAGRO | C172: 523.6 | D172: 524.87 | E172: 520.73 | F172: 517.87 | G172: 513.73 | H172: 527.73 | I172: 531.87 | J172: 534.73 | K172: 529 | L172: 522 | M172: 0.29309
A173: 164 | B173: GODREJCP | C173: 683.1 | D173: 682.10 | E173: 671.20 | F173: 659.30 | G173: 648.40 | H173: 694.00 | I173: 704.90 | J173: 716.80 | K173: 693 | L173: 670.2 | M173: 16.11367
A174: 165 | B174: GODREJIND | C174: 498.45 | D174: 489.38 | E174: 474.07 | F174: 449.68 | G174: 434.37 | H174: 513.77 | I174: 529.08 | J174: 553.47 | K174: 504.7 | L174: 465 | M174: 39.18438
A175: 166 | B175: GODREJPROP | C175: 607.1 | D175: 606.40 | E175: 600.80 | F175: 594.50 | G175: 588.90 | H175: 612.70 | I175: 618.30 | J175: 624.60 | K175: 612 | L175: 600.1 | M175: 0.52073
A176: 167 | B176: GPPL | C176: 100.25 | D176: 100.63 | E176: 99.42 | F176: 98.58 | G176: 97.37 | H176: 101.47 | I176: 102.68 | J176: 103.52 | K176: 101.85 | L176: 99.8 | M176: 0.55275
A177: 168 | B177: GRANULES | C177: 105.2 | D177: 103.63 | E177: 101.67 | F177: 98.13 | G177: 96.17 | H177: 107.17 | I177: 109.13 | J177: 112.67 | K177: 105.6 | L177: 100.1 | M177: 28.76851
A178: 169 | B178: GRAPHITE | C178: 1010.6 | D178: 1003.97 | E178: 991.83 | F178: 973.07 | G178: 960.93 | H178: 1022.73 | I178: 1034.87 | J178: 1053.63 | K178: 1016.1 | L178: 985.2 | M178: 5.06299
A179: 170 | B179: GRASIM | C179: 876.25 | D179: 871.07 | E179: 862.08 | F179: 847.92 | G179: 838.93 | H179: 885.23 | I179: 894.22 | J179: 908.38 | K179: 880.05 | L179: 856.9 | M179: 13.43963
A180: 171 | B180: GREAVESCOT | C180: 122.1 | D180: 121.65 | E180: 120.45 | F180: 118.80 | G180: 117.60 | H180: 123.30 | I180: 124.50 | J180: 126.15 | K180: 122.85 | L180: 120 | M180: 2.49444
A181: 172 | B181: GREENPLY | C181: 139.05 | D181: 139.43 | E181: 137.12 | F181: 135.18 | G181: 132.87 | H181: 141.37 | I181: 143.68 | J181: 145.62 | K181: 141.75 | L181: 137.5 | M181: 2.32229
A182: 173 | B182: GRUH | C182: 300.6 | D182: 299.03 | E182: 295.07 | F182: 289.53 | G182: 285.57 | H182: 304.57 | I182: 308.53 | J182: 314.07 | K182: 303 | L182: 293.5 | M182: 2.42057
A183: 174 | B183: GSFC | C183: 108.75 | D183: 108.65 | E183: 107.40 | F183: 106.05 | G183: 104.80 | H183: 110.00 | I183: 111.25 | J183: 112.60 | K183: 109.9 | L183: 107.3 | M183: 24.62711
A184: 175 | B184: GSKCONS | C184: 7211 | D184: 7223.67 | E184: 7182.33 | F184: 7153.67 | G184: 7112.33 | H184: 7252.33 | I184: 7293.67 | J184: 7322.33 | K184: 7265 | L184: 7195 | M184: 0.12584
A185: 176 | B185: GSPL | C185: 180.85 | D185: 182.03 | E185: 178.52 | F185: 176.18 | G185: 172.67 | H185: 184.37 | I185: 187.88 | J185: 190.22 | K185: 185.55 | L185: 179.7 | M185: 1.49336
A186: 177 | B186: GUJALKALI | C186: 587.05 | D186: 590.32 | E186: 581.73 | F186: 576.42 | G186: 567.83 | H186: 595.63 | I186: 604.22 | J186: 609.53 | K186: 598.9 | L186: 585 | M186: 0.43116
A187: 178 | B187: GUJFLUORO | C187: 924.75 | D187: 919.02 | E187: 908.73 | F187: 892.72 | G187: 882.43 | H187: 935.03 | I187: 945.32 | J187: 961.33 | K187: 929.3 | L187: 903 | M187: 3.34511
A188: 179 | B188: GUJGASLTD | C188: 627.1 | D188: 630.75 | E188: 618.35 | F188: 609.60 | G188: 597.20 | H188: 639.50 | I188: 651.90 | J188: 660.65 | K188: 643.15 | L188: 622 | M188: 0.20522
A189: 180 | B189: GULFOILLUB | C189: 788.55 | D189: 775.02 | E189: 755.53 | F189: 722.52 | G189: 703.03 | H189: 808.03 | I189: 827.52 | J189: 860.53 | K189: 794.5 | L189: 742 | M189: 1.22696
A190: 181 | B190: GVKPIL | C190: 7.85 | D190: 7.88 | E190: 7.77 | F190: 7.68 | G190: 7.57 | H190: 7.97 | I190: 8.08 | J190: 8.17 | K190: 8 | L190: 7.8 | M190: 10.42355
A191: 182 | B191: HATHWAY | C191: 30.3 | D191: 30.27 | E191: 30.13 | F191: 29.97 | G191: 29.83 | H191: 30.43 | I191: 30.57 | J191: 30.73 | K191: 30.4 | L191: 30.1 | M191: 5.78777
A192: 183 | B192: HATSUN | C192: 618.25 | D192: 613.52 | E192: 605.73 | F192: 593.22 | G192: 585.43 | H192: 626.03 | I192: 633.82 | J192: 646.33 | K192: 621.3 | L192: 601 | M192: 0.05854
A193: 184 | B193: HAVELLS | C193: 666.15 | D193: 661.28 | E193: 652.87 | F193: 639.58 | G193: 631.17 | H193: 674.57 | I193: 682.98 | J193: 696.27 | K193: 669.7 | L193: 648 | M193: 27.33001
A194: 185 | B194: HCC | C194: 13.9 | D194: 13.90 | E194: 13.55 | F194: 13.20 | G194: 12.85 | H194: 14.25 | I194: 14.60 | J194: 14.95 | K194: 14.25 | L194: 13.55 | M194: 65.6767
A195: 186 | B195: HCL-INSYS | C195: 27.65 | D195: 27.70 | E195: 27.20 | F195: 26.75 | G195: 26.25 | H195: 28.15 | I195: 28.65 | J195: 29.10 | K195: 28.2 | L195: 27.25 | M195: 11.37947
A196: 187 | B196: HCLTECH | C196: 1033.2 | D196: 1039.13 | E196: 1023.42 | F196: 1013.63 | G196: 997.92 | H196: 1048.92 | I196: 1064.63 | J196: 1074.42 | K196: 1054.85 | L196: 1029.35 | M196: 13.68737
A197: 188 | B197: HDFC | C197: 1824.7 | D197: 1812.75 | E197: 1796.50 | F197: 1768.30 | G197: 1752.05 | H197: 1840.95 | I197: 1857.20 | J197: 1885.40 | K197: 1829 | L197: 1784.55 | M197: 18.12035
A198: 189 | B198: HDFCBANK | C198: 1927.75 | D198: 1924.55 | E198: 1911.40 | F198: 1895.05 | G198: 1881.90 | H198: 1940.90 | I198: 1954.05 | J198: 1970.40 | K198: 1937.7 | L198: 1908.2 | M198: 33.37605
A199: 190 | B199: HDIL | C199: 21.55 | D199: 21.47 | E199: 20.98 | F199: 20.42 | G199: 19.93 | H199: 22.03 | I199: 22.52 | J199: 23.08 | K199: 21.95 | L199: 20.9 | M199: 23.05026
A200: 191 | B200: HEG | C200: 4174.85 | D200: 4179.62 | E200: 4145.23 | F200: 4115.62 | G200: 4081.23 | H200: 4209.23 | I200: 4243.62 | J200: 4273.23 | K200: 4214 | L200: 4150 | M200: 0.96882
A201: 192 | B201: HEIDELBERG | C201: 150 | D201: 149.40 | E201: 147.80 | F201: 145.60 | G201: 144.00 | H201: 151.60 | I201: 153.20 | J201: 155.40 | K201: 151 | L201: 147.2 | M201: 1.067
A202: 193 | B202: HERITGFOOD | C202: 525.65 | D202: 524.53 | E202: 521.07 | F202: 516.48 | G202: 513.02 | H202: 529.12 | I202: 532.58 | J202: 537.17 | K202: 528 | L202: 519.95 | M202: 0.12462
A203: 194 | B203: HEROMOTOCO | C203: 2879.7 | D203: 2862.05 | E203: 2825.65 | F203: 2771.60 | G203: 2735.20 | H203: 2916.10 | I203: 2952.50 | J203: 3006.55 | K203: 2898.45 | L203: 2808 | M203: 2.69648
A204: 195 | B204: HEXAWARE | C204: 315.7 | D204: 315.98 | E204: 311.72 | F204: 307.73 | G204: 303.47 | H204: 319.97 | I204: 324.23 | J204: 328.22 | K204: 320.25 | L204: 312 | M204: 10.247
A205: 196 | B205: HFCL | C205: 20.5 | D205: 20.43 | E205: 20.27 | F205: 20.03 | G205: 19.87 | H205: 20.67 | I205: 20.83 | J205: 21.07 | K205: 20.6 | L205: 20.2 | M205: 13.26521
A206: 197 | B206: HIMATSEIDE | C206: 255.5 | D206: 255.18 | E206: 251.92 | F206: 248.33 | G206: 245.07 | H206: 258.77 | I206: 262.03 | J206: 265.62 | K206: 258.45 | L206: 251.6 | M206: 0.36025
... 304 more rows

Sheet Bulk Deals
E6: Back To Main Page
A7: Subject : | B7: BULK DEAL | D7: =Main!B10 -> 2018-11-14
A9: Date | B9: Scrip code | C9: Scrip Name | D9: Client Name | E9: Buy / Sell | F9: Quantity Traded | G9: Trade Price / Wt.Avg.trade price | H9: Exchange
A10: 2018-11-13 | B10: 538566 | C10: APOLLOTRI | D10: SHRI LAKSHMI METAL UDYOG LIMITED | E10: BUY | F10: 153,489 | G10: 134.94 | H10: BSE
A11: 2018-11-13 | B11: 542057 | C11: BCPL | D11: AMBE SECURITIES PRIVATE LIMITED | E11: BUY | F11: 100,000 | G11: 36.25 | H11: BSE
A12: 2018-11-13 | B12: 530393 | C12: DBSTOCKBRO | D12: PAWAN AGARWAL | E12: BUY | F12: 685,000 | G12: 8.7 | H12: BSE
A13: 2018-11-13 | B13: 530393 | C13: DBSTOCKBRO | D13: SHARMA GANDHI HIRE PURCHASE LIMITED | E13: SELL | F13: 1,364,545 | G13: 8.7 | H13: BSE
A14: 2018-11-13 | B14: 530393 | C14: DBSTOCKBRO | D14: RECTOR INVESTMENT PRIVATE LIMITED | E14: SELL | F14: 415,000 | G14: 8.7 | H14: BSE
A15: 2018-11-13 | B15: 530393 | C15: DBSTOCKBRO | D15: KSB FININVEST PRIVATE LIMITED | E15: BUY | F15: 680,000 | G15: 8.7 | H15: BSE
A16: 2018-11-13 | B16: 530393 | C16: DBSTOCKBRO | D16: AGRAWALA FINSERVE PRIVATE LIMITED | E16: BUY | F16: 419,188 | G16: 8.7 | H16: BSE
A17: 2018-11-13 | B17: 531502 | C17: ESARIND | D17: MEHUL HASMUKH SHAH | E17: BUY | F17: 150,000 | G17: 0.69 | H17: BSE
A18: 2018-11-13 | B18: 531502 | C18: ESARIND | D18: VISHAL VIJAY SHAH | E18: SELL | F18: 140,000 | G18: 0.69 | H18: BSE
A19: 2018-11-13 | B19: 541983 | C19: INNOVATIVE | D19: AMARKUMAR ODHAVJI DHAMECHA | E19: SELL | F19: 6,000 | G19: 151.02 | H19: BSE
A20: 2018-11-13 | B20: 541983 | C20: INNOVATIVE | D20: AMARKUMAR ODHAVJI DHAMECHA | E20: BUY | F20: 63,000 | G20: 156.94 | H20: BSE
A21: 2018-11-13 | B21: 538765 | C21: JSHL | D21: SHREYA STOCKS AND SHARES P LTD | E21: SELL | F21: 120,000 | G21: 4.4 | H21: BSE
A22: 2018-11-13 | B22: 538765 | C22: JSHL | D22: NIDHI PORWAL | E22: BUY | F22: 40,000 | G22: 4.41 | H22: BSE
A23: 2018-11-13 | B23: 540125 | C23: RADHIKAJWE | D23: NNM SECURITIES PVT LTD | E23: SELL | F23: 126,400 | G23: 20.51 | H23: BSE
A24: 2018-11-13 | B24: 540125 | C24: RADHIKAJWE | D24: NNM SECURITIES PVT LTD | E24: BUY | F24: 4,800 | G24: 20.26 | H24: BSE
A25: 2018-11-13 | B25: 540125 | C25: RADHIKAJWE | D25: COMPETENT TEXTILES PVT LTD | E25: BUY | F25: 121,600 | G25: 20.49 | H25: BSE
A26: 2018-11-13 | B26: GSS | C26: GSS Infotech Limited | D26: AGARWAL ARCHANA | E26: BUY | F26: 99,295 | G26: 107.02 | H26: NSE
A27: 2018-11-13 | B27: JETAIRWAYS | C27: Jet Airways (India) Ltd. | D27: CROSSLAND TRADING CO | E27: BUY | F27: 1,372,102 | G27: 250.57 | H27: NSE
A28: 2018-11-13 | B28: JETAIRWAYS | C28: Jet Airways (India) Ltd. | D28: GRAVITON RESEARCH CAPITAL LLP | E28: BUY | F28: 601,646 | G28: 250.65 | H28: NSE
A29: 2018-11-13 | B29: JETAIRWAYS | C29: Jet Airways (India) Ltd. | D29: SHAASTRA SECURITIES TRADING PRIVATE LIMITED | E29: BUY | F29: 2,255,895 | G29: 250.72 | H29: NSE
A30: 2018-11-13 | B30: JETAIRWAYS | C30: Jet Airways (India) Ltd. | D30: SHARE INDIA SECURITIES LIMITED | E30: BUY | F30: 806,991 | G30: 250.29 | H30: NSE
A31: 2018-11-13 | B31: JETAIRWAYS | C31: Jet Airways (India) Ltd. | D31: VAIBHAV STOCK & DERIVATIVES BROKING PVT. LTD | E31: BUY | F31: 781,961 | G31: 250.43 | H31: NSE
A32: 2018-11-13 | B32: SILGO | C32: Silgo Retail Limited | D32: SANJAY SURI & SONS HUF | E32: BUY | F32: 60,000 | G32: 36.45 | H32: NSE
A33: 2018-11-13 | B33: TALWALKARS | C33: Talwalkar Fitness Ltd | D33: ALPHA LEON ENTERPRISES LLP | E33: BUY | F33: 170,087 | G33: 45.09 | H33: NSE
A34: 2018-11-13 | B34: TALWALKARS | C34: Talwalkar Fitness Ltd | D34: WALLFORT FINANCIAL SERVICES LTD | E34: BUY | F34: 200,000 | G34: 43.6 | H34: NSE
A35: 2018-11-13 | B35: GSS | C35: GSS Infotech Limited | D35: AGARWAL ARCHANA | E35: SELL | F35: 99,295 | G35: 109.89 | H35: NSE
A36: 2018-11-13 | B36: JETAIRWAYS | C36: Jet Airways (India) Ltd. | D36: CROSSLAND TRADING CO | E36: SELL | F36: 1,372,102 | G36: 250.61 | H36: NSE
A37: 2018-11-13 | B37: JETAIRWAYS | C37: Jet Airways (India) Ltd. | D37: GRAVITON RESEARCH CAPITAL LLP | E37: SELL | F37: 601,646 | G37: 250.87 | H37: NSE
A38: 2018-11-13 | B38: JETAIRWAYS | C38: Jet Airways (India) Ltd. | D38: SHAASTRA SECURITIES TRADING PRIVATE LIMITED | E38: SELL | F38: 2,255,895 | G38: 250.87 | H38: NSE
A39: 2018-11-13 | B39: JETAIRWAYS | C39: Jet Airways (India) Ltd. | D39: SHARE INDIA SECURITIES LIMITED | E39: SELL | F39: 816,651 | G39: 251.39 | H39: NSE
A40: 2018-11-13 | B40: JETAIRWAYS | C40: Jet Airways (India) Ltd. | D40: VAIBHAV STOCK & DERIVATIVES BROKING PVT. LTD | E40: SELL | F40: 781,961 | G40: 250.54 | H40: NSE
A41: 2018-11-13 | B41: SILGO | C41: Silgo Retail Limited | D41: ARYAMAN CAPITAL MARKETS LIMITED | E41: SELL | F41: 60,000 | G41: 36.45 | H41: NSE
A42: 2018-11-13 | B42: TALWALKARS | C42: Talwalkar Fitness Ltd | D42: ALPHA LEON ENTERPRISES LLP | E42: SELL | F42: 87,800 | G42: 44.15 | H42: NSE
A43: 2018-11-13 | B43: TALWALKARS | C43: Talwalkar Fitness Ltd | D43: BP FINTRADE PRIVATE LIMITED | E43: SELL | F43: 167,461 | G43: 45.1 | H43: NSE
A44: 2018-11-13 | B44: TALWALKARS | C44: Talwalkar Fitness Ltd | D44: WALLFORT FINANCIAL SERVICES LTD | E44: SELL | F44: 50,000 | G44: 43.97 | H44: NSE

Sheet Call Tracker (Equity & F&O)
M5: Back To Main Page
A6: Retail Research Technical Calls & Fundamental Performance Report for the month of November -2018
M7: =Main!B10 -> 2018-11-14
B8: Positional Call
A9: Sr.no | B9: Date | D9: Company | E9: Rec | F9: Rec Price | G9: Stop Loss*** | H9: Call Closed At | I9: Target | J9: Remark | K9: Profit / Loss per Share | L9: Gain / Loss % | M9: Status | N9: Closed Date | O9: NSE Closed Price
A10: 1 | B10: 2018-10-25 | D10: SUNPHARMA | E10: Buy{} | F10: 569 | G10: 528 | H10: 587.5 | I10: 620-630 | J10: Profit of Rs.18.5/- | K10: =H10-F10 -> 18.5 | L10: =K10/F10 -> 3.25% | M10: Successful | N10: 2018-11-09 | R10: H
A11: 2 | B11: 2018-11-02 | D11: MARUTI | E11: Buy{} | F11: 6860 | G11: 6580 | H11: 7140 | I11: 7300-7500 | J11: Profit of Rs.280/- | K11: =H11-F11 -> 280 | L11: =K11/F11 -> 4.08% | M11: Successful | N11: 2018-11-05 | R11: H
A12: 3 | B12: 2018-11-09 | D12: RECLTD | E12: Buy | F12: 122.5 | G12: 116.3 | H12: 127 | I12: 133-137 | J12: Part profit of Rs.4.5/- | K12: =H12-F12 -> 4.5 | L12: =K12/F12 -> 3.67% | M12: Successful | N12: 2018-11-12 | R12: R
A13: 4 | B13: 2018-11-12 | D13: SRF | E13: Buy | F13: 2030-2050 | G13: 1940 | I13: 2200-2250 | J13: Open | O13: =VLOOKUP(D13,Sheet2!A2:M1638,6,0) -> 2071.55 | R13: H
A14: 5 | B14: 2018-11-12 | D14: GAIL | E14: Buy | F14: 362-365 | G14: 348 | I14: 385-395 | J14: Open | O14: =VLOOKUP(D14,Sheet2!A3:M1639,6,0) -> 365.35 | R14: H
A15: 6 | B15: 2018-11-13 | D15: IOC | E15: Buy | F15: 137.5 | G15: 134 | H15: 142.25 | I15: 146-150 | J15: Profit of Rs.4.75/- | K15: =H15-F15 -> 4.75 | L15: =K15/F15 -> 3.45% | M15: Successful | N15: 2018-11-13 | R15: H
A16: 7 | B16: 2018-11-13 | D16: NIITTECH | E16: Buy | F16: 1190-1200 | G16: 1144.4 | I16: 1300-1310 | J16: Open | O16: =VLOOKUP(D16,Sheet2!A5:M1641,6,0) -> 1174.9 | R16: R
A24: CLBS = Closing Basis *** | F24: Reinitiated $
A25: Dividend adjusted <> | F25: Revised stoploss #
A26: Part book {}
A27: Master Trade High Risk
A28: Sr.no | B28: Date | D28: Company | E28: Rec | F28: Rec Price | G28: Stop Loss | H28: Call Closed At | I28: Target | J28: Remark | K28: Profit / Loss per share | L28: Gain / Loss per Lot | M28: Lot | N28: Status | O28: Closed Date
A29: 1 | B29: 2018-11-01 | D29: NIFTY NOV FUT | E29: Sell | F29: 10435 | G29: 10620 | H29: 10355 | I29: 10250 | J29: Profit of Rs 53/- | K29: =F29-H29 -> 80 | L29: =M29*53 -> 3975 | M29: 75 | N29: Successful | O29: 2018-11-01 | R29: H
D30: NIFTY NOV 10300 PE | E30: Sell | F30: 165 | H30: 192 | K30: -27
A31: 2 | B31: 2018-11-01 | D31: WIPRO NOV FUT | E31: Sell | F31: 330 | G31: 338 | H31: 324.75 | I31: 315 | J31: Profit of Rs 4.25/- | K31: 5.25 | L31: =M31*4.25 -> 10200 | M31: 2400 | N31: Successful | O31: 2018-11-02 | R31: H
D32: WIPRO Nov 320 PE | E32: Sell | F32: 6.25 | H32: 7.25 | K32: -1
A33: 3 | B33: 2018-11-01 | D33: NIFTY NOV FUT | E33: Sell | F33: 10445 | G33: 10620 | H33: 10575 | I33: 10250 | J33: Loss of Rs.67.5/- | K33: -130 | L33: =-M33*67.5 -> -5062.5 | M33: 75 | N33: Unsuccessful | O33: 2018-11-02 | R33: H
D34: NIFTY NOV 10300 PE | E34: Sell | F34: 155 | H34: 92.5 | K34: 62.5
A35: 4 | B35: 2018-11-05 | D35: WIPRO NOV FUT | E35: Sell | F35: 321-322 | G35: 331 | I35: 305 | J35: Open | R35: H
D36: WIPRO Nov 320 PE | E36: Sell | F36: 6.0-7.0 | R36: H
A38: Master Trade Medium Risk
A39: Sr.no | B39: Date | D39: Company | E39: Rec | F39: Rec Price | G39: Stop Loss | H39: Call Closed At | I39: Target | J39: Remark | K39: Profit/ Loss per lot | L39: Gain / Loss per Lot | M39: Lot | N39: Status | O39: Closed Date
A40: 1 | B40: 2018-11-05 | D40: HDFCBANK NOV 2000 CE | E40: Buy | F40: 22 | G40: 8 | H40: 26.5 | I40: 45 | J40: Profit of Rs.4.50/- | K40: 4.5 | L40: =M40*K40 -> 1125 | M40: 250 | N40: Successful | O40: 2018-11-06 | R40: H
A41: 2 | B41: 2018-11-07 | D41: NIFTY NOV 10300 PE | E41: Buy | F41: 64 | G41: 17 | H41: 74 | I41: 120-130 | J41: Profit of Rs.10/- | K41: =H41-F41 -> 10 | L41: =M41*K41 -> 750 | M41: 75 | N41: Successful | O41: 2018-11-12 | R41: H
A42: 3 | B42: 2018-11-12 | D42: HDFCBANK NOV 1960 CE | E42: Buy | F42: 20-21 | G42: 8 | I42: 45 | J42: Open | R42: H
B47: Smart Delivery Trade
A48: Sr.no | B48: Date | D48: Company | E48: Rec | F48: Rec Price | G48: Stop Loss*** | H48: Call Closed At | I48: Target | J48: Remark | K48: Profit / Loss per Share | L48: Gain / Loss % | M48: Status | N48: Closed Date | O48: NSE Closed Price
A49: 1 | B49: 2018-11-02 | D49: JSWSTEEL | E49: Buy | F49: 346 | G49: 331 | H49: 354 | I49: 375 | J49: Profit of Rs.8/- | K49: =H49-F49 -> 8 | L49: =K49/F49 -> 2.31% | M49: Successful | N49: 2018-11-02 | R49: H
A50: 2 | B50: 2018-11-02 | D50: DABUR | E50: Buy<> | F50: 371.25 | G50: 358 | H50: 382.5 | I50: 390-400 | J50: Profit of Rs.11.25/- | K50: 11.25 | L50: 3.03% | M50: Successful | N50: 2018-11-12 | R50: H
A51: 3 | B51: 2018-11-02 | D51: BHARATFORG | E51: Buy | F51: 610 | G51: 589 | H51: 587.5 | I51: 640-650 | J51: Loss of Rs.22.5/- | K51: =H51-F51 -> -22.5 | L51: =K51/F51 -> -3.69% | M51: Unsuccessful | N51: 2018-11-09 | R51: H
A52: 4 | B52: 2018-11-09 | D52: SUVEN | E52: Buy | F52: 254-256 | G52: 247 | I52: 270-275 | J52: Open | O52: =VLOOKUP(D52,Sheet2!A41:M1677,6,0) -> 252.85 | R52: R
A53: 5 | B53: 2018-11-09 | D53: JUBLFOOD | E53: Buy | F53: 1075 | G53: 1037 | H53: 1108.5 | I53: 1120-1140 | J53: Profit of Rs.33.5/- | K53: =H53-F53 -> 33.5 | L53: =K53/F53 -> 3.12% | M53: Successful | N53: 2018-11-12 | R53: H
A54: 6 | B54: 2018-11-12 | D54: HEROMOTOCO | E54: Buy | F54: 2910-2930 | G54: 2790 | I54: 3100-3200 | J54: Open | O54: =VLOOKUP(D54,Sheet2!A43:M1679,6,0) -> 2879.7 | R54: H
A55: 7 | B55: 2018-11-12 | D55: HINDALCO | E55: Buy | F55: 234-235 | G55: 227 | I55: 247-250 | J55: Open | O55: =VLOOKUP(D55,Sheet2!A44:M1680,6,0) -> 231.55 | R55: R
A56: 8 | B56: 2018-11-13 | D56: DRREDDY | E56: Buy | F56: 2440-2450 | G56: 2366.6 | I56: 2580-2600 | J56: Open | O56: =VLOOKUP(D56,Sheet2!A45:M1681,6,0) -> 2438.05 | R56: R
A64: CLBS = Closing Basis *** | F64: Reinitiated $
A65: Dividend adjusted <> | F65: Revised stoploss #
B68: Momentum Call
A69: Sr.no | B69: Date | D69: Company | E69: Rec | F69: Rec Price | G69: Stop Loss | H69: Call Closed At | I69: Target | J69: Remark | K69: Profit / Loss per Share/Lot | L69: Gain / Loss % | M69: Gain / Loss per Lot | N69: Lot | O69: Status | P69: Closed Date
A70: 1 | B70: 2018-10-30 | D70: AMBUJACEM | E70: Buy | F70: 194.5 | G70: 189.5 | H70: 199.5 | I70: 202-205 | J70: Profit of Rs.5/- | K70: =H70-F70 -> 5 | L70: =K70/F70 -> 2.57% | O70: Successful | P70: 2018-11-01 | R70: H
A71: 2 | B71: 2018-10-31 | D71: EXIDEIND NOV FUT | E71: Sell | F71: 261.5 | G71: 266.6 | H71: 258.25 | I71: 250-247 | J71: Profit of Rs.3.25/- | K71: =F71-H71 -> 3.25 | M71: =N71*K71 -> 6500 | N71: 2000 | O71: Successful | P71: 2018-11-01 | R71: R
A72: 3 | B72: 2018-10-31 | D72: BAJFINANCE NOV FUT | E72: Sell | F72: 2365 | G72: 2411 | H72: 2411 | I72: 2250-2200 | J72: Loss of Rs.46/- | K72: =F72-H72 -> -46 | M72: =N72*K72 -> -11500 | N72: 250 | O72: Unsuccessful | P72: 2018-11-01 | R72: R
A73: 4 | B73: 2018-11-01 | D73: EXIDEIND NOV FUT | E73: Buy | F73: 255.5 | G73: 249.8 | H73: 259.5 | I73: 262-264 | J73: Profit of Rs.4/- | K73: =H73-F73 -> 4 | M73: 8000 | N73: 2000 | O73: Successful | P73: 2018-11-02 | R73: N
A74: 5 | B74: 2018-11-02 | D74: HDFCBANK | E74: Buy | F74: 1925 | G74: 1890 | H74: 1956.5 | I74: 1980-2000 | J74: Profit of Rs.31.5/- | K74: 31.5 | L74: =K74/F74 -> 1.64% | O74: Successful | P74: 2018-11-02 | R74: H
A75: 6 | B75: 2018-11-02 | D75: ICICIBANK NOV FUT | E75: Sell | F75: 356 | G75: 361.8 | H75: 350 | I75: 345 | J75: Profit of Rs.6/- | K75: =F75-H75 -> 6 | M75: =N75*K75 -> 16500 | N75: 2750 | O75: Successful | P75: 2018-11-05 | R75: R
A76: 7 | B76: 2018-11-05 | D76: CONCOR | E76: Buy | F76: 652.5 | G76: 634 | H76: 678 | I76: 680-690 | J76: Profit of Rs.25.50/- | K76: =H76-F76 -> 25.5 | L76: =K76/F76 -> 3.91% | O76: Successful | P76: 2018-11-06 | R76: H
A77: 8 | B77: 2018-11-05 | D77: AMARAJABAT NOV FUT | E77: Buy | F77: 781.5 | G77: 765 | H77: 769 | I77: 800-810 | J77: Loss of Rs.12.50/- | K77: =H77-F77 -> -12.5 | M77: =N77*K77 -> -8750 | N77: 700 | O77: Unsuccessful | P77: 2018-11-06 | R77: N
A78: 9 | B78: 2018-11-06 | D78: HDFC NOV FUT | E78: Buy | F78: 1807.5 | G78: 1785 | H78: 1817.5 | I78: 1840 | J78: Profit of Rs.10/- | K78: =H78-F78 -> 10 | M78: 5000 | N78: 500 | O78: Successful | P78: 2018-11-07 | R78: H
A79: 10 | B79: 2018-11-06 | D79: HINDUNILVR NOV FUT | E79: Buy | F79: 1627.5 | G79: 1608 | H79: 1640 | I79: 1670 | J79: Profit of Rs.12.5/- | K79: =H79-F79 -> 12.5 | M79: =N79*K79 -> 7500 | N79: 600 | O79: Successful | P79: 2018-11-07 | R79: N
A80: 11 | B80: 2018-11-09 | D80: LT NOV FUT | E80: Sell | F80: 1374-1377 | G80: 1405 | I80: 1320 | J80: Open | R80: H
A81: 12 | B81: 2018-11-09 | D81: ASHOKLEY NOV FUT | E81: Buy | F81: 121.25 | G81: 118.25 | H81: 118.25 | I81: 127 | J81: Loss of Rs.3/- | K81: =H81-F81 -> -3 | M81: =N81*K81 -> -12000 | N81: 4000 | O81: Unsuccessful | P81: 2018-11-12 | R81: N
A82: 13 | B82: 2018-11-12 | D82: JUBLFOOD NOV FUT | E82: Buy | F82: 1086.5 | G82: 1064 | H82: 1102 | I82: 1140 | J82: Profit of Rs.15.5/- | K82: =H82-F82 -> 15.5 | M82: 7750 | N82: 500 | O82: Successful | P82: 2018-11-12 | R82: N
A83: 14 | B83: 2018-11-12 | D83: CUMMINSIND NOV FUT | E83: Sell | F83: 806 | G83: 821.3 | H83: 794.5 | I83: 780 | J83: Profit of Rs.11.5/- | K83: =F83-H83 -> 11.5 | M83: 8050 | N83: 700 | O83: Successful | P83: 2018-11-12 | R83: R
A84: 15 | B84: 2018-11-13 | D84: BIOCON NOV FUT | E84: Buy | F84: 630 | G84: 617.7 | H84: 617.7 | I84: 645-650 | J84: Loss of Rs.12.3/- | K84: =H84-F84 -> -12.3 | M84: =N84*K84 -> -11070 | N84: 900 | O84: Unsuccessful | P84: 2018-11-13 | R84: R
A85: 16 | B85: 2018-11-13 | D85: HAVELLS NOV FUT | E85: Buy | F85: 663-664 | G85: 653 | I85: 685 | J85: Open | R85: R
A86: 17 | B86: 2018-11-13 | D86: ASIANPAINT NOV FUT | E86: Buy | F86: 1290-1292 | G86: 1272 | I86: 1330 | J86: Open | R86: N
A90: CLBS = Closing Basis ***
A91: Dividend adjusted <> | F91: Reinitiated $
F92: Revised stoploss #
B93: Quick Pick Intraday
A94: Sr.no | B94: Date | D94: Company | E94: Rec | F94: Rec Price | G94: Stop Loss*** | H94: Call Closed At | I94: Target | J94: Remark | K94: Profit / Loss per Share | L94: Status | M94: Closed Date
A108: Techno -Funda (positional)
A109: Sr.no | B109: Date | D109: Company | E109: Rec | F109: Rec Price | G109: Stop Loss*** | H109: Call Closed At | I109: Target | J109: Remark | K109: Profit / Loss per Share | L109: Gain / Loss % | M109: Status | N109: Closed Date | O109: NSE Closed Price
A112: CLBS = Closing Basis *** | F112: Reinitiated $
A113: Dividend adjusted <> | F113: Revised stoploss #
B118: Investment Idea
A119: Sr.no | B119: Date | D119: Company | E119: Rec | F119: Rec Price | G119: Point of Review | H119: Close Rate | I119: Target | J119: Remark | K119: Profit / Loss per Share | L119: Gain / Loss % | M119: Status | N119: Closed Date
A120: 1 | B120: 2013-11-01 | D120: L&T Finance Holding | E120: Accu | F120: 82.00 | G120: - | H120: 100 | I120: 100.00 | J120: Target Achieved | K120: =H120-F120 -> 18.00 | L120: =K120/F120 -> 21.95% | M120: Successful | N120: 2016-10-14
A121: 2 | B121: 2014-06-04 | D121: Finolex Inds | E121: Buy | F121: 257.00 | G121: - | H121: 300 | I121: 300.00 | J121: Target Achieved | K121: =H121-F121 -> 43.00 | L121: 16.73% | M121: Successful | N121: 2014-07-02
A122: =1+A121 -> 3 | B122: 2014-07-08 | D122: JK Cement | E122: Buy | F122: 393.00 | G122: - | H122: 468 | I122: 468.00 | J122: Target Achieved | K122: =H122-F122 -> 75.00 | L122: 19.08% | M122: Successful | N122: 2014-08-12
A123: 4 | B123: 2014-08-06 | D123: Finolex Cables | E123: Buy | F123: 205.00 | G123: - | H123: 275 | I123: 250.00 | J123: Target Achieved | K123: 70.00 | L123: 34.15% | M123: Successful | N123: 2014-11-19
A124: 5 | B124: 2014-09-04 | D124: Exide Inds | E124: Buy | F124: 162.00 | G124: - | H124: 190 | I124: 190.00 | J124: Target Achieved | K124: 28.00 | L124: 17.28% | M124: Successful | N124: 2015-01-02
A125: 6 | B125: 2014-09-04 | D125: Deepak Nitrite | E125: Buy | F125: 75.00 | G125: - | H125: 91.5 | I125: 95-100 | J125: Profit of Rs.16.50/- | K125: 16.50 | L125: 22.00% | M125: Successful | N125: 2014-11-11
A126: 7 | B126: 2014-10-01 | D126: Mercks | E126: Buy | F126: 850.00 | G126: - | H126: 982.5 | I126: 1050.00 | J126: Profit of Rs.132.50/- | K126: 132.50 | L126: 15.59% | M126: Successful | N126: 2015-02-04
A127: 8 | B127: 2014-10-01 | D127: Grindwell Norton | E127: Buy | F127: 475.00 | G127: - | H127: 515 | I127: 600.00 | J127: Profit of Rs.40/- | K127: 40.00 | L127: 8.42% | M127: Successful | N127: 2014-10-27
A128: 9 | B128: 2014-10-01 | D128: Snowman Logistics | E128: Buy | F128: 86.00 | G128: - | H128: 99 | I128: 140.00 | J128: Profit of Rs.13.00/- | K128: 13.00 | L128: 15.12% | M128: Successful | N128: 2014-10-27
A129: 10 | B129: 2014-10-14 | D129: Birla Corp | E129: Buy | F129: 496.60 | G129: - | H129: 621 | I129: 580.00 | J129: Target Achieved | K129: 124.40 | L129: 25.05% | M129: Successful | N129: 2016-08-23
A130: 11 | B130: 2014-10-14 | D130: Ultratech Cem | E130: Buy | F130: 2481.90 | G130: - | H130: 2840 | I130: 2870.00 | J130: Profit of Rs.358.10/- | K130: 358.10 | L130: 14.43% | M130: Successful | N130: 2015-01-13
A131: =1+A128 -> 10 | B131: 2014-10-16 | D131: Sintex Inds | E131: Buy | F131: 84.50 | G131: - | H131: 93 | I131: 110.00 | J131: Profit of Rs.8.50/- | K131: 8.50 | L131: 10.06% | M131: Successful | N131: 2014-10-27
A132: =1+A131 -> 11 | B132: 2014-10-16 | D132: HSIL | E132: Buy | F132: 401.00 | G132: - | H132: 428 | I132: 450.00 | J132: Profit of Rs.27.00/- | K132: 27.00 | L132: 6.73% | M132: Successful | N132: 2015-01-16
A133: 12 | B133: 2014-10-16 | D133: Eveready Inds | E133: Buy | F133: 101.00 | G133: - | H133: 112 | I133: 120.00 | J133: Profit of Rs.11.00/- | K133: 11.00 | L133: 10.89% | M133: Successful | N133: 2014-10-27
A134: 13 | B134: 2014-11-11 | D134: Pennar Inds | E134: Buy | F134: 59.00 | G134: - | H134: 76 | I134: 76.00 | J134: Target Achieved | K134: 17.00 | L134: 28.81% | M134: Successful | N134: 2017-10-24
A135: 14 | B135: 2014-11-11 | D135: Snowman Logistics | E135: Buy | F135: 99.00 | G135: - | H135: 120 | I135: 120.00 | J135: Profit of Rs.21/- | K135: 21.00 | L135: 21.21% | M135: Successful | N135: 2014-11-17
A136: 15 | B136: 2014-11-13 | D136: Dharamsi Morarji Chem | E136: Buy | F136: 22.00 | G136: - | H136: 33.55 | I136: 32.00 | J136: Profit of Rs 11.55/- | K136: 11.55 | L136: 52.50% | M136: Successful | N136: 2015-07-03
A137: 16 | B137: 2014-12-03 | D137: Tatachem | E137: Buy | F137: 440.00 | G137: - | H137: 520 | I137: 520.00 | J137: Profit of Rs 80.00/- | K137: 80.00 | L137: 18.18% | M137: Successful | N137: 2015-07-23
A138: 17 | B138: 2014-12-03 | D138: Advanta | E138: Buy | F138: 360.00 | G138: - | H138: 427 | I138: 425.00 | J138: Profit of Rs.67.00/- | K138: 67.00 | L138: 18.61% | M138: Successful | N138: 2015-02-23
A139: 18 | B139: 2015-01-08 | D139: GDL | E139: Buy | F139: 360.00 | G139: - | H139: 455 | I139: 420.00 | J139: Profit of Rs.95.00/- | K139: 95.00 | L139: 26.39% | M139: Successful | N139: 2015-01-20
A140: 19 | B140: 2015-01-08 | D140: NRB Bearing | E140: Buy | F140: 130.00 | H140: 175.5 | I140: 165.00 | J140: Profit of Rs 45.50/- | K140: 45.50 | L140: 35.00% | M140: Successful | N140: 2017-12-19
A141: 20 | B141: 2015-02-05 | D141: GSFC | E141: Accu | F141: 98.00 | H141: 120 | I141: 120.00 | J141: Target Achieved | K141: 22.00 | L141: 22.45% | M141: Successful | N141: 2017-01-18
A142: 21 | B142: 2015-02-05 | D142: Sundrmfast | E142: Accu | F142: 196.00 | H142: 262 | I142: 255.00 | J142: Target Achieved | K142: 66.00 | L142: 33.67% | M142: Successful | N142: 2016-08-17
A143: 22 | B143: 2015-03-04 | D143: GPPL | E143: Accu | F143: 230-240 | I143: 280-285 | J143: Open
A144: 23 | B144: 2015-03-04 | D144: ORIENTCEM | E144: Accu | F144: 185.00 | H144: 224 | I144: 220-225 | J144: Target Achieved | K144: 39.00 | L144: =K144/F144 -> 21.08% | M144: Successful | N144: 2016-10-04
A145: 24 | B145: 2015-03-27 | D145: PFS | E145: Accu | F145: 49-50 | I145: 67.00 | J145: Open
A146: 25 | B146: 2015-03-30 | D146: Walchandnagar Ind Ltd | E146: Accu | F146: 183.50 | H146: 219 | I146: 218.00 | J146: Profit of Rs.35.50/- | K146: 35.50 | L146: =K146/F146 -> 19.35% | M146: Successful | N146: 2015-04-09
A147: 26 | B147: 2015-04-20 | D147: Kalpataru Power Transmission Ltd | E147: Accu | F147: =(227+237)/2 -> 232.00 | H147: 298 | I147: 298.00 | J147: Target Achieved | K147: 66.00 | L147: 28.45% | M147: Successful | N147: 2017-03-29
A148: 27 | B148: 2015-05-04 | D148: Mastek Ltd | E148: Buy | F148: 385.00 | H148: =212.5+331 -> 543.5 | I148: 510.00 | J148: Profit of Rs 158.50/- | K148: 158.50 | L148: 41.17% | M148: Successful | N148: 2015-08-19
A149: 28 | B149: 2015-05-04 | D149: Suprajit Eng | E149: Buy | F149: 115.50 | H149: 146 | I149: 142.00 | J149: Profit of Rs 30.50/- | K149: 30.50 | L149: 26.41% | M149: Successful | N149: 2015-07-17
A150: 29 | B150: 2015-05-27 | D150: TCI | E150: Buy | F150: 237.50 | H150: 279.5 | I150: 278.00 | J150: Target Achieved | K150: 42.00 | L150: 17.68% | M150: Successful | N150: 2015-08-06
A151: 30 | B151: 2015-06-19 | D151: HSIL | E151: Accu | F151: 340.00 | H151: 448 | I151: 448.00 | J151: Target Achieved | K151: 108.00 | L151: 31.76% | M151: Successful | N151: 2017-10-10
A152: 31 | B152: 2015-07-06 | D152: Capital First | E152: Accu | F152: 390.00 | H152: 460 | I152: 460.00 | J152: Target Achieved | K152: 70.00 | L152: 17.95% | M152: Successful | N152: 2016-04-18
A153: 32 | B153: 2015-07-10 | D153: Dolphin OffShore | E153: Accu | F153: 122.5 | H153: 61.00 | I153: 172.00 | J153: Loss of Rs.61.50/- | K153: -61.50 | L153: -50.20% | M153: Unsuccessful | N153: 2018-08-21
A154: 33 | B154: 2015-08-03 | D154: Allcargo logistics | E154: Accu | F154: 297.50 | H154: 350 | I154: 360.00 | J154: Profit of Rs 52.50/- | K154: 52.50 | L154: =K154/F154 -> 17.65% | M154: Successful | N154: 2015-08-16
A155: 34 | B155: 2015-08-03 | D155: Camline Fine | E155: Accu | F155: 115.50 | H155: 149 | I155: 140.00 | J155: Profit of Rs 33.50/- | K155: 33.50 | L155: 29.00% | M155: Successful | N155: 2017-01-05
A156: 35 | B156: 2015-09-04 | D156: TCI | E156: Accu | F156: 226.00 | H156: 292 | I156: 292.00 | J156: Target Achieved | K156: 66.00 | L156: 29.20% | M156: Successful | N156: 2015-10-09
A157: 36 | B157: 2015-09-07 | D157: Kalpataru Power Transmission Ltd | E157: Accu | F157: 232.50 | H157: 312.5 | I157: 310.00 | J157: Target Achieved | K157: 80.00 | L157: 34.41% | M157: Successful | N157: 2017-03-29
A158: 37 | B158: 2015-09-21 | D158: LLOYD ELECTRIC & ENG LTD | E158: Accu | F158: 196.50 | H158: 238 | I158: 238.00 | J158: Target Achieved | K158: 41.50 | L158: 21.12% | M158: Successful | N158: 2015-10-14
A159: 38 | B159: 2015-09-24 | D159: L&T Finance Holding | E159: Accu | F159: 65.00 | H159: 82 | I159: 82.00 | J159: Target Achieved | K159: 17.00 | L159: 26.15% | M159: Successful | N159: 2016-07-27
A160: 39 | B160: 2015-10-14 | D160: KEC International ltd | E160: Accu | F160: 144.00 | H160: 182.5 | I160: 181.00 | J160: Target Achieved | K160: 38.50 | L160: 26.74% | M160: Successful | N160: 2017-03-23
A161: 40 | B161: 2015-10-14 | D161: Gruh Finance | E161: Accu | F161: 264.00 | H161: 311 | I161: 311.00 | J161: Target Achieved | K161: 47.00 | L161: 17.80% | M161: Successful | N161: 2016-08-22
A162: 41 | B162: 2015-11-10 | D162: Pidilitind | E162: Buy | F162: 549.50 | H162: 630 | I162: 630.00 | J162: Target Achieved | K162: 80.50 | L162: 14.65% | M162: Successful | N162: 2016-02-19
A163: 42 | B163: 2015-12-04 | D163: Zensar Technology | E163: Accu | F163: 1027.50 | H163: 1315 | I163: 1250.00 | J163: Target Achieved | K163: =H163-F163 -> 287.50 | L163: 27.98% | M163: Successful | N163: 2018-05-24
A164: 43 | B164: 2015-12-29 | D164: Vinati Organics Ltd | E164: Accu | F164: 465.00 | H164: 540 | I164: 540.00 | J164: Target Achieved | K164: 75.00 | L164: =K164/F164 -> 16.13% | M164: Successful | N164: 2016-06-09
A165: 44 | B165: 2016-01-11 | D165: GSFC | E165: Buy | F165: 81.00 | H165: 110 | I165: 110.00 | J165: Target Achieved | K165: 29.00 | L165: 35.80% | M165: Successful | N165: 2017-01-10
A166: 45 | B166: 2016-01-13 | D166: SSWL | E166: Buy | F166: 417.50 | H166: 547 | I166: 535.00 | J166: Target Achieved | K166: 129.50 | L166: 31.02% | M166: Successful | N166: 2016-07-27
A167: 46 | B167: 2016-02-08 | D167: Persistent System Ltd | E167: Accu | F167: 650.00 | H167: 800 | I167: 800.00 | J167: Target Achieved | K167: 150.00 | L167: 23.08% | M167: Successful | N167: 2018-02-23
A168: 47 | B168: 2016-03-04 | D168: UPL | E168: Accu | F168: 437.50 | H168: 504.5 | I168: 522.00 | J168: Profit of Rs.67/- | K168: 67.00 | L168: 15.31% | M168: Successful | N168: 2016-04-20
A169: 48 | B169: 2016-03-09 | D169: Ashoka Buildcon Ltd | E169: Accu | F169: 189.50 | H169: 218 | I169: 218.00 | J169: Target Achieved | K169: 28.50 | L169: 15.04% | M169: Successful | N169: 2017-10-26
A170: 49 | B170: 2016-04-11 | D170: PTC INDIA FIN SERV LTD | E170: Accu | F170: 36-37 | I170: 60.00 | J170: Open
A171: 50 | B171: 2016-04-12 | D171: CAMLINFINE $ | E171: Accu | F171: 93.00 | H171: 149 | I171: 140.00 | J171: Profit of Rs 56/- | K171: 56.00 | L171: =K171/F171 -> 60.22% | M171: Successful | N171: 2017-01-05
A172: 51 | B172: 2016-04-12 | D172: Greaves Cotton Ltd. | E172: Accu | F172: 130.00 | H172: 150 | I172: 150-155 | J172: Target Achieved | K172: 20.00 | L172: 15.38% | M172: Successful | N172: 2016-07-13
A173: 52 | B173: 2016-04-13 | D173: DHFL | E173: Accu | F173: 196.00 | H173: 299 | I173: 299.00 | J173: Target Achieved | K173: 103.00 | L173: 52.55% | M173: Successful | N173: 2016-09-07
A174: 53 | B174: 2016-04-13 | D174: Magma | E174: Accu | F174: 88.00 | H174: 103 | I174: 103.00 | J174: Target Achieved | K174: 15.00 | L174: 17.05% | M174: Successful | N174: 2016-06-09
A175: 54 | B175: 2016-05-02 | D175: KEC International ltd $ | E175: Accu | F175: 127.50 | H175: 148 | I175: 148-150 | J175: Target Achieved | K175: 20.50 | L175: 16.08% | M175: Successful | N175: 2016-07-13
A176: 55 | B176: 2016-05-03 | D176: Mindtree | E176: Accu | F176: 675.00 | H176: 815 | I176: 790-800 | J176: Target Achieved | K176: 140.00 | L176: 20.74% | M176: Successful | N176: 2018-02-23
A177: 56 | B177: 2016-06-01 | D177: Atulauto | E177: Accu | F177: 495-505 | I177: 565-570 | J177: Open
A178: 57 | B178: 2016-06-06 | D178: TRITURBINE | E178: Accu | F178: 110.00 | H178: 126.5 | I178: 125.00 | J178: Profit of Rs.16.50/- | K178: 16.50 | L178: =K178/F178 -> 15.00% | M178: Successful | N178: 2016-07-01
A179: 58 | B179: 2016-06-17 | D179: Pennar Industries Ltd | E179: Accu | F179: 44.00 | H179: 69.5 | I179: 69.50 | J179: Profit of Rs.25.50/- | K179: 25.50 | L179: =K179/F179 -> 57.95% | M179: Successful | N179: 2017-08-30
A180: 59 | B180: 2016-06-28 | D180: EVEREADY INDS. IND. LTD. | E180: Accu | F180: 262.50 | H180: 340 | I180: 333.00 | J180: Profit of Rs.77.50/- | K180: 77.50 | L180: =K180/F180 -> 29.52% | M180: Successful | N180: 2017-10-09
A181: 60 | B181: 2016-06-28 | D181: FIEM INDUSTRIES LIMITED | E181: Accu | F181: 840.00 | H181: 1230 | I181: 1230.00 | J181: Target Achieved | K181: 390.00 | L181: =K181/F181 -> 46.43% | M181: Successful | N181: 2016-10-06
A182: 61 | B182: 2016-07-05 | D182: Bajaj Corp Ltd | E182: Accu | F182: 395 | H182: 468.50 | I182: 510.00 | J182: Part profit of Rs.73.50/- | K182: 73.50 | L182: =K182/F182 -> 19% | M182: Successful | N182: 2017-08-30
A183: 62 | B183: 2016-08-02 | D183: GPPL $ | E183: Buy | F183: 167-172 | I183: 198-200 | J183: Open
A184: 63 | B184: 2016-08-04 | D184: WONDERLA HOLIDAYS LTD | E184: Accu | F184: 395-405 | I184: 475.00 | J184: Open
A185: 64 | B185: 2016-08-11 | D185: CAMLINFINE | E185: Accu | F185: 86.50 | H185: 130 | I185: 130.00 | J185: Profit of Rs.43.50/- | K185: =H185-F185 -> 43.50 | L185: =K185/F185 -> 50.29% | M185: Successful | N185: 2017-12-22
A186: 65 | B186: 2016-08-18 | D186: GRANULES | E186: Accu | F186: 133.5 | H186: 126.50 | I186: 178.00 | J186: Exit | K186: -7.00 | L186: -5.24% | M186: Unsuccessful | N186: 2016-09-02
A187: 66 | B187: 2016-08-31 | D187: VA TECH WABAG | E187: Accu | F187: 560.00 | H187: 725 | I187: 725.00 | J187: Target Achieved | K187: 165.00 | L187: 29.46% | M187: Successful | N187: 2016-03-27
A188: 67 | B188: 2016-09-01 | D188: SKIPPER LIMITED | E188: Accu | F188: 160.50 | H188: 210 | I188: 210.00 | J188: Target Achieved | K188: 49.50 | L188: 30.84% | M188: Successful | N188: 2017-05-16
A189: 68 | B189: 2016-10-03 | D189: IFB Industries | E189: Accu | F189: 430.00 | H189: 596 | I189: 575.00 | J189: Profit of Rs.166/- | K189: 166.00 | L189: 38.60% | M189: Successful | N189: 2017-02-03
A190: 69 | B190: 2016-10-14 | D190: ASIANTILES | E190: Accu | F190: 280.00 | H190: 345 | I190: 345.00 | J190: Target Achieved | K190: 65.00 | L190: 23.21% | M190: Successful | N190: 2017-03-20
A191: 70 | B191: 2016-10-14 | D191: DEEPIND | E191: Accu | F191: 245.00 | H191: 325.5 | I191: 330.00 | J191: Profit of Rs.80.5/- | K191: 80.50 | L191: 32.86% | M191: Successful | N191: 2017-02-03
A192: 71 | B192: 2016-10-17 | D192: DCBBANK | E192: Accu | F192: 125.00 | H192: 160 | I192: 160.00 | J192: Target Achieved | K192: 35.00 | L192: 28.00% | M192: Successful | N192: 2017-03-09
A193: 72 | B193: 2016-10-17 | D193: ORIENTREF | E193: Accu | F193: 114.00 | H193: 145 | I193: 145.00 | J193: Target Achieved | K193: 31.00 | L193: =K193/F193 -> 27.19% | M193: Successful | N193: 2017-05-04
A194: 73 | B194: 2016-10-17 | D194: GANECOS | E194: Accu | F194: 212.00 | H194: 280 | I194: 276.00 | J194: Profit of Rs.68/- | K194: 68.00 | L194: =K194/F194 -> 32.08% | M194: Successful | N194: 2017-05-03
A195: 74 | B195: 2016-11-04 | D195: NBCC | E195: Accu | F195: 155.00 | H195: 210 | I195: 210.00 | J195: Profit of Rs.55/- | K195: 55.00 | L195: =K195/F195 -> 35.48% | M195: Successful | N195: 2017-07-28
A196: 75 | B196: 2016-12-06 | D196: PRECAM | E196: Accu | F196: 150.5 | H196: 72.50 | I196: 174.00 | J196: Loss of Rs.78/- | K196: -78.00 | L196: =K196/F196 -> -51.83% | M196: Unsuccessful | N196: 2018-08-21
A197: 76 | B197: 2016-12-08 | D197: INFRATEL | E197: Accu | F197: 380.00 | H197: 478 | I197: 468.00 | J197: Target Achieved | K197: 98.00 | L197: =K197/F197 -> 25.79% | M197: Successful | N197: 2017-10-17
A198: 77 | B198: 2016-12-30 | D198: GODREJPROP | E198: Accu | F198: 305.00 | H198: 375 | I198: 375.00 | J198: Target Achieved | K198: 70.00 | L198: 22.95% | M198: Successful | N198: 2017-02-02
A199: 78 | B199: 2017-01-04 | D199: DEEPAKNTR | E199: Accu | F199: 99.50 | H199: 158 | I199: 158.00 | J199: Target Achieved | K199: 58.50 | L199: 58.79% | M199: Successful | N199: 2017-06-12
A200: 79 | B200: 2017-02-20 | D200: SUBROS | E200: Accu | F200: 202.50 | H200: 234 | I200: 234.00 | J200: Target Achieved | K200: 31.50 | L200: 15.56% | M200: Successful | N200: 2017-04-11
A201: 80 | B201: 2017-02-20 | D201: RECLTD | E201: Accu | F201: 140.50 | H201: 220 | I201: 220.00 | J201: Target Achieved | K201: 79.50 | L201: 56.58% | M201: Successful | N201: 2017-05-09
A202: 81 | B202: 2017-03-24 | D202: VRLLOG | E202: Accu | F202: 300.50 | H202: 417.5 | I202: 420.00 | J202: Profit of Rs.117/- | K202: 117.00 | L202: 38.94% | M202: Successful | N202: 2017-12-01
A203: 82 | B203: 2017-03-24 | D203: FIEMIND | E203: Accu | F203: 850.00 | H203: 1042.5 | I203: 1023.00 | J203: Profit of Rs 192.50/- | K203: 192.50 | L203: 22.65% | M203: Successful | N203: 2017-04-05
A204: 83 | B204: 2017-04-05 | D204: RATNAMANI | E204: Accu | F204: 785.00 | H204: 930 | I204: 920.00 | J204: Profit of Rs.145/- | K204: 145.00 | L204: 18.47% | M204: Successful | N204: 2017-08-29
A205: 84 | B205: 2017-04-06 | D205: ZEEMEDIA | E205: Accu | F205: 39-41 | I205: 60.00 | J205: Open
A206: 85 | B206: 2017-04-12 | D206: DABUR | E206: Accu | F206: 289.50 | H206: 354 | I206: 360.00 | J206: Profit of Rs.64.5/- | K206: 64.50 | L206: =K206/F206 -> 22.28% | M206: Successful | N206: 2017-11-01
A207: 86 | B207: 2017-04-20 | D207: KPRMILL | E207: Accu | F207: 700.00 | H207: 840 | I207: 840.00 | J207: Profit of Rs.140/- | K207: 140.00 | L207: =K207/F207 -> 20.00% | M207: Successful | N207: 2017-06-07
A208: 87 | B208: 2017-05-22 | D208: GREAVESCOT | E208: Accu | F208: 153-158 | I208: 190.00 | J208: Open
A209: 88 | B209: 2017-06-01 | D209: ESSELPACK | E209: Accu | F209: 260 | H209: 311.00 | I209: 340.00 | J209: Part profit of Rs.51/- | K209: =H209-F209 -> 51.00 | L209: =K209/F209 -> 20% | M209: Successful | N209: 2017-11-17
A210: 89 | B210: 2017-06-15 | D210: KEI | E210: Accu | F210: 214.50 | H210: 262 | I210: 262.00 | J210: Profit of Rs.47.5/- | K210: =H210-F210 -> 47.50 | L210: 22.14% | M210: Successful | N210: 2017-08-30
A211: 90 | B211: 2017-07-17 | D211: MAYURUNIQ | E211: Accu | F211: 370.00 | H211: 447.5 | I211: 450.00 | J211: Target Achieved | K211: 77.50 | L211: 20.95% | M211: Successful | N211: 2017-10-27
A212: 91 | B212: 2017-07-27 | D212: RAMCOCEM | E212: Accu | F212: 657.50 | H212: 825 | I212: 820.00 | J212: Target Achieved | K212: 167.50 | L212: 25.48% | M212: Successful | N212: 2017-12-21
A213: 92 | B213: 2017-08-17 | D213: FINPIPE | E213: Accu | F213: 605.00 | H213: 750 | I213: 750.00 | J213: Profit of Rs.145/- | K213: 145.00 | L213: 23.97% | M213: Successful | N213: 2017-10-19
A214: 93 | B214: 2017-09-01 | D214: SHK | E214: Accu | F214: 255 | H214: 307.50 | I214: 320.00 | J214: Part profit of Rs.52.5/- | K214: 52.50 | L214: 21% | M214: Successful | N214: 2017-12-29
A215: 94 | B215: 2017-09-19 | D215: SKIPPER | E215: Accu | F215: 215.00 | H215: 258 | I215: 258.00 | J215: Target Achieved | K215: 43.00 | L215: 20.00% | M215: Successful | N215: 2017-11-01
A216: 95 | B216: 2017-09-20 | D216: CAMLINFINE | E216: Accu | F216: 75.00 | H216: 90 | I216: 90.00 | J216: Profit of Rs.15.00/- | K216: 15.00 | L216: 20.00% | M216: Successful | N216: 2017-10-11
A217: 96 | B217: 2017-10-03 | D217: GNA | E217: Accu | F217: 315.00 | H217: 392 | I217: 384.00 | J217: Profit of Rs.77/- | K217: 77.00 | L217: 24.44% | M217: Successful | N217: 2017-10-09
A218: 97 | B218: 2017-10-05 | D218: NOCIL | E218: Accu | F218: 145.00 | H218: 179 | I218: 180.00 | J218: Profit of Rs.34/- | K218: 34.00 | L218: 23.45% | M218: Successful | N218: 2017-10-17
A219: 98 | B219: 2017-10-06 | D219: CENTURYPLY | E219: Accu | F219: 256.00 | H219: 323 | I219: 320.00 | J219: Target Achieved | K219: 67.00 | L219: 26.17% | M219: Successful | N219: 2017-11-28
A220: 99 | B220: 2017-10-09 | D220: RECLTD | E220: Accu | F220: 152.5 | H220: 183.50 | I220: 210.00 | J220: Part Profit of Rs.31/- | K220: 31.00 | L220: 20% | M220: Successful | N220: 2017-11-03
A221: 100 | B221: 2017-10-09 | D221: EIHOTEL | E221: Accu | F221: 137.50 | H221: 184 | I221: 183.00 | J221: Profit of Rs.46.5/- | K221: 46.50 | L221: 33.82% | M221: Successful | N221: 2018-01-08
A222: 101 | B222: 2017-10-10 | D222: BOROSIL | E222: Accu | F222: 895.00 | H222: 1122.5 | I222: 1078.00 | J222: Profit of Rs.227.5/- | K222: 227.50 | L222: 25.42% | M222: Successful | N222: 2018-01-17
A223: 102 | B223: 2017-10-10 | D223: NRBBEARING | E223: Accu | F223: 125.50 | H223: 158 | I223: 155.00 | J223: Profit of Rs.32.5/- | K223: 32.50 | L223: 25.90% | M223: Successful | N223: 2017-11-28
A224: 103 | B224: 2017-10-12 | D224: CYIENT | E224: Accu | F224: 525.00 | H224: 629 | I224: 629.00 | J224: Target Achieved | K224: 104.00 | L224: 19.81% | M224: Successful | N224: 2018-01-19
A225: 104 | B225: 2017-11-07 | D225: HATSUN | E225: Accu | F225: 740.00 | H225: 892.5 | I225: 900.00 | J225: Profit of Rs.152.5/- | K225: 152.50 | L225: 20.61% | M225: Successful | N225: 2017-11-13
A226: 105 | B226: 2017-12-04 | D226: SANGHIIND | E226: Accu | F226: 118.50 | H226: 143.5 | I226: 145.00 | J226: Profit of Rs.25/- | K226: 25.00 | L226: 21.10% | M226: Successful | N226: 2017-12-28
A227: 106 | B227: 2017-12-05 | D227: ALLCARGO | E227: Accu | F227: 177.5 | H227: 215.00 | I227: 230.00 | J227: Part Profit of Rs.37.5/- | K227: 37.50 | L227: 21% | M227: Successful | N227: 2017-12-27
A228: 107 | B228: 2017-12-21 | D228: KAJARIACER | E228: Accu | F228: 710-720 | I228: 872.00 | J228: Open
A229: 108 | B229: 2017-12-29 | D229: GNA | E229: Accu | F229: 435.00 | H229: 542.5 | I229: 539.00 | J229: Target Achieved | K229: =H229-F229 -> 107.50 | L229: =K229/F229 -> 24.71% | M229: Successful | N229: 2018-04-16
A230: 109 | B230: 2017-12-29 | D230: ZENSARTECH | E230: Accu | F230: 885.00 | H230: 1090 | I230: 1084.00 | J230: Target Achieved | K230: 205.00 | L230: =K230/F230 -> 23.16% | M230: Successful | N230: 2018-04-23
A231: 110 | B231: 2018-02-07 | D231: GREAVESCOT | E231: Accu | F231: 130-132 | I231: 190.00 | J231: Open
A232: 111 | B232: 2018-02-27 | D232: MOLDTKPAC | E232: Accu | F232: 320-330 | I232: 398.00 | J232: Open
A233: 112 | B233: 2018-03-05 | D233: LICHSGFIN | E233: Accu | F233: 505-515 | I233: 672.00 | J233: Open
A234: 113 | B234: 2018-04-02 | D234: EVERESTIND | E234: Accu | F234: 492.5 | H234: 589.00 | I234: 613.00 | J234: Part Profit of Rs.37.5/- | K234: =H234-F234 -> 96.50 | L234: =K234/F234 -> 20% | M234: Successful | N234: 2018-08-21
A235: 114 | B235: 2018-04-04 | D235: GPPL | E235: Accu | F235: 140-143 | I235: 180.00 | J235: Open
A236: 115 | B236: 2018-04-19 | D236: MANPASAND | E236: Accu | F236: 430 | H236: 220.00 | I236: 537.00 | J236: Loss of Rs.210/- | K236: =H236-F236 -> -210.00 | L236: =K236/F236 -> -48.84% | M236: Unsuccessful | N236: 2018-06-01
A237: 116 | B237: 2018-04-30 | D237: HEIDELBERG | E237: Accu | F237: 154-158 | I237: 196.00 | J237: Open
A238: 117 | B238: 2018-05-17 | D238: PHILIPCARB | E238: Accu | F238: 230-240 | I238: 348.00 | J238: Open
A239: 118 | B239: 2018-06-07 | D239: KEC | E239: Accu | F239: 340-345 | I239: 439.00 | J239: Open
A240: 119 | B240: 2018-07-04 | D240: ASHOKLEY | E240: Accu | F240: 125-130 | I240: 170.00 | J240: Open
A241: 120 | B241: 2018-07-13 | D241: FCONSUMER | E241: Accu | F241: 46-47 | I241: 59.00 | J241: Open
A242: 121 | B242: 2018-07-25 | D242: ZEEMEDIA | E242: Accu | F242: 27-28 | I242: 44.00 | J242: Open
A243: 122 | B243: 2018-08-06 | D243: GABRIEL | E243: Accu | F243: 148-152 | I243: 182.00 | J243: Open
A244: 123 | B244: 2018-08-23 | D244: INDIANHUME | E244: Accu | F244: 280-290 | I244: 364.00 | J244: Open
A245: 124 | B245: 2018-08-29 | D245: GRINDWELL | E245: Accu | F245: 520-530 | I245: 635.00 | J245: Open
A246: 125 | B246: 2018-10-22 | D246: FINPIPE | E246: Accu | F246: 475.00 | H246: 574 | I246: 570.00 | J246: Target Achieved | K246: =H246-F246 -> 99.00 | L246: =K246/F246 -> 20.84% | M246: Successful | N246: 2018-10-30
A247: 126 | B247: 2018-10-23 | D247: JKPAPER | E247: Accu | F247: 158-162 | I247: 191.00 | J247: Open
... 15 more rows

Sheet Sheet2 (hidden)
A1: SYMBOL | B1: SERIES | C1: OPEN | D1: HIGH | E1: LOW | F1: CLOSE | G1: LAST | H1: PREVCLOSE | I1: TOTTRDQTY | J1: TOTTRDVAL | K1: TIMESTAMP | L1: TOTALTRADES | M1: ISIN | N1: ISIN
A2: 20MICRONS | B2: EQ | C2: 44.15 | D2: 45.75 | E2: 43.05 | F2: 45.4 | G2: 45.45 | H2: 44.3 | I2: 55560 | J2: 2500843.4 | K2: 2018-11-13 | L2: 550 | M2: INE144J01027
A3: 21STCENMGM | B3: EQ | C3: 23.65 | D3: 23.65 | E3: 23.65 | F3: 23.65 | G3: 23.65 | H3: 23.2 | I3: 1602 | J3: 37887.3 | K3: 2018-11-13 | L3: 4 | M3: INE253B01015
A4: 3IINFOTECH | B4: EQ | C4: 3.35 | D4: 3.4 | E4: 3.35 | F4: 3.4 | G4: 3.4 | H4: 3.35 | I4: 391032 | J4: 1316658.1 | K4: 2018-11-13 | L4: 375 | M4: INE748C01020
A5: 3MINDIA | B5: EQ | C5: 20469.95 | D5: 20522.75 | E5: 20300 | F5: 20439.3 | G5: 20453.75 | H5: 20464.3 | I5: 1585 | J5: 32385118.55 | K5: 2018-11-13 | L5: 457 | M5: INE470A01017
A6: 3PLAND | B6: BE | C6: 12.6 | D6: 13.2 | E6: 12.6 | F6: 13.2 | G6: 13.2 | H6: 13 | I6: 560 | J6: 7092 | K6: 2018-11-13 | L6: 4 | M6: INE105C01023
A7: 5PAISA | B7: EQ | C7: 183.05 | D7: 194.5 | E7: 180.1 | F7: 193.85 | G7: 194.5 | H7: 185.25 | I7: 6099 | J7: 1150051.35 | K7: 2018-11-13 | L7: 274 | M7: INE618L01018
A8: 63MOONS | B8: EQ | C8: 79.95 | D8: 91.45 | E8: 79 | F8: 89.2 | G8: 88 | H8: 80.2 | I8: 967765 | J8: 84817010.95 | K8: 2018-11-13 | L8: 8887 | M8: INE111B01023
A9: 8KMILES | B9: EQ | C9: 102.6 | D9: 102.6 | E9: 99.75 | F9: 102.6 | G9: 102.6 | H9: 97.75 | I9: 773324 | J9: 79081859.25 | K9: 2018-11-13 | L9: 2131 | M9: INE650K01021
A10: A2ZINFRA | B10: EQ | C10: 13.3 | D10: 13.75 | E10: 13.2 | F10: 13.5 | G10: 13.7 | H10: 13.55 | I10: 317067 | J10: 4252970.05 | K10: 2018-11-13 | L10: 736 | M10: INE619I01012
A11: AARTIDRUGS | B11: EQ | C11: 580.95 | D11: 582 | E11: 575.6 | F11: 576.1 | G11: 576 | H11: 576.9 | I11: 6033 | J11: 3482185.6 | K11: 2018-11-13 | L11: 329 | M11: INE767A01016
A12: AARTIIND | B12: EQ | C12: 1383.05 | D12: 1383.05 | E12: 1365 | F12: 1375.3 | G12: 1375 | H12: 1383.05 | I12: 18918 | J12: 26050637.2 | K12: 2018-11-13 | L12: 1377 | M12: INE769A01020
A13: AARVEEDEN | B13: EQ | C13: 25.35 | D13: 26.5 | E13: 24 | F13: 25.35 | G13: 25.3 | H13: 24.8 | I13: 20158 | J13: 508038.6 | K13: 2018-11-13 | L13: 182 | M13: INE273D01019
A14: AAVAS | B14: EQ | C14: 659.8 | D14: 673 | E14: 652.75 | F14: 665.15 | G14: 665 | H14: 660 | I14: 56424 | J14: 37519243.4 | K14: 2018-11-13 | L14: 1911 | M14: INE216P01012
A15: ABAN | B15: EQ | C15: 80.95 | D15: 87.3 | E15: 80.3 | F15: 86.2 | G15: 85 | H15: 81.25 | I15: 1601640 | J15: 135706402.8 | K15: 2018-11-13 | L15: 12121 | M15: INE421A01028
A16: ABB | B16: EQ | C16: 1305 | D16: 1320.2 | E16: 1293.55 | F16: 1297.7 | G16: 1297 | H16: 1307.4 | I16: 37350 | J16: 48670060.65 | K16: 2018-11-13 | L16: 2713 | M16: INE117A01022
A17: ABBOTINDIA | B17: EQ | C17: 7469 | D17: 7560 | E17: 7469 | F17: 7517.8 | G17: 7512.05 | H17: 7469.15 | I17: 1722 | J17: 12937847.6 | K17: 2018-11-13 | L17: 460 | M17: INE358A01014
A18: ABCAPITAL | B18: EQ | C18: 101.5 | D18: 104 | E18: 101.5 | F18: 103.75 | G18: 104 | H18: 101.8 | I18: 1233774 | J18: 126997290.2 | K18: 2018-11-13 | L18: 12019 | M18: INE674K01013
A19: ABFRL | B19: EQ | C19: 191 | D19: 197.6 | E19: 191 | F19: 192.85 | G19: 192.2 | H19: 192.85 | I19: 990045 | J19: 191693588.9 | K19: 2018-11-13 | L19: 9392 | M19: INE647O01011
A20: ACC | B20: EQ | C20: 1435 | D20: 1465.35 | E20: 1424 | F20: 1457.2 | G20: 1454.05 | H20: 1438.7 | I20: 458083 | J20: 660549912.9 | K20: 2018-11-13 | L20: 35076 | M20: INE012A01025
A21: ACCELYA | B21: EQ | C21: 961.8 | D21: 967.45 | E21: 950 | F21: 952.1 | G21: 951.4 | H21: 954.3 | I21: 4368 | J21: 4160963.15 | K21: 2018-11-13 | L21: 487 | M21: INE793A01012
A22: ACE | B22: EQ | C22: 103 | D22: 103 | E22: 99.75 | F22: 100.25 | G22: 100.75 | H22: 103.05 | I22: 104781 | J22: 10554519.65 | K22: 2018-11-13 | L22: 2292 | M22: INE731H01025
A23: ADANIENT | B23: EQ | C23: 160.25 | D23: 163 | E23: 158.75 | F23: 162.15 | G23: 162.2 | H23: 160.25 | I23: 3641712 | J23: 587391544 | K23: 2018-11-13 | L23: 23234 | M23: INE423A01024
A24: ADANIGAS | B24: BE | C24: 72.5 | D24: 78 | E24: 72.5 | F24: 76.95 | G24: 77.2 | H24: 76 | I24: 915107 | J24: 68266679.4 | K24: 2018-11-13 | L24: 5791 | M24: INE399L01023
A25: ADANIGREEN | B25: EQ | C25: 42.5 | D25: 42.7 | E25: 41.45 | F25: 42.1 | G25: 42.1 | H25: 43.1 | I25: 435533 | J25: 18295699.65 | K25: 2018-11-13 | L25: 2430 | M25: INE364U01010
A26: ADANIPORTS | B26: EQ | C26: 327.65 | D26: 335 | E26: 324.7 | F26: 334.1 | G26: 333.4 | H26: 328.65 | I26: 1738296 | J26: 576384281.6 | K26: 2018-11-13 | L26: 24323 | M26: INE742F01042
A27: ADANIPOWER | B27: EQ | C27: 48.15 | D27: 49.2 | E27: 47.4 | F27: 48.55 | G27: 48.55 | H27: 48.15 | I27: 20560525 | J27: 993978698.8 | K27: 2018-11-13 | L27: 28757 | M27: INE814H01011
A28: ADANITRANS | B28: EQ | C28: 171.55 | D28: 177.3 | E28: 166.25 | F28: 173.1 | G28: 174 | H28: 171.75 | I28: 177485 | J28: 30125576.8 | K28: 2018-11-13 | L28: 2862 | M28: INE931S01010
A29: ADFFOODS | B29: EQ | C29: 244.05 | D29: 249.85 | E29: 242.65 | F29: 246.65 | G29: 247 | H29: 248.65 | I29: 59981 | J29: 14756195.9 | K29: 2018-11-13 | L29: 2099 | M29: INE982B01019
A30: ADHUNIK | B30: EQ | C30: 2.95 | D30: 3 | E30: 2.85 | F30: 2.85 | G30: 2.85 | H30: 2.95 | I30: 38410 | J30: 110217.45 | K30: 2018-11-13 | L30: 55 | M30: INE400H01019
A31: ADHUNIKIND | B31: EQ | C31: 43 | D31: 44 | E31: 42 | F31: 43.05 | G31: 43.9 | H31: 43.6 | I31: 6237 | J31: 268053.1 | K31: 2018-11-13 | L31: 117 | M31: INE452L01012
A32: ADLABS | B32: EQ | C32: 15.4 | D32: 15.4 | E32: 14.4 | F32: 14.5 | G32: 14.4 | H32: 15.15 | I32: 134783 | J32: 1974517.3 | K32: 2018-11-13 | L32: 523 | M32: INE172N01012
A33: ADORWELD | B33: EQ | C33: 364.35 | D33: 367.1 | E33: 356.95 | F33: 366.55 | G33: 365.8 | H33: 360.65 | I33: 8008 | J33: 2908105.05 | K33: 2018-11-13 | L33: 569 | M33: INE045A01017
A34: ADROITINFO | B34: EQ | C34: 18.8 | D34: 18.8 | E34: 17.95 | F34: 18.65 | G34: 18.65 | H34: 18.8 | I34: 11865 | J34: 219416.4 | K34: 2018-11-13 | L34: 36 | M34: INE737B01033
A35: ADSL | B35: EQ | C35: 14.4 | D35: 14.4 | E35: 13.65 | F35: 13.85 | G35: 13.95 | H35: 14.2 | I35: 4453 | J35: 61472.25 | K35: 2018-11-13 | L35: 43 | M35: INE102I01027
A36: ADVANIHOTR | B36: EQ | C36: 58.15 | D36: 58.7 | E36: 55 | F36: 57 | G36: 57 | H36: 56.95 | I36: 16538 | J36: 955325.1 | K36: 2018-11-13 | L36: 121 | M36: INE199C01026
A37: ADVENZYMES | B37: EQ | C37: 186 | D37: 188.8 | E37: 185.85 | F37: 186.45 | G37: 186.35 | H37: 188.05 | I37: 24395 | J37: 4551318.75 | K37: 2018-11-13 | L37: 699 | M37: INE837H01020
A38: AEGISCHEM | B38: EQ | C38: 219.3 | D38: 221.7 | E38: 215.75 | F38: 217.4 | G38: 215.75 | H38: 219.3 | I38: 52831 | J38: 11538363 | K38: 2018-11-13 | L38: 3271 | M38: INE208C01025
A39: AGARIND | B39: EQ | C39: 197.85 | D39: 199 | E39: 191.1 | F39: 194.95 | G39: 195 | H39: 191.75 | I39: 691 | J39: 135344.85 | K39: 2018-11-13 | L39: 47 | M39: INE204E01012
A40: AGCNET | B40: EQ | C40: 70 | D40: 70.75 | E40: 67.1 | F40: 68.5 | G40: 68 | H40: 69.75 | I40: 3740 | J40: 260743.15 | K40: 2018-11-13 | L40: 157 | M40: INE676A01019
A41: AGLSL | B41: EQ | C41: 79.5 | D41: 79.9 | E41: 76.45 | F41: 79.45 | G41: 79.8 | H41: 77.35 | I41: 1182 | J41: 93434.55 | K41: 2018-11-13 | L41: 76 | M41: INE517U01013
A42: AGRITECH | B42: EQ | C42: 52.55 | D42: 53.5 | E42: 52.5 | F42: 53.25 | G42: 53.5 | H42: 53.4 | I42: 2754 | J42: 145985.5 | K42: 2018-11-13 | L42: 100 | M42: INE449G01018
A43: AHLEAST | B43: EQ | C43: 254.95 | D43: 254.95 | E43: 244.95 | F43: 246.05 | G43: 246.05 | H43: 249.35 | I43: 700 | J43: 173484.85 | K43: 2018-11-13 | L43: 58 | M43: INE926K01017
A44: AHLUCONT | B44: EQ | C44: 319.85 | D44: 320.05 | E44: 313.95 | F44: 319.2 | G44: 320 | H44: 319.6 | I44: 1567 | J44: 497888.6 | K44: 2018-11-13 | L44: 76 | M44: INE758C01029
A45: AHLWEST | B45: EQ | C45: 312 | D45: 312 | E45: 301.6 | F45: 302.5 | G45: 302.5 | H45: 310.8 | I45: 29 | J45: 8774.8 | K45: 2018-11-13 | L45: 6 | M45: INE915K01010
A46: AIAENG | B46: EQ | C46: 1675 | D46: 1712.5 | E46: 1670.1 | F46: 1700.2 | G46: 1687.2 | H46: 1702.55 | I46: 7584 | J46: 12828273.65 | K46: 2018-11-13 | L46: 1500 | M46: INE212H01026
A47: AIFL | B47: EQ | C47: 55.7 | D47: 55.7 | E47: 55.7 | F47: 55.7 | G47: 55.7 | H47: 58.6 | I47: 6815 | J47: 379595.5 | K47: 2018-11-13 | L47: 93 | M47: INE428O01016
A48: AIONJSW | B48: EQ | C48: 35.1 | D48: 36.5 | E48: 35.1 | F48: 35.6 | G48: 36.5 | H48: 36.1 | I48: 33206 | J48: 1174850.9 | K48: 2018-11-13 | L48: 231 | M48: INE743C01021
A49: AJANTPHARM | B49: EQ | C49: 1070 | D49: 1082 | E49: 1057.25 | F49: 1075.35 | G49: 1074 | H49: 1073.6 | I49: 153204 | J49: 164487184.1 | K49: 2018-11-13 | L49: 5606 | M49: INE031B01049
A50: AJMERA | B50: EQ | C50: 163.1 | D50: 165.8 | E50: 162.1 | F50: 162.55 | G50: 162.95 | H50: 164.2 | I50: 13353 | J50: 2178217.05 | K50: 2018-11-13 | L50: 356 | M50: INE298G01027
A51: AKSHARCHEM | B51: EQ | C51: 484.85 | D51: 485 | E51: 465.25 | F51: 470.85 | G51: 473.95 | H51: 480 | I51: 714 | J51: 338990.05 | K51: 2018-11-13 | L51: 66 | M51: INE542B01011
A52: AKSHOPTFBR | B52: EQ | C52: 28.2 | D52: 28.6 | E52: 27.85 | F52: 28 | G52: 27.9 | H52: 28.2 | I52: 760967 | J52: 21518967.25 | K52: 2018-11-13 | L52: 2128 | M52: INE523B01011
A53: AKZOINDIA | B53: EQ | C53: 1584.75 | D53: 1596.5 | E53: 1580.05 | F53: 1586 | G53: 1580.05 | H53: 1584.75 | I53: 1496 | J53: 2377115.95 | K53: 2018-11-13 | L53: 524 | M53: INE133A01011
A54: ALANKIT | B54: EQ | C54: 21.85 | D54: 21.95 | E54: 21 | F54: 21.25 | G54: 21.3 | H54: 21.4 | I54: 368104 | J54: 7803162.8 | K54: 2018-11-13 | L54: 1659 | M54: INE914E01040
A55: ALBERTDAVD | B55: EQ | C55: 559.45 | D55: 566.05 | E55: 535.55 | F55: 543.05 | G55: 537 | H55: 554.55 | I55: 13136 | J55: 7194344.75 | K55: 2018-11-13 | L55: 728 | M55: INE155C01010
A56: ALBK | B56: EQ | C56: 42 | D56: 42.4 | E56: 35.45 | F56: 37.4 | G56: 38.3 | H56: 41.65 | I56: 34254361 | J56: 1274522545 | K56: 2018-11-13 | L56: 63505 | M56: INE428A01015
A57: ALCHEM | B57: BE | C57: 3.05 | D57: 3.25 | E57: 2.95 | F57: 3.1 | G57: 2.95 | H57: 3.1 | I57: 76131 | J57: 233952.7 | K57: 2018-11-13 | L57: 79 | M57: INE964B01033
A58: ALEMBICLTD | B58: EQ | C58: 43.4 | D58: 45 | E58: 42.5 | F58: 43.25 | G58: 43.5 | H58: 43.45 | I58: 306997 | J58: 13331544.15 | K58: 2018-11-13 | L58: 1912 | M58: INE426A01027
A59: ALICON | B59: EQ | C59: 626.1 | D59: 630 | E59: 620 | F59: 628.65 | G59: 628 | H59: 629.05 | I59: 661 | J59: 413381.95 | K59: 2018-11-13 | L59: 54 | M59: INE062D01024
A60: ALKALI | B60: EQ | C60: 58.5 | D60: 59.25 | E60: 57.3 | F60: 58.25 | G60: 59.25 | H60: 59.45 | I60: 3251 | J60: 189236.85 | K60: 2018-11-13 | L60: 103 | M60: INE773I01017
A61: ALKEM | B61: EQ | C61: 1960 | D61: 1974.6 | E61: 1935.15 | F61: 1969.6 | G61: 1970 | H61: 1962.35 | I61: 19023 | J61: 37408914.45 | K61: 2018-11-13 | L61: 2096 | M61: INE540L01014
A62: ALKYLAMINE | B62: EQ | C62: 780 | D62: 805 | E62: 780 | F62: 790.6 | G62: 790.15 | H62: 786.5 | I62: 10609 | J62: 8393436.5 | K62: 2018-11-13 | L62: 477 | M62: INE150B01021
A63: ALLCARGO | B63: EQ | C63: 106 | D63: 106.95 | E63: 104.55 | F63: 105.7 | G63: 106.35 | H63: 106.4 | I63: 59480 | J63: 6286794.3 | K63: 2018-11-13 | L63: 1330 | M63: INE418H01029
A64: ALLSEC | B64: EQ | C64: 238.05 | D64: 262 | E64: 238 | F64: 249 | G64: 250 | H64: 240.4 | I64: 30269 | J64: 7583611.3 | K64: 2018-11-13 | L64: 1003 | M64: INE835G01018
A65: ALMONDZ | B65: EQ | C65: 25.5 | D65: 25.5 | E65: 23.2 | F65: 23.55 | G65: 25.25 | H65: 24.4 | I65: 4264 | J65: 102447.45 | K65: 2018-11-13 | L65: 32 | M65: INE326B01027
A66: ALOKTEXT | B66: EQ | C66: 3.15 | D66: 3.25 | E66: 3.1 | F66: 3.15 | G66: 3.2 | H66: 3.15 | I66: 1420192 | J66: 4463329 | K66: 2018-11-13 | L66: 2318 | M66: INE270A01011
A67: ALPA | B67: EQ | C67: 25.9 | D67: 26.55 | E67: 25.85 | F67: 26.3 | G67: 26.35 | H67: 25.95 | I67: 5900 | J67: 155037.05 | K67: 2018-11-13 | L67: 64 | M67: INE385I01010
A68: ALPHAGEO | B68: EQ | C68: 475 | D68: 498.75 | E68: 465.05 | F68: 490.3 | G68: 490 | H68: 484.2 | I68: 14178 | J68: 6783032.8 | K68: 2018-11-13 | L68: 1230 | M68: INE137C01018
A69: ALPSINDUS | B69: BE | C69: 2.65 | D69: 2.65 | E69: 2.65 | F69: 2.65 | G69: 2.65 | H69: 2.55 | I69: 13954 | J69: 36978.1 | K69: 2018-11-13 | L69: 8 | M69: INE093B01015
A70: AMARAJABAT | B70: EQ | C70: 755 | D70: 763.2 | E70: 731.65 | F70: 743.4 | G70: 745 | H70: 757.65 | I70: 484154 | J70: 358974428.1 | K70: 2018-11-13 | L70: 17780 | M70: INE885A01032
A71: AMBER | B71: EQ | C71: 869 | D71: 869.8 | E71: 863.05 | F71: 865.6 | G71: 865.05 | H71: 865.55 | I71: 2539 | J71: 2197179 | K71: 2018-11-13 | L71: 314 | M71: INE371P01015
A72: AMBIKCO | B72: EQ | C72: 1196.1 | D72: 1202.75 | E72: 1180 | F72: 1198.65 | G72: 1196 | H72: 1192 | I72: 1636 | J72: 1957674.3 | K72: 2018-11-13 | L72: 219 | M72: INE540G01014
A73: AMBUJACEM | B73: EQ | C73: 202.95 | D73: 206.4 | E73: 201.4 | F73: 205.85 | G73: 205.2 | H73: 203.35 | I73: 2024625 | J73: 414592236.9 | K73: 2018-11-13 | L73: 28337 | M73: INE079A01024
A74: AMDIND | B74: EQ | C74: 21.5 | D74: 22.6 | E74: 21.5 | F74: 21.65 | G74: 21.65 | H74: 21 | I74: 6596 | J74: 145060.5 | K74: 2018-11-13 | L74: 69 | M74: INE005I01014
A75: AMJLAND | B75: EQ | C75: 23.45 | D75: 23.9 | E75: 22.55 | F75: 22.85 | G75: 23.2 | H75: 23.35 | I75: 8818 | J75: 206229.8 | K75: 2018-11-13 | L75: 97 | M75: INE606A01024
A76: AMRUTANJAN | B76: EQ | C76: 247.3 | D76: 250.8 | E76: 246.9 | F76: 248.6 | G76: 248.75 | H76: 248 | I76: 8482 | J76: 2104195.45 | K76: 2018-11-13 | L76: 344 | M76: INE098F01031
A77: ANANTRAJ | B77: EQ | C77: 34.95 | D77: 35.4 | E77: 34.35 | F77: 35.15 | G77: 35.1 | H77: 34.9 | I77: 268588 | J77: 9368890.2 | K77: 2018-11-13 | L77: 1313 | M77: INE242C01024
A78: ANDHRABANK | B78: EQ | C78: 29.45 | D78: 29.45 | E78: 28.5 | F78: 28.7 | G78: 28.75 | H78: 29.3 | I78: 978555 | J78: 28261036.85 | K78: 2018-11-13 | L78: 2519 | M78: INE434A01013
A79: ANDHRACEMT | B79: EQ | C79: 6.2 | D79: 6.35 | E79: 6.15 | F79: 6.25 | G79: 6.25 | H79: 6.35 | I79: 32588 | J79: 203561.6 | K79: 2018-11-13 | L79: 154 | M79: INE666E01012
A80: ANDHRSUGAR | B80: EQ | C80: 383.2 | D80: 385 | E80: 373.25 | F80: 374.95 | G80: 376.2 | H80: 386.9 | I80: 44616 | J80: 16870319.2 | K80: 2018-11-13 | L80: 1388 | M80: INE715B01013
A81: ANGIND | B81: BE | C81: 1.5 | D81: 1.5 | E81: 1.4 | F81: 1.4 | G81: 1.4 | H81: 1.45 | I81: 1750 | J81: 2533.45 | K81: 2018-11-13 | L81: 14 | M81: INE017D01010
A82: ANIKINDS | B82: EQ | C82: 27.6 | D82: 27.8 | E82: 27 | F82: 27 | G82: 27 | H82: 27.35 | I82: 411 | J82: 11181.7 | K82: 2018-11-13 | L82: 19 | M82: INE087B01017
A83: ANKITMETAL | B83: BE | C83: 0.45 | D83: 0.5 | E83: 0.45 | F83: 0.45 | G83: 0.45 | H83: 0.5 | I83: 30303 | J83: 14956.9 | K83: 2018-11-13 | L83: 15 | M83: INE106I01010
A84: ANSALAPI | B84: EQ | C84: 11.65 | D84: 11.9 | E84: 11.4 | F84: 11.6 | G84: 11.6 | H84: 11.5 | I84: 66374 | J84: 776841.3 | K84: 2018-11-13 | L84: 99 | M84: INE436A01026
A85: ANSALHSG | B85: EQ | C85: 10.8 | D85: 11.6 | E85: 10.65 | F85: 10.95 | G85: 11 | H85: 10.95 | I85: 18210 | J85: 199334.05 | K85: 2018-11-13 | L85: 130 | M85: INE880B01015
A86: ANTGRAPHIC | B86: BE | C86: 0.5 | D86: 0.6 | E86: 0.5 | F86: 0.6 | G86: 0.6 | H86: 0.55 | I86: 187087 | J86: 99010.85 | K86: 2018-11-13 | L86: 65 | M86: INE414B01021
A87: APARINDS | B87: EQ | C87: 609.05 | D87: 614.95 | E87: 601.1 | F87: 609.95 | G87: 610 | H87: 609.3 | I87: 36305 | J87: 22131201.85 | K87: 2018-11-13 | L87: 576 | M87: INE372A01015
A88: APCL | B88: EQ | C88: 129.05 | D88: 132.6 | E88: 126.15 | F88: 126.2 | G88: 126.5 | H88: 129.55 | I88: 1437 | J88: 184301.95 | K88: 2018-11-13 | L88: 43 | M88: INE071F01012
A89: APCOTEXIND | B89: EQ | C89: 547.5 | D89: 550.1 | E89: 536 | F89: 538.2 | G89: 537.5 | H89: 546.15 | I89: 896 | J89: 484945.2 | K89: 2018-11-13 | L89: 155 | M89: INE116A01024
A90: APEX | B90: EQ | C90: 383.2 | D90: 389.75 | E90: 376.2 | F90: 383.4 | G90: 382 | H90: 382.15 | I90: 79494 | J90: 30443225.9 | K90: 2018-11-13 | L90: 2452 | M90: INE346W01013
A91: APLAPOLLO | B91: EQ | C91: 1260.1 | D91: 1275 | E91: 1232.15 | F91: 1264.6 | G91: 1275 | H91: 1266.3 | I91: 11296 | J91: 14104966.7 | K91: 2018-11-13 | L91: 721 | M91: INE702C01019
A92: APLLTD | B92: EQ | C92: 591.95 | D92: 592.7 | E92: 589.85 | F92: 590.55 | G92: 591.95 | H92: 592.35 | I92: 19366 | J92: 11431840.9 | K92: 2018-11-13 | L92: 1340 | M92: INE901L01018
A93: APOLLO | B93: EQ | C93: 133.05 | D93: 135.45 | E93: 130.85 | F93: 131.45 | G93: 131.95 | H93: 134.9 | I93: 16260 | J93: 2152683.65 | K93: 2018-11-13 | L93: 588 | M93: INE713T01010
A94: APOLLOHOSP | B94: EQ | C94: 1144 | D94: 1154.4 | E94: 1112.25 | F94: 1143.6 | G94: 1147 | H94: 1136.75 | I94: 442309 | J94: 501984609.8 | K94: 2018-11-13 | L94: 24587 | M94: INE437A01024
A95: APOLLOTYRE | B95: EQ | C95: 214.9 | D95: 224.5 | E95: 212 | F95: 222.6 | G95: 223.25 | H95: 214.6 | I95: 10096359 | J95: 2212311720 | K95: 2018-11-13 | L95: 87725 | M95: INE438A01022
A96: APOLSINHOT | B96: EQ | C96: 782 | D96: 849.05 | E96: 782 | F96: 836 | G96: 824 | H96: 707.55 | I96: 27844 | J96: 23180563.3 | K96: 2018-11-13 | L96: 1514 | M96: INE451F01024
A97: APTECHT | B97: EQ | C97: 161.15 | D97: 164.9 | E97: 157.45 | F97: 162.15 | G97: 162.25 | H97: 161.9 | I97: 158837 | J97: 25631521.95 | K97: 2018-11-13 | L97: 3737 | M97: INE266F01018
A98: ARCHIDPLY | B98: EQ | C98: 46 | D98: 46.7 | E98: 45 | F98: 45.55 | G98: 45.5 | H98: 45.85 | I98: 5589 | J98: 254642.55 | K98: 2018-11-13 | L98: 121 | M98: INE877I01016
A99: ARCHIES | B99: EQ | C99: 27.8 | D99: 28.4 | E99: 27.4 | F99: 28.3 | G99: 28.3 | H99: 27.8 | I99: 71799 | J99: 2013406.35 | K99: 2018-11-13 | L99: 341 | M99: INE731A01020
A100: ARCOTECH | B100: EQ | C100: 9.1 | D100: 9.2 | E100: 8.95 | F100: 9.2 | G100: 9.2 | H100: 8.8 | I100: 168612 | J100: 1539592.95 | K100: 2018-11-13 | L100: 283 | M100: INE574I01035
A101: ARIES | B101: EQ | C101: 109.95 | D101: 120 | E101: 108.95 | F101: 112.55 | G101: 113.8 | H101: 110.2 | I101: 98554 | J101: 11412473.85 | K101: 2018-11-13 | L101: 1973 | M101: INE298I01015
A102: ARIHANT | B102: EQ | C102: 27.5 | D102: 27.5 | E102: 25.3 | F102: 26.3 | G102: 26.3 | H102: 26.7 | I102: 2771 | J102: 72280.15 | K102: 2018-11-13 | L102: 39 | M102: INE413D01011
A103: ARIHANTSUP | B103: EQ | C103: 53.65 | D103: 53.8 | E103: 51.7 | F103: 53.3 | G103: 53.55 | H103: 53.2 | I103: 29646 | J103: 1570796.35 | K103: 2018-11-13 | L103: 197 | M103: INE643K01018
A104: ARMANFIN | B104: EQ | C104: 374.95 | D104: 374.95 | E104: 362 | F104: 371.6 | G104: 371.65 | H104: 371 | I104: 1779 | J104: 657675.75 | K104: 2018-11-13 | L104: 77 | M104: INE109C01017
A105: AROGRANITE | B105: EQ | C105: 51.95 | D105: 53.45 | E105: 51.2 | F105: 52.75 | G105: 52.8 | H105: 51.95 | I105: 2677 | J105: 140537.65 | K105: 2018-11-13 | L105: 72 | M105: INE210C01013
A106: ARROWGREEN | B106: EQ | C106: 107.9 | D106: 107.9 | E106: 100.1 | F106: 101.8 | G106: 101.35 | H106: 103.85 | I106: 11566 | J106: 1182528.3 | K106: 2018-11-13 | L106: 218 | M106: INE570D01018
A107: ARROWTEX | B107: EQ | C107: 25.85 | D107: 25.85 | E107: 25.05 | F107: 25.4 | G107: 25.3 | H107: 25.3 | I107: 555 | J107: 14036.05 | K107: 2018-11-13 | L107: 23 | M107: INE933J01015
A108: ARSHIYA | B108: EQ | C108: 36.85 | D108: 37.5 | E108: 36 | F108: 36.55 | G108: 36.75 | H108: 38.15 | I108: 64152 | J108: 2346762.65 | K108: 2018-11-13 | L108: 184 | M108: INE968D01022
A109: ARSSINFRA | B109: EQ | C109: 22.9 | D109: 23.25 | E109: 22.8 | F109: 22.9 | G109: 22.8 | H109: 22.75 | I109: 2579 | J109: 59257.95 | K109: 2018-11-13 | L109: 37 | M109: INE267I01010
A110: ARVIND | B110: EQ | C110: 310 | D110: 313.75 | E110: 303 | F110: 311.4 | G110: 313.5 | H110: 312.65 | I110: 2588073 | J110: 799508724 | K110: 2018-11-13 | L110: 40153 | M110: INE034A01011
A111: ARVSMART | B111: EQ | C111: 115.9 | D111: 116 | E111: 110 | F111: 111.9 | G111: 110.5 | H111: 114.65 | I111: 13212 | J111: 1493719.3 | K111: 2018-11-13 | L111: 467 | M111: INE034S01021
A112: ASAHIINDIA | B112: EQ | C112: 285.7 | D112: 289.5 | E112: 283 | F112: 284 | G112: 283.35 | H112: 284.65 | I112: 10526 | J112: 2991746.2 | K112: 2018-11-13 | L112: 1010 | M112: INE439A01020
A113: ASAHISONG | B113: EQ | C113: 250.2 | D113: 256.5 | E113: 247.2 | F113: 250.55 | G113: 250 | H113: 246.6 | I113: 1510 | J113: 379068.15 | K113: 2018-11-13 | L113: 121 | M113: INE228I01012
A114: ASAL | B114: EQ | C114: 59.6 | D114: 60.75 | E114: 57.1 | F114: 58.15 | G114: 58.35 | H114: 57.35 | I114: 62532 | J114: 3693382.1 | K114: 2018-11-13 | L114: 583 | M114: INE900C01027
A115: ASHAPURMIN | B115: EQ | C115: 28.5 | D115: 29 | E115: 28.05 | F115: 28.35 | G115: 28.5 | H115: 28.9 | I115: 62523 | J115: 1779509.45 | K115: 2018-11-13 | L115: 485 | M115: INE348A01023
A116: ASHIANA | B116: EQ | C116: 125 | D116: 125 | E116: 122 | F116: 123 | G116: 122.55 | H116: 124.55 | I116: 46918 | J116: 5844507.65 | K116: 2018-11-13 | L116: 327 | M116: INE365D01021
A117: ASHIMASYN | B117: EQ | C117: 14.25 | D117: 14.75 | E117: 14 | F117: 14.45 | G117: 14.6 | H117: 14.6 | I117: 41756 | J117: 602139.5 | K117: 2018-11-13 | L117: 210 | M117: INE440A01010
A118: ASHOKA | B118: EQ | C118: 121 | D118: 138 | E118: 121 | F118: 132.95 | G118: 132.55 | H118: 122.95 | I118: 1385567 | J118: 183568194.1 | K118: 2018-11-13 | L118: 17299 | M118: INE442H01029
A119: ASHOKLEY | B119: EQ | C119: 118.25 | D119: 119.35 | E119: 117.1 | F119: 119 | G119: 118.75 | H119: 118.3 | I119: 15407719 | J119: 1822120118 | K119: 2018-11-13 | L119: 72514 | M119: INE208A01029
A120: ASIANHOTNR | B120: EQ | C120: 150.15 | D120: 154.85 | E120: 150 | F120: 150.65 | G120: 150 | H120: 149.35 | I120: 3933 | J120: 592584.8 | K120: 2018-11-13 | L120: 75 | M120: INE363A01022
A121: ASIANPAINT | B121: EQ | C121: 1277.45 | D121: 1295.6 | E121: 1277.45 | F121: 1284.9 | G121: 1284.25 | H121: 1278.8 | I121: 1632176 | J121: 2099226827 | K121: 2018-11-13 | L121: 81733 | M121: INE021A01026
A122: ASIANTILES | B122: EQ | C122: 180.5 | D122: 186.5 | E122: 178.25 | F122: 183.85 | G122: 184.4 | H122: 177.9 | I122: 85510 | J122: 15745163.55 | K122: 2018-11-13 | L122: 1692 | M122: INE022I01019
A123: ASPINWALL | B123: EQ | C123: 181 | D123: 189.95 | E123: 181 | F123: 184 | G123: 184 | H123: 187.8 | I123: 1162 | J123: 216213.5 | K123: 2018-11-13 | L123: 47 | M123: INE991I01015
A124: ASSAMCO | B124: EQ | C124: 1.7 | D124: 1.7 | E124: 1.7 | F124: 1.7 | G124: 1.7 | H124: 1.75 | I124: 52784 | J124: 89732.8 | K124: 2018-11-13 | L124: 88 | M124: INE442A01024
A125: ASTEC | B125: EQ | C125: 528.65 | D125: 538.7 | E125: 525.8 | F125: 531.85 | G125: 533.95 | H125: 528.6 | I125: 4749 | J125: 2522207.45 | K125: 2018-11-13 | L125: 366 | M125: INE563J01010
A126: ASTERDM | B126: EQ | C126: 161.8 | D126: 162.4 | E126: 158.1 | F126: 159.45 | G126: 161.95 | H126: 159.7 | I126: 47045 | J126: 7514954.15 | K126: 2018-11-13 | L126: 1622 | M126: INE914M01019
A127: ASTRAL | B127: EQ | C127: 947 | D127: 969.9 | E127: 941.4 | F127: 960.5 | G127: 952 | H127: 953.85 | I127: 26768 | J127: 25623235.65 | K127: 2018-11-13 | L127: 3016 | M127: INE006I01046
A128: ASTRAMICRO | B128: EQ | C128: 80 | D128: 80.5 | E128: 79.65 | F128: 79.95 | G128: 79.95 | H128: 79.9 | I128: 41188 | J128: 3293806.7 | K128: 2018-11-13 | L128: 434 | M128: INE386C01029
A129: ASTRAZEN | B129: EQ | C129: 1690.65 | D129: 1715.5 | E129: 1671.5 | F129: 1697.1 | G129: 1690 | H129: 1688.15 | I129: 27090 | J129: 46178851.2 | K129: 2018-11-13 | L129: 6022 | M129: INE203A01020
A130: ASTRON | B130: EQ | C130: 112.25 | D130: 113.95 | E130: 111.55 | F130: 112.75 | G130: 112.45 | H130: 111.65 | I130: 89100 | J130: 10061365.3 | K130: 2018-11-13 | L130: 1474 | M130: INE646X01014
A131: ATFL | B131: EQ | C131: 523.4 | D131: 527.95 | E131: 518.3 | F131: 525.2 | G131: 527.95 | H131: 525.25 | I131: 1294 | J131: 678337.4 | K131: 2018-11-13 | L131: 102 | M131: INE209A01019
A132: ATLANTA | B132: EQ | C132: 28.55 | D132: 29.2 | E132: 27.7 | F132: 28.5 | G132: 28.55 | H132: 28.65 | I132: 31394 | J132: 893641.25 | K132: 2018-11-13 | L132: 390 | M132: INE285H01022
A133: ATUL | B133: EQ | C133: 3371.15 | D133: 3410 | E133: 3357.9 | F133: 3399.55 | G133: 3396.4 | H133: 3392.55 | I133: 5280 | J133: 17879284.15 | K133: 2018-11-13 | L133: 922 | M133: INE100A01010
A134: ATULAUTO | B134: EQ | C134: 337.55 | D134: 350 | E134: 336 | F134: 345.4 | G134: 347.95 | H134: 337.55 | I134: 6700 | J134: 2299511.25 | K134: 2018-11-13 | L134: 642 | M134: INE951D01028
A135: AUBANK | B135: EQ | C135: 548 | D135: 548 | E135: 520 | F135: 536.8 | G135: 538 | H135: 544.65 | I135: 287241 | J135: 152648853.7 | K135: 2018-11-13 | L135: 21883 | M135: INE949L01017
A136: AURIONPRO | B136: EQ | C136: 163.95 | D136: 166.7 | E136: 159 | F136: 161.75 | G136: 161.5 | H136: 165.4 | I136: 11323 | J136: 1838616.8 | K136: 2018-11-13 | L136: 434 | M136: INE132H01018
A137: AUROPHARMA | B137: EQ | C137: 806 | D137: 815 | E137: 759.3 | F137: 774.7 | G137: 775 | H137: 795.95 | I137: 6122728 | J137: 4770868385 | K137: 2018-11-13 | L137: 137096 | M137: INE406A01037
A138: AUSOMENT | B138: EQ | C138: 54.6 | D138: 54.65 | E138: 49.5 | F138: 52.5 | G138: 53 | H138: 51.95 | I138: 1545 | J138: 80857.65 | K138: 2018-11-13 | L138: 124 | M138: INE218C01016
A139: AUTOAXLES | B139: EQ | C139: 1240 | D139: 1258.4 | E139: 1213.3 | F139: 1228.65 | G139: 1234.5 | H139: 1247.3 | I139: 15498 | J139: 19077489 | K139: 2018-11-13 | L139: 1640 | M139: INE449A01011
A140: AUTOIND | B140: EQ | C140: 59.8 | D140: 60.5 | E140: 59.4 | F140: 59.95 | G140: 59.55 | H140: 60.4 | I140: 11404 | J140: 683297.7 | K140: 2018-11-13 | L140: 156 | M140: INE718H01014
A141: AUTOLITIND | B141: EQ | C141: 44.7 | D141: 44.7 | E141: 42.8 | F141: 43.9 | G141: 44.4 | H141: 43.9 | I141: 4150 | J141: 180724.65 | K141: 2018-11-13 | L141: 105 | M141: INE448A01013
A142: AVADHSUGAR | B142: EQ | C142: 459 | D142: 459 | E142: 437.85 | F142: 441.2 | G142: 440 | H142: 451.95 | I142: 75143 | J142: 33523211.85 | K142: 2018-11-13 | L142: 2191 | M142: INE349W01017
A143: AVANTIFEED | B143: EQ | C143: 373.3 | D143: 382.3 | E143: 371.4 | F143: 374.85 | G143: 375.8 | H143: 375.65 | I143: 486431 | J143: 183055349.9 | K143: 2018-11-13 | L143: 14847 | M143: INE871C01038
A144: AVTNPL | B144: EQ | C144: 29.55 | D144: 30.75 | E144: 29.2 | F144: 30.2 | G144: 30.4 | H144: 29.2 | I144: 164013 | J144: 4937704.85 | K144: 2018-11-13 | L144: 708 | M144: INE488D01021
A145: AXISBANK | B145: EQ | C145: 606.45 | D145: 620.75 | E145: 604.05 | F145: 618.3 | G145: 619 | H145: 606.55 | I145: 8938939 | J145: 5484311703 | K145: 2018-11-13 | L145: 140407 | M145: INE238A01034
A146: AXISCADES | B146: EQ | C146: 80.25 | D146: 84 | E146: 79.5 | F146: 81.25 | G146: 81.25 | H146: 80.25 | I146: 41684 | J146: 3419297.95 | K146: 2018-11-13 | L146: 843 | M146: INE555B01013
A147: AXISGOLD | B147: EQ | C147: 2801.05 | D147: 2809 | E147: 2713.3 | F147: 2734.15 | G147: 2750 | H147: 2805.7 | I147: 240 | J147: 666003.05 | K147: 2018-11-13 | L147: 42 | M147: INF846K01347
A148: AXISNIFTY | B148: EQ | C148: 1072.06 | D148: 1072.06 | E148: 1064.4 | F148: 1071.66 | G148: 1071.66 | H148: 1070 | I148: 159 | J148: 169597.72 | K148: 2018-11-13 | L148: 4 | M148: INF846K01ZL0
A149: AYMSYNTEX | B149: EQ | C149: 47.5 | D149: 47.5 | E149: 44.05 | F149: 45.1 | G149: 44.15 | H149: 46.45 | I149: 5587 | J149: 254803.85 | K149: 2018-11-13 | L149: 88 | M149: INE193B01039
A150: BAFNAPHARM | B150: EQ | C150: 13.9 | D150: 15 | E150: 13.7 | F150: 14.25 | G150: 14.1 | H150: 13.8 | I150: 13401 | J150: 191199.3 | K150: 2018-11-13 | L150: 152 | M150: INE878I01014
A151: BAGFILMS | B151: EQ | C151: 5.1 | D151: 5.15 | E151: 4.8 | F151: 4.85 | G151: 4.85 | H151: 4.95 | I151: 203672 | J151: 1033035.65 | K151: 2018-11-13 | L151: 340 | M151: INE116D01028
A152: BAJAJ-AUTO | B152: EQ | C152: 2649 | D152: 2673.4 | E152: 2613 | F152: 2665.5 | G152: 2670 | H152: 2652.3 | I152: 305897 | J152: 809472020.4 | K152: 2018-11-13 | L152: 23341 | M152: INE917I01010
A153: BAJAJCORP | B153: EQ | C153: 353.95 | D153: 361 | E153: 350 | F153: 356.35 | G153: 358.7 | H153: 353.85 | I153: 81431 | J153: 28588678.3 | K153: 2018-11-13 | L153: 1508 | M153: INE933K01021
A154: BAJAJELEC | B154: EQ | C154: 498.9 | D154: 506.55 | E154: 490.05 | F154: 503.7 | G154: 503.95 | H154: 499.45 | I154: 117542 | J154: 58592721 | K154: 2018-11-13 | L154: 3755 | M154: INE193E01025
A155: BAJAJFINSV | B155: EQ | C155: 5541 | D155: 5609.35 | E155: 5536.05 | F155: 5571.7 | G155: 5574.9 | H155: 5549.1 | I155: 148588 | J155: 827997829.7 | K155: 2018-11-13 | L155: 19581 | M155: INE918I01018
A156: BAJAJHIND | B156: EQ | C156: 11.7 | D156: 11.85 | E156: 11.25 | F156: 11.35 | G156: 11.45 | H156: 11.75 | I156: 7914965 | J156: 91115969.15 | K156: 2018-11-13 | L156: 6475 | M156: INE306A01021
A157: BAJAJHLDNG | B157: EQ | C157: 2799 | D157: 2897.9 | E157: 2775.6 | F157: 2854.15 | G157: 2890 | H157: 2799.15 | I157: 33399 | J157: 94190916.95 | K157: 2018-11-13 | L157: 2227 | M157: INE118A01012
A158: BAJFINANCE | B158: EQ | C158: 2270 | D158: 2308.35 | E158: 2233.1 | F158: 2285 | G158: 2285 | H158: 2277.6 | I158: 2297710 | J158: 5209753683 | K158: 2018-11-13 | L158: 129267 | M158: INE296A01024
A159: BALAJITELE | B159: EQ | C159: 99.85 | D159: 102.4 | E159: 99.85 | F159: 101 | G159: 101.95 | H159: 101.75 | I159: 9301 | J159: 935635.2 | K159: 2018-11-13 | L159: 288 | M159: INE794B01026
A160: BALAMINES | B160: EQ | C160: 466.9 | D160: 474.7 | E160: 461.35 | F160: 470.25 | G160: 467.65 | H160: 464.15 | I160: 14235 | J160: 6679080.55 | K160: 2018-11-13 | L160: 902 | M160: INE050E01027
A161: BALKRISHNA | B161: EQ | C161: 55.4 | D161: 57.4 | E161: 53.7 | F161: 54.95 | G161: 55.2 | H161: 54.95 | I161: 13479 | J161: 748082.45 | K161: 2018-11-13 | L161: 304 | M161: INE875R01011
A162: BALKRISIND | B162: EQ | C162: 951 | D162: 962 | E162: 938 | F162: 958.8 | G162: 956.25 | H162: 951.25 | I162: 939622 | J162: 892620222.7 | K162: 2018-11-13 | L162: 29063 | M162: INE787D01026
A163: BALLARPUR | B163: EQ | C163: 6.3 | D163: 6.5 | E163: 6.15 | F163: 6.15 | G163: 6.15 | H163: 6.25 | I163: 735341 | J163: 4587762.05 | K163: 2018-11-13 | L163: 752 | M163: INE294A01037
A164: BALMLAWRIE | B164: EQ | C164: 200 | D164: 201.8 | E164: 196 | F164: 198.35 | G164: 198 | H164: 203.5 | I164: 51595 | J164: 10225266.85 | K164: 2018-11-13 | L164: 1642 | M164: INE164A01016
A165: BALPHARMA | B165: EQ | C165: 86.2 | D165: 88.75 | E165: 85.5 | F165: 86.1 | G165: 85.65 | H165: 87.2 | I165: 20359 | J165: 1772472.65 | K165: 2018-11-13 | L165: 373 | M165: INE083D01012
A166: BALRAMCHIN | B166: EQ | C166: 116.45 | D166: 116.85 | E166: 112.1 | F166: 112.85 | G166: 112.8 | H166: 117.15 | I166: 4874665 | J166: 558205976.7 | K166: 2018-11-13 | L166: 30889 | M166: INE119A01028
A167: BANARBEADS | B167: EQ | C167: 49.15 | D167: 50.65 | E167: 49.15 | F167: 50.6 | G167: 50.6 | H167: 50.7 | I167: 143 | J167: 7226.85 | K167: 2018-11-13 | L167: 5 | M167: INE655B01011
A168: BANARISUG | B168: EQ | C168: 1845.6 | D168: 1860 | E168: 1787.55 | F168: 1802.85 | G168: 1800 | H168: 1845.6 | I168: 439 | J168: 792918.85 | K168: 2018-11-13 | L168: 98 | M168: INE459A01010
A169: BANCOINDIA | B169: EQ | C169: 180 | D169: 182.25 | E169: 177 | F169: 179.9 | G169: 180 | H169: 179.8 | I169: 53356 | J169: 9593606.85 | K169: 2018-11-13 | L169: 1334 | M169: INE213C01025
A170: BANDHANBNK | B170: EQ | C170: 424 | D170: 435 | E170: 418.1 | F170: 432.4 | G170: 432.15 | H170: 425.9 | I170: 346706 | J170: 147851418.8 | K170: 2018-11-13 | L170: 10510 | M170: INE545U01014
A171: BANG | B171: EQ | C171: 50.5 | D171: 50.9 | E171: 47.7 | F171: 48.95 | G171: 48.95 | H171: 49.7 | I171: 20304 | J171: 992272.4 | K171: 2018-11-13 | L171: 121 | M171: INE863I01016
A172: BANKBARODA | B172: EQ | C172: 108.9 | D172: 109.25 | E172: 106.4 | F172: 108.7 | G172: 109 | H172: 109.4 | I172: 14242220 | J172: 1534608243 | K172: 2018-11-13 | L172: 49868 | M172: INE028A01039
A173: BANKBEES | B173: EQ | C173: 2601.06 | D173: 2630 | E173: 2586.15 | F173: 2627.25 | G173: 2629.39 | H173: 2608.34 | I173: 411 | J173: 1070172.58 | K173: 2018-11-13 | L173: 147 | M173: INF732E01078
A174: BANKINDIA | B174: EQ | C174: 85.2 | D174: 85.45 | E174: 79.6 | F174: 81 | G174: 81.2 | H174: 87.15 | I174: 34691996 | J174: 2816075553 | K174: 2018-11-13 | L174: 106196 | M174: INE084A01016
A175: BANSWRAS | B175: EQ | C175: 75.2 | D175: 82 | E175: 75.15 | F175: 80.2 | G175: 79.05 | H175: 75 | I175: 5966 | J175: 472555.95 | K175: 2018-11-13 | L175: 118 | M175: INE629D01012
A176: BARTRONICS | B176: EQ | C176: 7.55 | D176: 7.55 | E176: 7.25 | F176: 7.25 | G176: 7.25 | H176: 7.45 | I176: 24270 | J176: 176649.5 | K176: 2018-11-13 | L176: 68 | M176: INE855F01034
A177: BASF | B177: EQ | C177: 1621 | D177: 1621 | E177: 1587 | F177: 1595.8 | G177: 1590 | H177: 1597.5 | I177: 2865 | J177: 4589035.25 | K177: 2018-11-13 | L177: 652 | M177: INE373A01013
A178: BASML | B178: EQ | C178: 203 | D178: 203 | E178: 191 | F178: 195.25 | G178: 194.05 | H178: 193.75 | I178: 396 | J178: 77557.25 | K178: 2018-11-13 | L178: 36 | M178: INE186H01014
A179: BATAINDIA | B179: EQ | C179: 1018 | D179: 1024.8 | E179: 1004.05 | F179: 1010.6 | G179: 1011.45 | H179: 1016.8 | I179: 739958 | J179: 750302118 | K179: 2018-11-13 | L179: 19420 | M179: INE176A01028
A180: BAYERCROP | B180: EQ | C180: 4000 | D180: 4002.75 | E180: 3906.55 | F180: 3937.6 | G180: 3915 | H180: 4022.85 | I180: 8294 | J180: 32768855.35 | K180: 2018-11-13 | L180: 1825 | M180: INE462A01022
A181: BBL | B181: EQ | C181: 1294 | D181: 1339 | E181: 1262.4 | F181: 1301.85 | G181: 1297 | H181: 1294.05 | I181: 9087 | J181: 11757118.6 | K181: 2018-11-13 | L181: 1219 | M181: INE464A01028
A182: BBTC | B182: EQ | C182: 1407.9 | D182: 1433.7 | E182: 1371.55 | F182: 1414.4 | G182: 1405 | H182: 1411 | I182: 186003 | J182: 260630271.6 | K182: 2018-11-13 | L182: 9119 | M182: INE050A01025
A183: BCG | B183: EQ | C183: 3.1 | D183: 3.15 | E183: 2.95 | F183: 3 | G183: 2.95 | H183: 3.05 | I183: 1542450 | J183: 4653853 | K183: 2018-11-13 | L183: 851 | M183: INE425B01027
A184: BDL | B184: EQ | C184: 290 | D184: 297.45 | E184: 289.8 | F184: 290.3 | G184: 290.05 | H184: 295.05 | I184: 9377 | J184: 2731781.25 | K184: 2018-11-13 | L184: 871 | M184: INE171Z01018
A185: BEARDSELL | B185: EQ | C185: 24.05 | D185: 25.3 | E185: 23.9 | F185: 24.7 | G185: 24.7 | H185: 24.35 | I185: 3182 | J185: 77936.75 | K185: 2018-11-13 | L185: 43 | M185: INE520H01022
A186: BEDMUTHA | B186: BE | C186: 19.65 | D186: 19.65 | E186: 18.65 | F186: 18.7 | G186: 18.7 | H186: 19 | I186: 4414 | J186: 83086.15 | K186: 2018-11-13 | L186: 22 | M186: INE844K01012
A187: BEL | B187: EQ | C187: 95 | D187: 95.3 | E187: 92.7 | F187: 94.6 | G187: 94.65 | H187: 95.05 | I187: 3765515 | J187: 354301222.8 | K187: 2018-11-13 | L187: 18146 | M187: INE263A01024
A188: BEML | B188: EQ | C188: 720 | D188: 728.5 | E188: 701.15 | F188: 723.25 | G188: 722 | H188: 720.65 | I188: 875068 | J188: 626974570.5 | K188: 2018-11-13 | L188: 19939 | M188: INE258A01016
A189: BEPL | B189: EQ | C189: 85.15 | D189: 85.9 | E189: 83.2 | F189: 84.35 | G189: 84.2 | H189: 85.15 | I189: 325040 | J189: 27465549.85 | K189: 2018-11-13 | L189: 4001 | M189: INE922A01025
A190: BERGEPAINT | B190: EQ | C190: 300.6 | D190: 310 | E190: 300.1 | F190: 309.1 | G190: 309.6 | H190: 300.6 | I190: 834886 | J190: 256102046.5 | K190: 2018-11-13 | L190: 16731 | M190: INE463A01038
A191: BFINVEST | B191: EQ | C191: 253.95 | D191: 263.5 | E191: 251 | F191: 256.6 | G191: 257.7 | H191: 254.65 | I191: 80702 | J191: 20762536.25 | K191: 2018-11-13 | L191: 3082 | M191: INE878K01010
A192: BFUTILITIE | B192: EQ | C192: 217.2 | D192: 219.3 | E192: 212 | F192: 216.85 | G192: 216.3 | H192: 218.1 | I192: 204362 | J192: 44217845.45 | K192: 2018-11-13 | L192: 4943 | M192: INE243D01012
A193: BGLOBAL | B193: BE | C193: 2.45 | D193: 2.55 | E193: 2.4 | F193: 2.55 | G193: 2.55 | H193: 2.45 | I193: 5199 | J193: 13185.7 | K193: 2018-11-13 | L193: 14 | M193: INE224M01013
A194: BGRENERGY | B194: EQ | C194: 67.8 | D194: 68.7 | E194: 62.8 | F194: 66.8 | G194: 67 | H194: 69 | I194: 280014 | J194: 18685247.7 | K194: 2018-11-13 | L194: 3235 | M194: INE661I01014
A195: BHAGERIA | B195: EQ | C195: 306 | D195: 311 | E195: 306 | F195: 307.3 | G195: 306.5 | H195: 306.2 | I195: 10181 | J195: 3138671.55 | K195: 2018-11-13 | L195: 454 | M195: INE354C01027
A196: BHAGYANGR | B196: EQ | C196: 31.95 | D196: 32 | E196: 31.05 | F196: 31.35 | G196: 31.95 | H196: 31.1 | I196: 5367 | J196: 169172.35 | K196: 2018-11-13 | L196: 72 | M196: INE458B01036
A197: BHAGYAPROP | B197: EQ | C197: 27.45 | D197: 27.45 | E197: 25.15 | F197: 25.85 | G197: 25.8 | H197: 25.85 | I197: 3790 | J197: 98451.05 | K197: 2018-11-13 | L197: 27 | M197: INE363W01018
A198: BHANDARI | B198: EQ | C198: 2.1 | D198: 2.4 | E198: 2.05 | F198: 2.25 | G198: 2.3 | H198: 2.05 | I198: 859273 | J198: 1898214.4 | K198: 2018-11-13 | L198: 373 | M198: INE474E01029
A199: BHARATFIN | B199: EQ | C199: 919.7 | D199: 924.6 | E199: 905 | F199: 921.2 | G199: 923.7 | H199: 922.15 | I199: 145176 | J199: 132917687.3 | K199: 2018-11-13 | L199: 5225 | M199: INE180K01011
A200: BHARATFORG | B200: EQ | C200: 582 | D200: 592.5 | E200: 578.85 | F200: 590.05 | G200: 590 | H200: 584.85 | I200: 598683 | J200: 351696399.9 | K200: 2018-11-13 | L200: 14310 | M200: INE465A01025
... 1438 more rows
